Workbook

Sheet 1. Information Sheet
U1: a
M12: Version | N12: 2
E14: Utility Name | F14: Centre Wellington Hydro Ltd.
E16: Service Territory
E18: Assigned EB Number | F18: EB-2017-0032
E20: Name of Contact and Title | F20: Florence Thiessen, Vice President Finance / Regulatory
E22: Phone Number | F22: 519 843 2900 Ext 225
E24: Email Address | F24: thiessen@cwhydro.ca
E26: We are applying for rates effective | F26: 2018-01-01
E28: Rate-Setting Method | F28: Cost of Service
A30: Please indicate in which Rate Year the Group 1 accounts were last cleared1 | F30: 2015
A32: Please indicate the last Cost of Service Re-Basing Year | F32: 2013
B35: Notes
C37: Pale green cells represent input cells.
C39: Pale blue cells represent drop-down lists. The applicant should select the appropriate item from the drop-down list.
C41: White cells contain fixed values, automatically generated values or formulae.
A44: Note: 1. Rate year of application

Sheet Sheet1 (hidden)
A1: 1. Information Sheet
A2: Sheet1 | B2: X
A3: 2.2-TSC Current Tariff Schedule | B3: X | C3: X
A4: 2016 List | B4: X
A5: 3. Regulatory Charges | B5: X | C5: X
A6: 4.2-TS Tariff Schedule | B6: X
A7: 4.2-TS Tariff Schedule | B7: X | C7: X
A8: 5. 2-W Bill Impacts | B8: X | C8: X
A9: 20. HIDDEN | B9: X
A10: 20. Bill Impacts hidden | B10: X
A11: 2.1.7 Filing | B11: X
A12: 2 1 5 TotalConsumptionData_Dist | B12: X
A13: 212_Total_Connection_RollUp | B13: X
A14: 2016 Database | B14: X
A15: lists | B15: X
A16: Sheet2 | B16: X

Sheet 2.2-TSC Current Tariff Schedule
AZ1: TRUE
B3: Macro has been activated
B12: Centre Wellington Hydro Ltd. | F12: X | G12: Centre Wellington Hydro Ltd._Start | H12: Centre Wellington Hydro Ltd. | J12: 8
B13: TARIFF OF RATES AND CHARGES
B14: Effective and Implementation Date May 1, 2017 | P14: 2017-05-01
B15: This schedule supersedes and replaces all previously
B16: approved schedules of Rates, Charges and Loss Factors
B17: EB-2016-0062 | H17: EB-2016-0062 | AS17: X
B18: RESIDENTIAL SERVICE CLASSIFICATION | H18: 1_RESIDENTIAL SERVICE CLASSIFICATION | AA18: RESIDENTIAL SERVICE CLASSIFICATION
B19: This classification is for single dwelling units with separate metering, detached, semi-detached, triplex, etc. Class B consumers are defined in accordance with O. Reg. 429/04. Further servicing details are available in the distributor's Conditions of Service. | H19: 1_RESIDENTIAL SERVICE CLASSIFICATION | AA19: This classification is for single dwelling units with separate metering, detached, semi-detached, triplex, etc. Class B consumers are defined in accordance with O. Reg. 429/04. Further servicing details are available in the distributor's Conditions of Service.
B21: APPLICATION | H21: 1_APPLICATION | AA21: APPLICATION
B23: The application of these rates and charges shall be in accordance with the Licence of the Distributor and any Code or Order of the Ontario Energy Board, and amendments thereto as approved by the Ontario Energy Board, which may be applicable to the administration of this schedule. | H23: 1_RESIDENTIAL SERVICE CLASSIFICATION | AA23: The application of these rates and charges shall be in accordance with the Licence of the Distributor and any Code or Order of the Ontario Energy Board, and amendments thereto as approved by the Ontario Energy Board, which may be applicable to the administration of this schedule.
B25: No rates and charges for the distribution of electricity and charges to meet the costs of any work or service done or furnished for the purpose of the distribution of electricity shall be made except as permitted by this schedule, unless required by the Distributor’s Licence or a Code or Order of the Ontario Energy Board, and amendments thereto as approved by the Ontario Energy Board, or as specified herein. | H25: 1_RESIDENTIAL SERVICE CLASSIFICATION | AA25: No rates and charges for the distribution of electricity and charges to meet the costs of any work or service done or furnished for the purpose of the distribution of electricity shall be made except as permitted by this schedule, unless required by the Distributor’s Licence or a Code or Order of the Ontario Energy Board, and amendments thereto as approved by the Ontario Energy Board, or as specified herein.
B27: Unless specifically noted, this schedule does not contain any charges for the electricity commodity, be it under the Regulated Price Plan, a contract with a retailer or the wholesale market price, as applicable. In addition, the charges in the MONTHLY RATES AND CHARGES - Regulatory Component of this schedule do not apply to a customer that is an embedded wholesale market participant. | H27: 1_RESIDENTIAL SERVICE CLASSIFICATION | AA27: Unless specifically noted, this schedule does not contain any charges for the electricity commodity, be it under the Regulated Price Plan, a contract with a retailer or the wholesale market price, as applicable. In addition, the charges in the MONTHLY RATES AND CHARGES - Regulatory Component of this schedule do not apply to a customer that is an embedded wholesale market participant.
B29: It should be noted that this schedule does not list any charges, assessments, or credits that are required by law to be invoiced by a distributor and that are not subject to Ontario Energy Board approval, such as the Debt Retirement Charge, the Global Adjustment and the HST. | H29: 1_RESIDENTIAL SERVICE CLASSIFICATION | AA29: It should be noted that this schedule does not list any charges, assessments, or credits that are required by law to be invoiced by a distributor and that are not subject to Ontario Energy Board approval, such as the Debt Retirement Charge, the Global Adjustment and the HST.
B31: MONTHLY RATES AND CHARGES - Delivery Component | H31: 1_MRC_Del | AA31: MONTHLY RATES AND CHARGES - Delivery Component
B33: Service Charge | D33: $ | E33: 21.02104 | H33: 1_RESIDENTIAL SERVICE CLASSIFICATION | I33: A | M33: 1_RESIDENTIAL SERVICE CLASSIFICATION_MSC | Z33: Service Charge
B34: Rate Rider for Smart Metering Entity Charge - effective until October 31, 2018 | D34: $ | E34: 0.79 | H34: 1_RESIDENTIAL SERVICE CLASSIFICATION | I34: B | M34: 1_RESIDENTIAL SERVICE CLASSIFICATION_SME | Q34: 2018-10-31 | Z34: Rate Rider for Smart Metering Entity Charge - effective until October 31, 2018
B35: Distribution Volumetric Rate | D35: $/kWh | E35: 0.0074168 | H35: 1_RESIDENTIAL SERVICE CLASSIFICATION | I35: A | M35: 1_RESIDENTIAL SERVICE CLASSIFICATION_DVC | Z35: Distribution Volumetric Rate
B36: Low Voltage Service Rate | D36: $/kWh | E36: 0.0018 | H36: 1_RESIDENTIAL SERVICE CLASSIFICATION | I36: B | M36: 1_RESIDENTIAL SERVICE CLASSIFICATION_LV | Z36: Low Voltage Service Rate
B37: Retail Transmission Rate - Network Service Rate | D37: $/kWh | E37: 0.0064 | H37: 1_RESIDENTIAL SERVICE CLASSIFICATION | I37: C | M37: 1_RESIDENTIAL SERVICE CLASSIFICATION_Retail Transmission Rate - Network Service Rate | Z37: Retail Transmission Rate - Network Service Rate
B38: Retail Transmission Rate - Line and Transformation Connection Service Rate | D38: $/kWh | E38: 0.0052 | H38: 1_RESIDENTIAL SERVICE CLASSIFICATION | I38: C | M38: 1_RESIDENTIAL SERVICE CLASSIFICATION_Retail Transmission Rate - Line and Transformation Connection Service Rate | Z38: Retail Transmission Rate - Line and Transformation Connection Service Rate
B40: MONTHLY RATES AND CHARGES - Regulatory Component | H40: 1_MRC_Reg | Z40: MONTHLY RATES AND CHARGES - Regulatory Component
B42: Wholesale Market Service Rate (WMS) - Not including CBR | D42: $/kWh | E42: 0.0032 | H42: 1_RESIDENTIAL SERVICE CLASSIFICATION | I42: T | M42: 1_RESIDENTIAL SERVICE CLASSIFICATION_WMSR | Z42: Wholesale Market Service Rate (WMS) - Not including CBR
B43: Capacity Based Recovery (CBR) - Applicable for Class B Customers | D43: $/kWh | E43: 0.0004 | H43: 1_RESIDENTIAL SERVICE CLASSIFICATION | I43: B | M43: 1_RESIDENTIAL SERVICE CLASSIFICATION_WMSR | Z43: Capacity Based Recovery (CBR) - Applicable for Class B Customers
B44: Rural or Remote Electricity Rate Protection Charge (RRRP) | D44: $/kWh | E44: 0.0021 | H44: 1_RESIDENTIAL SERVICE CLASSIFICATION | I44: T | M44: 1_RESIDENTIAL SERVICE CLASSIFICATION_RRRP | Z44: Rural or Remote Electricity Rate Protection Charge (RRRP)
B45: Standard Supply Service - Administrative Charge (if applicable) | D45: $ | E45: 0.25 | H45: 1_RESIDENTIAL SERVICE CLASSIFICATION | I45: T | M45: 1_RESIDENTIAL SERVICE CLASSIFICATION_SSS | Z45: Standard Supply Service - Administrative Charge (if applicable) | AS45: X
B46: GENERAL SERVICE LESS THAN 50 KW SERVICE CLASSIFICATION | H46: 2_GENERAL SERVICE LESS THAN 50 kW SERVICE CLASSIFICATION | AA46: GENERAL SERVICE LESS THAN 50 KW SERVICE CLASSIFICATION
B47: This classification applies to a non-residential account taking electricity at 750 volts or less whose average monthly maximum demand is less than, or is forecasted to be less than, 50kW. Class B consumers are defined in accordance with O. Reg. 429/04. Further servicing details are available in the distributor's Conditions of Service. | H47: 2_GENERAL SERVICE LESS THAN 50 kW SERVICE CLASSIFICATION | AA47: This classification applies to a non-residential account taking electricity at 750 volts or less whose average monthly maximum demand is less than, or is forecasted to be less than, 50kW. Class B consumers are defined in accordance with O. Reg. 429/04. Further servicing details are available in the distributor's Conditions of Service.
B49: APPLICATION | H49: 2_APPLICATION | AA49: APPLICATION
B51: The application of these rates and charges shall be in accordance with the Licence of the Distributor and any Code or Order of the Ontario Energy Board, and amendments thereto as approved by the Ontario Energy Board, which may be applicable to the administration of this schedule. | H51: 2_GENERAL SERVICE LESS THAN 50 kW SERVICE CLASSIFICATION | AA51: The application of these rates and charges shall be in accordance with the Licence of the Distributor and any Code or Order of the Ontario Energy Board, and amendments thereto as approved by the Ontario Energy Board, which may be applicable to the administration of this schedule.
B53: No rates and charges for the distribution of electricity and charges to meet the costs of any work or service done or furnished for the purpose of the distribution of electricity shall be made except as permitted by this schedule, unless required by the Distributor’s Licence or a Code or Order of the Ontario Energy Board, and amendments thereto as approved by the Ontario Energy Board, or as specified herein. | H53: 2_GENERAL SERVICE LESS THAN 50 kW SERVICE CLASSIFICATION | AA53: No rates and charges for the distribution of electricity and charges to meet the costs of any work or service done or furnished for the purpose of the distribution of electricity shall be made except as permitted by this schedule, unless required by the Distributor’s Licence or a Code or Order of the Ontario Energy Board, and amendments thereto as approved by the Ontario Energy Board, or as specified herein.
B55: Unless specifically noted, this schedule does not contain any charges for the electricity commodity, be it under the Regulated Price Plan, a contract with a retailer or the wholesale market price, as applicable. In addition, the charges in the MONTHLY RATES AND CHARGES - Regulatory Component of this schedule do not apply to a customer that is an embedded wholesale market participant. | H55: 2_GENERAL SERVICE LESS THAN 50 kW SERVICE CLASSIFICATION | AA55: Unless specifically noted, this schedule does not contain any charges for the electricity commodity, be it under the Regulated Price Plan, a contract with a retailer or the wholesale market price, as applicable. In addition, the charges in the MONTHLY RATES AND CHARGES - Regulatory Component of this schedule do not apply to a customer that is an embedded wholesale market participant.
B57: It should be noted that this schedule does not list any charges, assessments, or credits that are required by law to be invoiced by a distributor and that are not subject to Ontario Energy Board approval, such as the Debt Retirement Charge, the Global Adjustment and the HST. | H57: 2_GENERAL SERVICE LESS THAN 50 kW SERVICE CLASSIFICATION | AA57: It should be noted that this schedule does not list any charges, assessments, or credits that are required by law to be invoiced by a distributor and that are not subject to Ontario Energy Board approval, such as the Debt Retirement Charge, the Global Adjustment and the HST.
B59: MONTHLY RATES AND CHARGES - Delivery Component | H59: 2_MRC_Del | AA59: MONTHLY RATES AND CHARGES - Delivery Component
B61: Service Charge | D61: $ | E61: 18.4404 | H61: 2_GENERAL SERVICE LESS THAN 50 kW SERVICE CLASSIFICATION | I61: A | M61: 2_GENERAL SERVICE LESS THAN 50 kW SERVICE CLASSIFICATION_MSC | Z61: Service Charge
B62: Rate Rider for Smart Metering Entity Charge - effective until October 31, 2018 | D62: $ | E62: 0.79 | H62: 2_GENERAL SERVICE LESS THAN 50 kW SERVICE CLASSIFICATION | I62: B | M62: 2_GENERAL SERVICE LESS THAN 50 kW SERVICE CLASSIFICATION_SME | Q62: 2018-10-31 | Z62: Rate Rider for Smart Metering Entity Charge - effective until October 31, 2018
B63: Distribution Volumetric Rate | D63: $/kWh | E63: 0.0192024 | H63: 2_GENERAL SERVICE LESS THAN 50 kW SERVICE CLASSIFICATION | I63: A | M63: 2_GENERAL SERVICE LESS THAN 50 kW SERVICE CLASSIFICATION_DVC | Z63: Distribution Volumetric Rate
B64: Low Voltage Service Rate | D64: $/kWh | E64: 0.0016 | H64: 2_GENERAL SERVICE LESS THAN 50 kW SERVICE CLASSIFICATION | I64: B | M64: 2_GENERAL SERVICE LESS THAN 50 kW SERVICE CLASSIFICATION_LV | Z64: Low Voltage Service Rate
B65: Rate Rider for Disposition of Lost Revenue Adjustment Mechanism Variance Account (LRAMVA) (2017) - effective until April 30, 2018 | D65: $/kWh | E65: 0.004 | H65: 2_GENERAL SERVICE LESS THAN 50 kW SERVICE CLASSIFICATION | I65: A | M65: 2_GENERAL SERVICE LESS THAN 50 kW SERVICE CLASSIFICATION_LRAM | Q65: 2018-04-30 | Z65: Rate Rider for Disposition of Lost Revenue Adjustment Mechanism Variance Account (LRAMVA) (2017) - effective until April 30, 2018
B66: Retail Transmission Rate - Network Service Rate | D66: $/kWh | E66: 0.0059 | H66: 2_GENERAL SERVICE LESS THAN 50 kW SERVICE CLASSIFICATION | I66: C | M66: 2_GENERAL SERVICE LESS THAN 50 kW SERVICE CLASSIFICATION_Retail Transmission Rate - Network Service Rate | Z66: Retail Transmission Rate - Network Service Rate
B67: Retail Transmission Rate - Line and Transformation Connection Service Rate | D67: $/kWh | E67: 0.0047 | H67: 2_GENERAL SERVICE LESS THAN 50 kW SERVICE CLASSIFICATION | I67: C | M67: 2_GENERAL SERVICE LESS THAN 50 kW SERVICE CLASSIFICATION_Retail Transmission Rate - Line and Transformation Connection Service Rate | Z67: Retail Transmission Rate - Line and Transformation Connection Service Rate
B69: MONTHLY RATES AND CHARGES - Regulatory Component | H69: 2_MRC_Reg | Z69: MONTHLY RATES AND CHARGES - Regulatory Component
B71: Wholesale Market Service Rate (WMS) - Not including CBR | D71: $/kWh | E71: 0.0032 | H71: 2_GENERAL SERVICE LESS THAN 50 kW SERVICE CLASSIFICATION | I71: T | M71: 2_GENERAL SERVICE LESS THAN 50 kW SERVICE CLASSIFICATION_WMSR | Z71: Wholesale Market Service Rate (WMS) - Not including CBR
B72: Capacity Based Recovery (CBR) - Applicable for Class B Customers | D72: $/kWh | E72: 0.0004 | H72: 2_GENERAL SERVICE LESS THAN 50 kW SERVICE CLASSIFICATION | I72: B | M72: 2_GENERAL SERVICE LESS THAN 50 kW SERVICE CLASSIFICATION_WMSR | Z72: Capacity Based Recovery (CBR) - Applicable for Class B Customers
B73: Rural or Remote Electricity Rate Protection Charge (RRRP) | D73: $/kWh | E73: 0.0021 | H73: 2_GENERAL SERVICE LESS THAN 50 kW SERVICE CLASSIFICATION | I73: T | M73: 2_GENERAL SERVICE LESS THAN 50 kW SERVICE CLASSIFICATION_RRRP | Z73: Rural or Remote Electricity Rate Protection Charge (RRRP)
B74: Standard Supply Service - Administrative Charge (if applicable) | D74: $ | E74: 0.25 | H74: 2_GENERAL SERVICE LESS THAN 50 kW SERVICE CLASSIFICATION | I74: T | M74: 2_GENERAL SERVICE LESS THAN 50 kW SERVICE CLASSIFICATION_SSS | Z74: Standard Supply Service - Administrative Charge (if applicable) | AS74: X
B75: GENERAL SERVICE 50 TO 2,999 KW SERVICE CLASSIFICATION | H75: 3_GENERAL SERVICE 50 TO 2,999 KW SERVICE CLASSIFICATION | AA75: GENERAL SERVICE 50 TO 2,999 KW SERVICE CLASSIFICATION
B76: This classification applies to a non-residential account whose average monthly maximum demand used for billing purposes is equal to or greater than, or is forecasted to be equal to or greater than, 50 kW but less than 3,000 kW. Class A and Class B consumers are defined in accordance with O. Reg. 429/04. Further servicing details are available in the distributor's Conditions of Service. | H76: 3_GENERAL SERVICE 50 TO 2,999 KW SERVICE CLASSIFICATION | AA76: This classification applies to a non-residential account whose average monthly maximum demand used for billing purposes is equal to or greater than, or is forecasted to be equal to or greater than, 50 kW but less than 3,000 kW. Class A and Class B consumers are defined in accordance with O. Reg. 429/04. Further servicing details are available in the distributor's Conditions of Service.
B78: APPLICATION | H78: 3_APPLICATION | AA78: APPLICATION
B80: The application of these rates and charges shall be in accordance with the Licence of the Distributor and any Code or Order of the Ontario Energy Board, and amendments thereto as approved by the Ontario Energy Board, which may be applicable to the administration of this schedule. | H80: 3_GENERAL SERVICE 50 TO 2,999 KW SERVICE CLASSIFICATION | AA80: The application of these rates and charges shall be in accordance with the Licence of the Distributor and any Code or Order of the Ontario Energy Board, and amendments thereto as approved by the Ontario Energy Board, which may be applicable to the administration of this schedule.
B82: No rates and charges for the distribution of electricity and charges to meet the costs of any work or service done or furnished for the purpose of the distribution of electricity shall be made except as permitted by this schedule, unless required by the Distributor’s Licence or a Code or Order of the Ontario Energy Board, and amendments thereto as approved by the Ontario Energy Board, or as specified herein. | H82: 3_GENERAL SERVICE 50 TO 2,999 KW SERVICE CLASSIFICATION | AA82: No rates and charges for the distribution of electricity and charges to meet the costs of any work or service done or furnished for the purpose of the distribution of electricity shall be made except as permitted by this schedule, unless required by the Distributor’s Licence or a Code or Order of the Ontario Energy Board, and amendments thereto as approved by the Ontario Energy Board, or as specified herein.
B84: Unless specifically noted, this schedule does not contain any charges for the electricity commodity, be it under the Regulated Price Plan, a contract with a retailer or the wholesale market price, as applicable. In addition, the charges in the MONTHLY RATES AND CHARGES - Regulatory Component of this schedule do not apply to a customer that is an embedded wholesale market participant. | H84: 3_GENERAL SERVICE 50 TO 2,999 KW SERVICE CLASSIFICATION | AA84: Unless specifically noted, this schedule does not contain any charges for the electricity commodity, be it under the Regulated Price Plan, a contract with a retailer or the wholesale market price, as applicable. In addition, the charges in the MONTHLY RATES AND CHARGES - Regulatory Component of this schedule do not apply to a customer that is an embedded wholesale market participant.
B86: The rate rider for the disposition of Global Adjustment is only applicable to non-RPP Class B customers. It is not applicable to WMP, customers that transitioned between Class A and Class B during the variance account accumulation period, or to customers that were in Class A for the entire period. Customers who transitioned are to be charged or refunded their share of the variance disposed through customer specific billing adjustments. This rate rider is to be consistently applied for the entire period to the sunset date of the rate rider. In addition, this rate rider is applicable to all new non-RPP Class B customers. | H86: 3_GENERAL SERVICE 50 TO 2,999 KW SERVICE CLASSIFICATION | AA86: The rate rider for the disposition of Global Adjustment is only applicable to non-RPP Class B customers. It is not applicable to WMP, customers that transitioned between Class A and Class B during the variance account accumulation period, or to customers that were in Class A for the entire period. Customers who transitioned are to be charged or refunded their share of the variance disposed through customer specific billing adjustments. This rate rider is to be consistently applied for the entire period to the sunset date of the rate rider. In addition, this rate rider is applicable to all new non-RPP Class B customers.
B87: It should be noted that this schedule does not list any charges, assessments, or credits that are required by law to be invoiced by a distributor and that are not subject to Ontario Energy Board approval, such as the Debt Retirement Charge, the Global Adjustment and the HST. | H87: 3_GENERAL SERVICE 50 TO 2,999 KW SERVICE CLASSIFICATION | AA87: It should be noted that this schedule does not list any charges, assessments, or credits that are required by law to be invoiced by a distributor and that are not subject to Ontario Energy Board approval, such as the Debt Retirement Charge, the Global Adjustment and the HST.
B89: MONTHLY RATES AND CHARGES - Delivery Component | H89: 3_MRC_Del | AA89: MONTHLY RATES AND CHARGES - Delivery Component
B91: Service Charge | D91: $ | E91: 170.19016 | H91: 3_GENERAL SERVICE 50 TO 2,999 KW SERVICE CLASSIFICATION | I91: A | M91: 3_GENERAL SERVICE 50 TO 2,999 KW SERVICE CLASSIFICATION_MSC | Z91: Service Charge
B92: Distribution Volumetric Rate | D92: $/kW | E92: 3.7113464 | H92: 3_GENERAL SERVICE 50 TO 2,999 KW SERVICE CLASSIFICATION | I92: A | M92: 3_GENERAL SERVICE 50 TO 2,999 KW SERVICE CLASSIFICATION_DVC | Z92: Distribution Volumetric Rate
B93: Low Voltage Service Rate | D93: $/kW | E93: 0.6302 | H93: 3_GENERAL SERVICE 50 TO 2,999 KW SERVICE CLASSIFICATION | I93: B | M93: 3_GENERAL SERVICE 50 TO 2,999 KW SERVICE CLASSIFICATION_LV | Z93: Low Voltage Service Rate
B94: Rate Rider for Disposition of Lost Revenue Adjustment Mechanism Variance Account (LRAMVA) (2017) - effective until April 30, 2018 | D94: $/kW | E94: -0.0548 | H94: 3_GENERAL SERVICE 50 TO 2,999 KW SERVICE CLASSIFICATION | I94: A | M94: 3_GENERAL SERVICE 50 TO 2,999 KW SERVICE CLASSIFICATION_LRAM | Q94: 2018-04-30 | Z94: Rate Rider for Disposition of Lost Revenue Adjustment Mechanism Variance Account (LRAMVA) (2017) - effective until April 30, 2018
B95: Retail Transmission Rate - Network Service Rate | D95: $/kW | E95: 2.3924 | H95: 3_GENERAL SERVICE 50 TO 2,999 KW SERVICE CLASSIFICATION | I95: C | M95: 3_GENERAL SERVICE 50 TO 2,999 KW SERVICE CLASSIFICATION_Retail Transmission Rate - Network Service Rate | Z95: Retail Transmission Rate - Network Service Rate
B96: Retail Transmission Rate - Line and Transformation Connection Service Rate | D96: $/kW | E96: 1.8318 | H96: 3_GENERAL SERVICE 50 TO 2,999 KW SERVICE CLASSIFICATION | I96: C | M96: 3_GENERAL SERVICE 50 TO 2,999 KW SERVICE CLASSIFICATION_Retail Transmission Rate - Line and Transformation Connection Service Rate | Z96: Retail Transmission Rate - Line and Transformation Connection Service Rate
B98: MONTHLY RATES AND CHARGES - Regulatory Component | H98: 3_MRC_Reg | Z98: MONTHLY RATES AND CHARGES - Regulatory Component
B100: Wholesale Market Service Rate (WMS) - Not including CBR | D100: $/kWh | E100: 0.0032 | H100: 3_GENERAL SERVICE 50 TO 2,999 KW SERVICE CLASSIFICATION | I100: T | M100: 3_GENERAL SERVICE 50 TO 2,999 KW SERVICE CLASSIFICATION_WMSR | Z100: Wholesale Market Service Rate (WMS) - Not including CBR
B101: Capacity Based Recovery (CBR) - Applicable for Class B Customers | D101: $/kWh | E101: 0.0004 | H101: 3_GENERAL SERVICE 50 TO 2,999 KW SERVICE CLASSIFICATION | I101: B | M101: 3_GENERAL SERVICE 50 TO 2,999 KW SERVICE CLASSIFICATION_WMSR | Z101: Capacity Based Recovery (CBR) - Applicable for Class B Customers
B102: Rural or Remote Electricity Rate Protection Charge (RRRP) | D102: $/kWh | E102: 0.0021 | H102: 3_GENERAL SERVICE 50 TO 2,999 KW SERVICE CLASSIFICATION | I102: T | M102: 3_GENERAL SERVICE 50 TO 2,999 KW SERVICE CLASSIFICATION_RRRP | Z102: Rural or Remote Electricity Rate Protection Charge (RRRP)
B103: Standard Supply Service - Administrative Charge (if applicable) | D103: $ | E103: 0.25 | H103: 3_GENERAL SERVICE 50 TO 2,999 KW SERVICE CLASSIFICATION | I103: T | M103: 3_GENERAL SERVICE 50 TO 2,999 KW SERVICE CLASSIFICATION_SSS | Z103: Standard Supply Service - Administrative Charge (if applicable) | AS103: X
B104: GENERAL SERVICE 3,000 TO 4,999 KW SERVICE CLASSIFICATION | H104: 4_GENERAL SERVICE 3,000 TO 4,999 KW SERVICE CLASSIFICATION | AA104: GENERAL SERVICE 3,000 TO 4,999 KW SERVICE CLASSIFICATION
B105: This classification applies to a non-residential account whose average monthly maximum demand used for billing is equal to or greater than, or is forecasted to be equal to or greater than, 3,000 kW but less than 5,000 kW. Class A and Class B consumers are defined in accordance with O. Reg. 429/04. Further servicing details are available in the distributor's Conditions of Service. | H105: 4_GENERAL SERVICE 3,000 TO 4,999 KW SERVICE CLASSIFICATION | AA105: This classification applies to a non-residential account whose average monthly maximum demand used for billing is equal to or greater than, or is forecasted to be equal to or greater than, 3,000 kW but less than 5,000 kW. Class A and Class B consumers are defined in accordance with O. Reg. 429/04. Further servicing details are available in the distributor's Conditions of Service.
B107: APPLICATION | H107: 4_APPLICATION | AA107: APPLICATION
B109: The application of these rates and charges shall be in accordance with the Licence of the Distributor and any Code or Order of the Ontario Energy Board, and amendments thereto as approved by the Ontario Energy Board, which may be applicable to the administration of this schedule. | H109: 4_GENERAL SERVICE 3,000 TO 4,999 KW SERVICE CLASSIFICATION | AA109: The application of these rates and charges shall be in accordance with the Licence of the Distributor and any Code or Order of the Ontario Energy Board, and amendments thereto as approved by the Ontario Energy Board, which may be applicable to the administration of this schedule.
B111: No rates and charges for the distribution of electricity and charges to meet the costs of any work or service done or furnished for the purpose of the distribution of electricity shall be made except as permitted by this schedule, unless required by the Distributor’s Licence or a Code or Order of the Ontario Energy Board, and amendments thereto as approved by the Ontario Energy Board, or as specified herein. | H111: 4_GENERAL SERVICE 3,000 TO 4,999 KW SERVICE CLASSIFICATION | AA111: No rates and charges for the distribution of electricity and charges to meet the costs of any work or service done or furnished for the purpose of the distribution of electricity shall be made except as permitted by this schedule, unless required by the Distributor’s Licence or a Code or Order of the Ontario Energy Board, and amendments thereto as approved by the Ontario Energy Board, or as specified herein.
B113: Unless specifically noted, this schedule does not contain any charges for the electricity commodity, be it under the Regulated Price Plan, a contract with a retailer or the wholesale market price, as applicable. In addition, the charges in the MONTHLY RATES AND CHARGES - Regulatory Component of this schedule do not apply to a customer that is an embedded wholesale market participant. | H113: 4_GENERAL SERVICE 3,000 TO 4,999 KW SERVICE CLASSIFICATION | AA113: Unless specifically noted, this schedule does not contain any charges for the electricity commodity, be it under the Regulated Price Plan, a contract with a retailer or the wholesale market price, as applicable. In addition, the charges in the MONTHLY RATES AND CHARGES - Regulatory Component of this schedule do not apply to a customer that is an embedded wholesale market participant.
B115: The rate rider for the disposition of Global Adjustment is only applicable to non-RPP Class B customers. It is not applicable to WMP, customers that transitioned between Class A and Class B during the variance account accumulation period, or to customers that were in Class A for the entire period. Customers who transitioned are to be charged or refunded their share of the variance disposed through customer specific billing adjustments. This rate rider is to be consistently applied for the entire period to the sunset date of the rate rider. In addition, this rate rider is applicable to all new non-RPP Class B customers. | H115: 4_GENERAL SERVICE 3,000 TO 4,999 KW SERVICE CLASSIFICATION | AA115: The rate rider for the disposition of Global Adjustment is only applicable to non-RPP Class B customers. It is not applicable to WMP, customers that transitioned between Class A and Class B during the variance account accumulation period, or to customers that were in Class A for the entire period. Customers who transitioned are to be charged or refunded their share of the variance disposed through customer specific billing adjustments. This rate rider is to be consistently applied for the entire period to the sunset date of the rate rider. In addition, this rate rider is applicable to all new non-RPP Class B customers.
B116: It should be noted that this schedule does not list any charges, assessments, or credits that are required by law to be invoiced by a distributor and that are not subject to Ontario Energy Board approval, such as the Debt Retirement Charge, the Global Adjustment and the HST. | H116: 4_GENERAL SERVICE 3,000 TO 4,999 KW SERVICE CLASSIFICATION | AA116: It should be noted that this schedule does not list any charges, assessments, or credits that are required by law to be invoiced by a distributor and that are not subject to Ontario Energy Board approval, such as the Debt Retirement Charge, the Global Adjustment and the HST.
B118: MONTHLY RATES AND CHARGES - Delivery Component | H118: 4_MRC_Del | AA118: MONTHLY RATES AND CHARGES - Delivery Component
B120: Service Charge | D120: $ | E120: 685.86096 | H120: 4_GENERAL SERVICE 3,000 TO 4,999 KW SERVICE CLASSIFICATION | I120: A | M120: 4_GENERAL SERVICE 3,000 TO 4,999 KW SERVICE CLASSIFICATION_MSC | Z120: Service Charge
B121: Distribution Volumetric Rate | D121: $/kW | E121: 2.9277056 | H121: 4_GENERAL SERVICE 3,000 TO 4,999 KW SERVICE CLASSIFICATION | I121: A | M121: 4_GENERAL SERVICE 3,000 TO 4,999 KW SERVICE CLASSIFICATION_DVC | Z121: Distribution Volumetric Rate
B122: Low Voltage Service Rate | D122: $/kW | E122: 0.7433 | H122: 4_GENERAL SERVICE 3,000 TO 4,999 KW SERVICE CLASSIFICATION | I122: B | M122: 4_GENERAL SERVICE 3,000 TO 4,999 KW SERVICE CLASSIFICATION_LV | Z122: Low Voltage Service Rate
B123: Rate Rider for Disposition of Lost Revenue Adjustment Mechanism Variance Account (LRAMVA) (2017) - effective until April 30, 2018 | D123: $/kW | E123: -0.0774 | H123: 4_GENERAL SERVICE 3,000 TO 4,999 KW SERVICE CLASSIFICATION | I123: A | M123: 4_GENERAL SERVICE 3,000 TO 4,999 KW SERVICE CLASSIFICATION_LRAM | Q123: 2018-04-30 | Z123: Rate Rider for Disposition of Lost Revenue Adjustment Mechanism Variance Account (LRAMVA) (2017) - effective until April 30, 2018
B124: Retail Transmission Rate - Network Service Rate | D124: $/kW | E124: 2.6756 | H124: 4_GENERAL SERVICE 3,000 TO 4,999 KW SERVICE CLASSIFICATION | I124: C | M124: 4_GENERAL SERVICE 3,000 TO 4,999 KW SERVICE CLASSIFICATION_Retail Transmission Rate - Network Service Rate | Z124: Retail Transmission Rate - Network Service Rate
B125: Retail Transmission Rate - Line and Transformation Connection Service Rate | D125: $/kW | E125: 2.1604 | H125: 4_GENERAL SERVICE 3,000 TO 4,999 KW SERVICE CLASSIFICATION | I125: C | M125: 4_GENERAL SERVICE 3,000 TO 4,999 KW SERVICE CLASSIFICATION_Retail Transmission Rate - Line and Transformation Connection Service Rate | Z125: Retail Transmission Rate - Line and Transformation Connection Service Rate
B127: MONTHLY RATES AND CHARGES - Regulatory Component | H127: 4_MRC_Reg | Z127: MONTHLY RATES AND CHARGES - Regulatory Component
B129: Wholesale Market Service Rate (WMS) - Not including CBR | D129: $/kWh | E129: 0.0032 | H129: 4_GENERAL SERVICE 3,000 TO 4,999 KW SERVICE CLASSIFICATION | I129: T | M129: 4_GENERAL SERVICE 3,000 TO 4,999 KW SERVICE CLASSIFICATION_WMSR | Z129: Wholesale Market Service Rate (WMS) - Not including CBR
B130: Capacity Based Recovery (CBR) - Applicable for Class B Customers | D130: $/kWh | E130: 0.0004 | H130: 4_GENERAL SERVICE 3,000 TO 4,999 KW SERVICE CLASSIFICATION | I130: B | M130: 4_GENERAL SERVICE 3,000 TO 4,999 KW SERVICE CLASSIFICATION_WMSR | Z130: Capacity Based Recovery (CBR) - Applicable for Class B Customers
B131: Rural or Remote Electricity Rate Protection Charge (RRRP) | D131: $/kWh | E131: 0.0021 | H131: 4_GENERAL SERVICE 3,000 TO 4,999 KW SERVICE CLASSIFICATION | I131: T | M131: 4_GENERAL SERVICE 3,000 TO 4,999 KW SERVICE CLASSIFICATION_RRRP | Z131: Rural or Remote Electricity Rate Protection Charge (RRRP)
B132: Standard Supply Service - Administrative Charge (if applicable) | D132: $ | E132: 0.25 | H132: 4_GENERAL SERVICE 3,000 TO 4,999 KW SERVICE CLASSIFICATION | I132: T | M132: 4_GENERAL SERVICE 3,000 TO 4,999 KW SERVICE CLASSIFICATION_SSS | Z132: Standard Supply Service - Administrative Charge (if applicable) | AS132: X
B133: UNMETERED SCATTERED LOAD SERVICE CLASSIFICATION | H133: 5_UNMETERED SCATTERED LOAD SERVICE CLASSIFICATION | AA133: UNMETERED SCATTERED LOAD SERVICE CLASSIFICATION
B134: This classification applies to a non-residential account taking electricity at 750 volts or less whose average monthly maximum demand is less than, or is forecasted to be less than, 50kW and the consumption is unmetered. Such connections include cable TV power packs, bus shelters, telephone booths, traffic lights, railway crossings, etc.. The level of the consumption will be agreed to by the distributor and the customer, based on detailed manufacturer information/documentation with regard to electrical consumption of the unmetered load or periodic monitoring of actual consumption. Class B consumers are defined in accordance with O. Reg. 429/04. Further servicing details are available in the distributor's Conditions of Service. | H134: 5_UNMETERED SCATTERED LOAD SERVICE CLASSIFICATION | AA134: This classification applies to a non-residential account taking electricity at 750 volts or less whose average monthly maximum demand is less than, or is forecasted to be less than, 50kW and the consumption is unmetered. Such connections include cable TV power packs, bus shelters, telephone booths, traffic lights, railway crossings, etc.. The level of the consumption will be agreed to by the distributor and the customer, based on detailed manufacturer information/documentation with regard to electrical consumption of the unmetered load or periodic monitoring of actual consumption. Class B consumers are defined in accordance with O. Reg. 429/04. Further servicing details are available in the distributor's Conditions of Service.
B136: APPLICATION | H136: 5_APPLICATION | AA136: APPLICATION
B138: The application of these rates and charges shall be in accordance with the Licence of the Distributor and any Code or Order of the Ontario Energy Board, and amendments thereto as approved by the Ontario Energy Board, which may be applicable to the administration of this schedule. | H138: 5_UNMETERED SCATTERED LOAD SERVICE CLASSIFICATION | AA138: The application of these rates and charges shall be in accordance with the Licence of the Distributor and any Code or Order of the Ontario Energy Board, and amendments thereto as approved by the Ontario Energy Board, which may be applicable to the administration of this schedule.
B140: No rates and charges for the distribution of electricity and charges to meet the costs of any work or service done or furnished for the purpose of the distribution of electricity shall be made except as permitted by this schedule, unless required by the Distributor’s Licence or a Code or Order of the Ontario Energy Board, and amendments thereto as approved by the Ontario Energy Board, or as specified herein. | H140: 5_UNMETERED SCATTERED LOAD SERVICE CLASSIFICATION | AA140: No rates and charges for the distribution of electricity and charges to meet the costs of any work or service done or furnished for the purpose of the distribution of electricity shall be made except as permitted by this schedule, unless required by the Distributor’s Licence or a Code or Order of the Ontario Energy Board, and amendments thereto as approved by the Ontario Energy Board, or as specified herein.
B142: Unless specifically noted, this schedule does not contain any charges for the electricity commodity, be it under the Regulated Price Plan, a contract with a retailer or the wholesale market price, as applicable. In addition, the charges in the MONTHLY RATES AND CHARGES - Regulatory Component of this schedule do not apply to a customer that is an embedded wholesale market participant. | H142: 5_UNMETERED SCATTERED LOAD SERVICE CLASSIFICATION | AA142: Unless specifically noted, this schedule does not contain any charges for the electricity commodity, be it under the Regulated Price Plan, a contract with a retailer or the wholesale market price, as applicable. In addition, the charges in the MONTHLY RATES AND CHARGES - Regulatory Component of this schedule do not apply to a customer that is an embedded wholesale market participant.
B144: It should be noted that this schedule does not list any charges, assessments, or credits that are required by law to be invoiced by a distributor and that are not subject to Ontario Energy Board approval, such as the Debt Retirement Charge, the Global Adjustment and the HST. | H144: 5_UNMETERED SCATTERED LOAD SERVICE CLASSIFICATION | AA144: It should be noted that this schedule does not list any charges, assessments, or credits that are required by law to be invoiced by a distributor and that are not subject to Ontario Energy Board approval, such as the Debt Retirement Charge, the Global Adjustment and the HST.
B146: MONTHLY RATES AND CHARGES - Delivery Component | H146: 5_MRC_Del | AA146: MONTHLY RATES AND CHARGES - Delivery Component
B148: Service Charge (per customer) | D148: $ | E148: 6.91896 | H148: 5_UNMETERED SCATTERED LOAD SERVICE CLASSIFICATION | I148: A | M148: 5_UNMETERED SCATTERED LOAD SERVICE CLASSIFICATION_MSC | Z148: Service Charge (per customer)
B149: Distribution Volumetric Rate | D149: $/kWh | E149: 0.0108712 | H149: 5_UNMETERED SCATTERED LOAD SERVICE CLASSIFICATION | I149: A | M149: 5_UNMETERED SCATTERED LOAD SERVICE CLASSIFICATION_DVC | Z149: Distribution Volumetric Rate
B150: Low Voltage Service Rate | D150: $/kWh | E150: 0.0016 | H150: 5_UNMETERED SCATTERED LOAD SERVICE CLASSIFICATION | I150: B | M150: 5_UNMETERED SCATTERED LOAD SERVICE CLASSIFICATION_LV | Z150: Low Voltage Service Rate
B151: Rate Rider for Disposition of Lost Revenue Adjustment Mechanism Variance Account (LRAMVA) (2017) - effective until April 30, 2018 | D151: $/kWh | E151: -0.0005 | H151: 5_UNMETERED SCATTERED LOAD SERVICE CLASSIFICATION | I151: A | M151: 5_UNMETERED SCATTERED LOAD SERVICE CLASSIFICATION_LRAM | Q151: 2018-04-30 | Z151: Rate Rider for Disposition of Lost Revenue Adjustment Mechanism Variance Account (LRAMVA) (2017) - effective until April 30, 2018
B152: Retail Transmission Rate - Network Service Rate | D152: $/kWh | E152: 0.0059 | H152: 5_UNMETERED SCATTERED LOAD SERVICE CLASSIFICATION | I152: C | M152: 5_UNMETERED SCATTERED LOAD SERVICE CLASSIFICATION_Retail Transmission Rate - Network Service Rate | Z152: Retail Transmission Rate - Network Service Rate
B153: Retail Transmission Rate - Line and Transformation Connection Service Rate | D153: $/kWh | E153: 0.0047 | H153: 5_UNMETERED SCATTERED LOAD SERVICE CLASSIFICATION | I153: C | M153: 5_UNMETERED SCATTERED LOAD SERVICE CLASSIFICATION_Retail Transmission Rate - Line and Transformation Connection Service Rate | Z153: Retail Transmission Rate - Line and Transformation Connection Service Rate
B155: MONTHLY RATES AND CHARGES - Regulatory Component | H155: 5_MRC_Reg | Z155: MONTHLY RATES AND CHARGES - Regulatory Component
B157: Wholesale Market Service Rate (WMS) - Not including CBR | D157: $/kWh | E157: 0.0032 | H157: 5_UNMETERED SCATTERED LOAD SERVICE CLASSIFICATION | I157: T | M157: 5_UNMETERED SCATTERED LOAD SERVICE CLASSIFICATION_WMSR | Z157: Wholesale Market Service Rate (WMS) - Not including CBR
B158: Capacity Based Recovery (CBR) - Applicable for Class B Customers | D158: $/kWh | E158: 0.0004 | H158: 5_UNMETERED SCATTERED LOAD SERVICE CLASSIFICATION | I158: B | M158: 5_UNMETERED SCATTERED LOAD SERVICE CLASSIFICATION_WMSR | Z158: Capacity Based Recovery (CBR) - Applicable for Class B Customers
B159: Rural or Remote Electricity Rate Protection Charge (RRRP) | D159: $/kWh | E159: 0.0021 | H159: 5_UNMETERED SCATTERED LOAD SERVICE CLASSIFICATION | I159: T | M159: 5_UNMETERED SCATTERED LOAD SERVICE CLASSIFICATION_RRRP | Z159: Rural or Remote Electricity Rate Protection Charge (RRRP)
B160: Standard Supply Service - Administrative Charge (if applicable) | D160: $ | E160: 0.25 | H160: 5_UNMETERED SCATTERED LOAD SERVICE CLASSIFICATION | I160: T | M160: 5_UNMETERED SCATTERED LOAD SERVICE CLASSIFICATION_SSS | Z160: Standard Supply Service - Administrative Charge (if applicable) | AS160: X
B161: SENTINEL LIGHTING SERVICE CLASSIFICATION | H161: 6_SENTINEL LIGHTING SERVICE CLASSIFICATION | AA161: SENTINEL LIGHTING SERVICE CLASSIFICATION
B162: This classification refers to an account that is an unmetered lighting load supplied to a sentinel light where consumption isbased on connected load. Class B consumers are defined in accordance with O. Reg. 429/04. Further servicing details are available in the distributor's Conditions of Service. | H162: 6_SENTINEL LIGHTING SERVICE CLASSIFICATION | AA162: This classification refers to an account that is an unmetered lighting load supplied to a sentinel light where consumption isbased on connected load. Class B consumers are defined in accordance with O. Reg. 429/04. Further servicing details are available in the distributor's Conditions of Service.
B164: APPLICATION | H164: 6_APPLICATION | AA164: APPLICATION
B166: The application of these rates and charges shall be in accordance with the Licence of the Distributor and any Code or Order of the Ontario Energy Board, and amendments thereto as approved by the Ontario Energy Board, which may be applicable to the administration of this schedule. | H166: 6_SENTINEL LIGHTING SERVICE CLASSIFICATION | AA166: The application of these rates and charges shall be in accordance with the Licence of the Distributor and any Code or Order of the Ontario Energy Board, and amendments thereto as approved by the Ontario Energy Board, which may be applicable to the administration of this schedule.
B168: No rates and charges for the distribution of electricity and charges to meet the costs of any work or service done or furnished for the purpose of the distribution of electricity shall be made except as permitted by this schedule, unless required by the Distributor’s Licence or a Code or Order of the Ontario Energy Board, and amendments thereto as approved by the Ontario Energy Board, or as specified herein. | H168: 6_SENTINEL LIGHTING SERVICE CLASSIFICATION | AA168: No rates and charges for the distribution of electricity and charges to meet the costs of any work or service done or furnished for the purpose of the distribution of electricity shall be made except as permitted by this schedule, unless required by the Distributor’s Licence or a Code or Order of the Ontario Energy Board, and amendments thereto as approved by the Ontario Energy Board, or as specified herein.
B170: Unless specifically noted, this schedule does not contain any charges for the electricity commodity, be it under the Regulated Price Plan, a contract with a retailer or the wholesale market price, as applicable. In addition, the charges in the MONTHLY RATES AND CHARGES - Regulatory Component of this schedule do not apply to a customer that is an embedded wholesale market participant. | H170: 6_SENTINEL LIGHTING SERVICE CLASSIFICATION | AA170: Unless specifically noted, this schedule does not contain any charges for the electricity commodity, be it under the Regulated Price Plan, a contract with a retailer or the wholesale market price, as applicable. In addition, the charges in the MONTHLY RATES AND CHARGES - Regulatory Component of this schedule do not apply to a customer that is an embedded wholesale market participant.
B172: It should be noted that this schedule does not list any charges, assessments, or credits that are required by law to be invoiced by a distributor and that are not subject to Ontario Energy Board approval, such as the Debt Retirement Charge, the Global Adjustment and the HST. | H172: 6_SENTINEL LIGHTING SERVICE CLASSIFICATION | AA172: It should be noted that this schedule does not list any charges, assessments, or credits that are required by law to be invoiced by a distributor and that are not subject to Ontario Energy Board approval, such as the Debt Retirement Charge, the Global Adjustment and the HST.
B174: MONTHLY RATES AND CHARGES - Delivery Component | H174: 6_MRC_Del | AA174: MONTHLY RATES AND CHARGES - Delivery Component
B176: Service Charge (per connection) | D176: $ | E176: 4.73456 | H176: 6_SENTINEL LIGHTING SERVICE CLASSIFICATION | I176: A | M176: 6_SENTINEL LIGHTING SERVICE CLASSIFICATION_MSC | Z176: Service Charge (per connection)
B177: Distribution Volumetric Rate | D177: $/kW | E177: 12.520676 | H177: 6_SENTINEL LIGHTING SERVICE CLASSIFICATION | I177: A | M177: 6_SENTINEL LIGHTING SERVICE CLASSIFICATION_DVC | Z177: Distribution Volumetric Rate
B178: Low Voltage Service Rate | D178: $/kW | E178: 0.4974 | H178: 6_SENTINEL LIGHTING SERVICE CLASSIFICATION | I178: B | M178: 6_SENTINEL LIGHTING SERVICE CLASSIFICATION_LV | Z178: Low Voltage Service Rate
B179: Rate Rider for Disposition of Lost Revenue Adjustment Mechanism Variance Account (LRAMVA) (2017) - effective until April 30, 2018 | D179: $/kW | E179: -0.3623 | H179: 6_SENTINEL LIGHTING SERVICE CLASSIFICATION | I179: A | M179: 6_SENTINEL LIGHTING SERVICE CLASSIFICATION_LRAM | Q179: 2018-04-30 | Z179: Rate Rider for Disposition of Lost Revenue Adjustment Mechanism Variance Account (LRAMVA) (2017) - effective until April 30, 2018
B180: Retail Transmission Rate - Network Service Rate | D180: $/kW | E180: 1.8133 | H180: 6_SENTINEL LIGHTING SERVICE CLASSIFICATION | I180: C | M180: 6_SENTINEL LIGHTING SERVICE CLASSIFICATION_Retail Transmission Rate - Network Service Rate | Z180: Retail Transmission Rate - Network Service Rate
B181: Retail Transmission Rate - Line and Transformation Connection Service Rate | D181: $/kW | E181: 1.4457 | H181: 6_SENTINEL LIGHTING SERVICE CLASSIFICATION | I181: C | M181: 6_SENTINEL LIGHTING SERVICE CLASSIFICATION_Retail Transmission Rate - Line and Transformation Connection Service Rate | Z181: Retail Transmission Rate - Line and Transformation Connection Service Rate
B183: MONTHLY RATES AND CHARGES - Regulatory Component | H183: 6_MRC_Reg | Z183: MONTHLY RATES AND CHARGES - Regulatory Component
B185: Wholesale Market Service Rate (WMS) - Not including CBR | D185: $/kWh | E185: 0.0032 | H185: 6_SENTINEL LIGHTING SERVICE CLASSIFICATION | I185: T | M185: 6_SENTINEL LIGHTING SERVICE CLASSIFICATION_WMSR | Z185: Wholesale Market Service Rate (WMS) - Not including CBR
B186: Capacity Based Recovery (CBR) - Applicable for Class B Customers | D186: $/kWh | E186: 0.0004 | H186: 6_SENTINEL LIGHTING SERVICE CLASSIFICATION | I186: B | M186: 6_SENTINEL LIGHTING SERVICE CLASSIFICATION_WMSR | Z186: Capacity Based Recovery (CBR) - Applicable for Class B Customers
B187: Rural or Remote Electricity Rate Protection Charge (RRRP) | D187: $/kWh | E187: 0.0021 | H187: 6_SENTINEL LIGHTING SERVICE CLASSIFICATION | I187: T | M187: 6_SENTINEL LIGHTING SERVICE CLASSIFICATION_RRRP | Z187: Rural or Remote Electricity Rate Protection Charge (RRRP)
B188: Standard Supply Service - Administrative Charge (if applicable) | D188: $ | E188: 0.25 | H188: 6_SENTINEL LIGHTING SERVICE CLASSIFICATION | I188: T | M188: 6_SENTINEL LIGHTING SERVICE CLASSIFICATION_SSS | Z188: Standard Supply Service - Administrative Charge (if applicable) | AS188: X
B189: STREET LIGHTING SERVICE CLASSIFICATION | H189: 7_STREET LIGHTING SERVICE CLASSIFICATION | AA189: STREET LIGHTING SERVICE CLASSIFICATION
B190: This classification applies to an account for roadway lighting with a Municipality, Regional Municipality, Ministry of Transportation and private roadway lighting, controlled by photo cells. The consumption of these customers will be based on the calculated connected load times the required lighting times established in the approved Ontario Energy Board street lighting load shape template. Class B consumers are defined in accordance with O. Reg. 429/04. Further servicing details are available in the distributor's Conditions of Service. | H190: 7_STREET LIGHTING SERVICE CLASSIFICATION | AA190: This classification applies to an account for roadway lighting with a Municipality, Regional Municipality, Ministry of Transportation and private roadway lighting, controlled by photo cells. The consumption of these customers will be based on the calculated connected load times the required lighting times established in the approved Ontario Energy Board street lighting load shape template. Class B consumers are defined in accordance with O. Reg. 429/04. Further servicing details are available in the distributor's Conditions of Service.
B192: APPLICATION | H192: 7_APPLICATION | AA192: APPLICATION
B194: The application of these rates and charges shall be in accordance with the Licence of the Distributor and any Code or Order of the Ontario Energy Board, and amendments thereto as approved by the Ontario Energy Board, which may be applicable to the administration of this schedule. | H194: 7_STREET LIGHTING SERVICE CLASSIFICATION | AA194: The application of these rates and charges shall be in accordance with the Licence of the Distributor and any Code or Order of the Ontario Energy Board, and amendments thereto as approved by the Ontario Energy Board, which may be applicable to the administration of this schedule.
B196: No rates and charges for the distribution of electricity and charges to meet the costs of any work or service done or furnished for the purpose of the distribution of electricity shall be made except as permitted by this schedule, unless required by the Distributor’s Licence or a Code or Order of the Ontario Energy Board, and amendments thereto as approved by the Ontario Energy Board, or as specified herein. | H196: 7_STREET LIGHTING SERVICE CLASSIFICATION | AA196: No rates and charges for the distribution of electricity and charges to meet the costs of any work or service done or furnished for the purpose of the distribution of electricity shall be made except as permitted by this schedule, unless required by the Distributor’s Licence or a Code or Order of the Ontario Energy Board, and amendments thereto as approved by the Ontario Energy Board, or as specified herein.
B198: Unless specifically noted, this schedule does not contain any charges for the electricity commodity, be it under the Regulated Price Plan, a contract with a retailer or the wholesale market price, as applicable. In addition, the charges in the MONTHLY RATES AND CHARGES - Regulatory Component of this schedule do not apply to a customer that is an embedded wholesale market participant. | H198: 7_STREET LIGHTING SERVICE CLASSIFICATION | AA198: Unless specifically noted, this schedule does not contain any charges for the electricity commodity, be it under the Regulated Price Plan, a contract with a retailer or the wholesale market price, as applicable. In addition, the charges in the MONTHLY RATES AND CHARGES - Regulatory Component of this schedule do not apply to a customer that is an embedded wholesale market participant.
B200: It should be noted that this schedule does not list any charges, assessments, or credits that are required by law to be invoiced by a distributor and that are not subject to Ontario Energy Board approval, such as the Debt Retirement Charge, the Global Adjustment and the HST. | H200: 7_STREET LIGHTING SERVICE CLASSIFICATION | AA200: It should be noted that this schedule does not list any charges, assessments, or credits that are required by law to be invoiced by a distributor and that are not subject to Ontario Energy Board approval, such as the Debt Retirement Charge, the Global Adjustment and the HST.
B202: MONTHLY RATES AND CHARGES - Delivery Component | H202: 7_MRC_Del | AA202: MONTHLY RATES AND CHARGES - Delivery Component
B204: Service Charge (per connection) | D204: $ | E204: 1.9304 | H204: 7_STREET LIGHTING SERVICE CLASSIFICATION | I204: A | M204: 7_STREET LIGHTING SERVICE CLASSIFICATION_MSC | Z204: Service Charge (per connection)
B205: Distribution Volumetric Rate | D205: $/kW | E205: 9.3109288 | H205: 7_STREET LIGHTING SERVICE CLASSIFICATION | I205: A | M205: 7_STREET LIGHTING SERVICE CLASSIFICATION_DVC | Z205: Distribution Volumetric Rate
B206: Low Voltage Service Rate | D206: $/kW | E206: 0.4872 | H206: 7_STREET LIGHTING SERVICE CLASSIFICATION | I206: B | M206: 7_STREET LIGHTING SERVICE CLASSIFICATION_LV | Z206: Low Voltage Service Rate
B207: Rate Rider for Disposition of Lost Revenue Adjustment Mechanism Variance Account (LRAMVA) (2017) - effective until April 30, 2018 | D207: $/kW | E207: -0.4462 | H207: 7_STREET LIGHTING SERVICE CLASSIFICATION | I207: A | M207: 7_STREET LIGHTING SERVICE CLASSIFICATION_LRAM | Q207: 2018-04-30 | Z207: Rate Rider for Disposition of Lost Revenue Adjustment Mechanism Variance Account (LRAMVA) (2017) - effective until April 30, 2018
B208: Retail Transmission Rate - Network Service Rate | D208: $/kW | E208: 1.8042 | H208: 7_STREET LIGHTING SERVICE CLASSIFICATION | I208: C | M208: 7_STREET LIGHTING SERVICE CLASSIFICATION_Retail Transmission Rate - Network Service Rate | Z208: Retail Transmission Rate - Network Service Rate
B209: Retail Transmission Rate - Line and Transformation Connection Service Rate | D209: $/kW | E209: 1.4161 | H209: 7_STREET LIGHTING SERVICE CLASSIFICATION | I209: C | M209: 7_STREET LIGHTING SERVICE CLASSIFICATION_Retail Transmission Rate - Line and Transformation Connection Service Rate | Z209: Retail Transmission Rate - Line and Transformation Connection Service Rate
B211: MONTHLY RATES AND CHARGES - Regulatory Component | H211: 7_MRC_Reg | Z211: MONTHLY RATES AND CHARGES - Regulatory Component
B213: Wholesale Market Service Rate (WMS) - Not including CBR | D213: $/kWh | E213: 0.0032 | H213: 7_STREET LIGHTING SERVICE CLASSIFICATION | I213: T | M213: 7_STREET LIGHTING SERVICE CLASSIFICATION_WMSR | Z213: Wholesale Market Service Rate (WMS) - Not including CBR
B214: Capacity Based Recovery (CBR) - Applicable for Class B Customers | D214: $/kWh | E214: 0.0004 | H214: 7_STREET LIGHTING SERVICE CLASSIFICATION | I214: B | M214: 7_STREET LIGHTING SERVICE CLASSIFICATION_WMSR | Z214: Capacity Based Recovery (CBR) - Applicable for Class B Customers
B215: Rural or Remote Electricity Rate Protection Charge (RRRP) | D215: $/kWh | E215: 0.0021 | H215: 7_STREET LIGHTING SERVICE CLASSIFICATION | I215: T | M215: 7_STREET LIGHTING SERVICE CLASSIFICATION_RRRP | Z215: Rural or Remote Electricity Rate Protection Charge (RRRP)
B216: Standard Supply Service - Administrative Charge (if applicable) | D216: $ | E216: 0.25 | H216: 7_STREET LIGHTING SERVICE CLASSIFICATION | I216: T | M216: 7_STREET LIGHTING SERVICE CLASSIFICATION_SSS | Z216: Standard Supply Service - Administrative Charge (if applicable) | AS216: X
B217: microFIT SERVICE CLASSIFICATION | H217: 8_microFIT SERVICE CLASSIFICATION | AA217: microFIT SERVICE CLASSIFICATION
B218: This classification applies to an electricity generation facility contracted under the Independent Electricity System Operator’s microFIT program and connected to the distributor's distribution system. Further servicing details are available in the distributor's Conditions of Service. | H218: 8_microFIT SERVICE CLASSIFICATION | AA218: This classification applies to an electricity generation facility contracted under the Independent Electricity System Operator’s microFIT program and connected to the distributor's distribution system. Further servicing details are available in the distributor's Conditions of Service.
B220: APPLICATION | H220: 8_APPLICATION | AA220: APPLICATION
B222: The application of these rates and charges shall be in accordance with the Licence of the Distributor and any Code or Order of the Ontario Energy Board, and amendments thereto as approved by the Ontario Energy Board, which may be applicable to the administration of this schedule. | H222: 8_microFIT SERVICE CLASSIFICATION | AA222: The application of these rates and charges shall be in accordance with the Licence of the Distributor and any Code or Order of the Ontario Energy Board, and amendments thereto as approved by the Ontario Energy Board, which may be applicable to the administration of this schedule.
B224: No rates and charges for the distribution of electricity and charges to meet the costs of any work or service done or furnished for the purpose of the distribution of electricity shall be made except as permitted by this schedule, unless required by the Distributor’s Licence or a Code or Order of the Ontario Energy Board, and amendments thereto as approved by the Ontario Energy Board, or as specified herein. | H224: 8_microFIT SERVICE CLASSIFICATION | AA224: No rates and charges for the distribution of electricity and charges to meet the costs of any work or service done or furnished for the purpose of the distribution of electricity shall be made except as permitted by this schedule, unless required by the Distributor’s Licence or a Code or Order of the Ontario Energy Board, and amendments thereto as approved by the Ontario Energy Board, or as specified herein.
B226: Unless specifically noted, this schedule does not contain any charges for the electricity commodity, be it under the Regulated Price Plan, a contract with a retailer or the wholesale market price, as applicable. | H226: 8_microFIT SERVICE CLASSIFICATION | AA226: Unless specifically noted, this schedule does not contain any charges for the electricity commodity, be it under the Regulated Price Plan, a contract with a retailer or the wholesale market price, as applicable.
B228: It should be noted that this schedule does not list any charges, assessments, or credits that are required by law to be invoiced by a distributor and that are not subject to Ontario Energy Board approval, such as the Debt Retirement Charge, the Global Adjustment and the HST. | H228: 8_microFIT SERVICE CLASSIFICATION | AA228: It should be noted that this schedule does not list any charges, assessments, or credits that are required by law to be invoiced by a distributor and that are not subject to Ontario Energy Board approval, such as the Debt Retirement Charge, the Global Adjustment and the HST.
B230: MONTHLY RATES AND CHARGES - Delivery Component | H230: 8_MRC_Del | AA230: MONTHLY RATES AND CHARGES - Delivery Component
B232: Service Charge | D232: $ | E232: 5.4 | H232: 8_microFIT SERVICE CLASSIFICATION | I232: A | M232: 8_microFIT SERVICE CLASSIFICATION_MSC | Z232: Service Charge
AS233: X
B234: ALLOWANCES | H234: Centre Wellington Hydro Ltd._ALLOWANCES
B235: Transformer Allowance for Ownership - per kW of billing demand/month | D235: $/kW | E235: -0.6 | Z235: Transformer Allowance for Ownership - per kW of billing demand/month
B236: Primary Metering Allowance for Transformer Losses - applied to measured demand & energy | D236: % | E236: -1 | I236: T | Z236: Primary Metering Allowance for Transformer Losses - applied to measured demand & energy | AS236: X
B237: SPECIFIC SERVICE CHARGES | H237: Centre Wellington Hydro Ltd._SSC
B238: The application of these rates and charges shall be in accordance with the Licence of the Distributor and any Code or Order of the Ontario Energy Board, and amendments thereto as approved by the Ontario Energy Board, which may be applicable to the administration of this schedule. | AA238: The application of these rates and charges shall be in accordance with the Licence of the Distributor and any Code or Order of the Ontario Energy Board, and amendments thereto as approved by the Ontario Energy Board, which may be applicable to the administration of this schedule.
B240: No charges to meet the costs of any work or service done or furnished for the purpose of the distribution of electricity shall be made except as permitted by this schedule, unless required by the Distributor’s Licence or a Code or Order of the Ontario Energy Board, and amendments thereto as approved by the Ontario Energy Board, or as specified herein. | AA240: No charges to meet the costs of any work or service done or furnished for the purpose of the distribution of electricity shall be made except as permitted by this schedule, unless required by the Distributor’s Licence or a Code or Order of the Ontario Energy Board, and amendments thereto as approved by the Ontario Energy Board, or as specified herein.
B242: It should be noted that this schedule does not list any charges, assessments, or credits that are required by law to be invoiced by a distributor and that are not subject to Ontario Energy Board approval, such as the Debt Retirement Charge, the Global Adjustment and the HST. | AA242: It should be noted that this schedule does not list any charges, assessments, or credits that are required by law to be invoiced by a distributor and that are not subject to Ontario Energy Board approval, such as the Debt Retirement Charge, the Global Adjustment and the HST.
B244: Customer Administration | H244: Centre Wellington Hydro Ltd._CA
B245: Arrears certificate | D245: $ | E245: 15 | Z245: Arrears certificate
B246: Statement of account | D246: $ | E246: 15 | Z246: Statement of account
B247: Pulling post dated cheques | D247: $ | E247: 15 | Z247: Pulling post dated cheques
B248: Duplicate invoices for previous billing | D248: $ | E248: 15 | Z248: Duplicate invoices for previous billing
B249: Request for other billing information | D249: $ | E249: 15 | Z249: Request for other billing information
B250: Easement Letter | D250: $ | E250: 15 | Z250: Easement Letter
B251: Income tax letter | D251: $ | E251: 15 | Z251: Income tax letter
B252: Notification charge | D252: $ | E252: 15 | Z252: Notification charge
B253: Account history | D253: $ | E253: 15 | Z253: Account history
B254: Credit reference/credit check (plus credit agency costs) | D254: $ | E254: 15 | Z254: Credit reference/credit check (plus credit agency costs)
B255: Returned Cheque (plus bank charges) | D255: $ | E255: 15 | Z255: Returned Cheque (plus bank charges)
B256: Charge to certify cheque | D256: $ | E256: 15 | Z256: Charge to certify cheque
B257: Legal letter charge | D257: $ | E257: 15 | Z257: Legal letter charge
B258: Account set up charge/change of occupancy charge (plus credit agency costs if applicable) | D258: $ | E258: 30 | Z258: Account set up charge/change of occupancy charge (plus credit agency costs if applicable)
B259: Special meter reads | D259: $ | E259: 30 | Z259: Special meter reads
B260: Meter dispute charge plus Measurement Canada fees (if meter found correct) | D260: $ | E260: 30 | Z260: Meter dispute charge plus Measurement Canada fees (if meter found correct)
B262: Non-Payment of Account | H262: Centre Wellington Hydro Ltd._NPoA
B263: Late Payment - per month | D263: % | E263: 1.5 | Z263: Late Payment - per month
B264: Late Payment - per annum | D264: % | E264: 19.56 | Z264: Late Payment - per annum
B265: Collection of account charge - no disconnection | D265: $ | E265: 30 | Z265: Collection of account charge - no disconnection
B266: Collection of account charge - no disconnection - after regular hours | D266: $ | E266: 165 | Z266: Collection of account charge - no disconnection - after regular hours
B267: Disconnect/Reconnect at Meter - during regular hours | D267: $ | E267: 65 | Z267: Disconnect/Reconnect at Meter - during regular hours
B268: Disconnect/Reconnect at Meter - after regular hours | D268: $ | E268: 185 | Z268: Disconnect/Reconnect at Meter - after regular hours
B269: Disconnect/Reconnect at Pole - during regular hours | D269: $ | E269: 185 | Z269: Disconnect/Reconnect at Pole - during regular hours
B270: Disconnect/Reconnect at Pole - after regular hours | D270: $ | E270: 415 | Z270: Disconnect/Reconnect at Pole - after regular hours
B271: Install/Remove Load Control Device - during regular hours | D271: $ | E271: 65 | Z271: Install/Remove Load Control Device - during regular hours
B272: Install/Remove Load Control Device - after regular hours | D272: $ | E272: 185 | Z272: Install/Remove Load Control Device - after regular hours
B274: Other
B275: Service call - customer owned equipment | D275: $ | E275: 30 | Z275: Service call - customer owned equipment
B276: Service call - after regular hours | D276: $ | E276: 160 | Z276: Service call - after regular hours
B277: Temporary service - install & remove - overhead - no transformer | D277: $ | E277: 500 | Z277: Temporary service - install & remove - overhead - no transformer
B278: Temporary service - install & remove - underground - no transformer | D278: $ | E278: 300 | Z278: Temporary service - install & remove - underground - no transformer
B279: Temporary service - install & remove - overhead - with transformer | D279: $ | E279: 1000 | Z279: Temporary service - install & remove - overhead - with transformer
B280: Specific charge for access to the power poles - $/pole/year | D280: $ | E280: 22.35 | Z280: Specific charge for access to the power poles - $/pole/year
B281: (with the exception of wireless attachments) | Z281: (with the exception of wireless attachments) | AS281: X
B282: RETAIL SERVICE CHARGES (if applicable) | H282: Centre Wellington Hydro Ltd._RSC
B284: The application of these rates and charges shall be in accordance with the Licence of the Distributor and any Code or Order of the Ontario Energy Board, and amendments thereto as approved by the Ontario Energy Board, which may be applicable to the administration of this schedule. | AA284: The application of these rates and charges shall be in accordance with the Licence of the Distributor and any Code or Order of the Ontario Energy Board, and amendments thereto as approved by the Ontario Energy Board, which may be applicable to the administration of this schedule.
B286: No rates and charges for the distribution of electricity and charges to meet the costs of any work or service done or furnished for the purpose of the distribution of electricity shall be made except as permitted by this schedule, unless required by the Distributor’s Licence or a Code or Order of the Ontario Energy Board, and amendments thereto as approved by the Ontario Energy Board, or as specified herein. | AA286: No rates and charges for the distribution of electricity and charges to meet the costs of any work or service done or furnished for the purpose of the distribution of electricity shall be made except as permitted by this schedule, unless required by the Distributor’s Licence or a Code or Order of the Ontario Energy Board, and amendments thereto as approved by the Ontario Energy Board, or as specified herein.
... 21 more rows

Sheet 2016 List (hidden)
A1: Algoma Power Inc. | B1: HHPNS717 | I1: RESIDENTIAL SERVICE CLASSIFICATION | Q1: RESIDENTIAL SERVICE CLASSIFICATION | X1: 8 | Y1: 0
A2: Atikokan Hydro Inc. | B2: KSUYD122 | C2: Fort Erie Service Area | D2: X | I2: GENERAL SERVICE LESS THAN 50 kW SERVICE CLASSIFICATION | Q2: GENERAL SERVICE LESS THAN 50 kW SERVICE CLASSIFICATION | AA2: Retail Transmission Rate - Line and Transformation Connection Service Rate
A3: Bluewater Power Distribution Corporation | B3: WKBSV849 | C3: Eastern Ontario Power Service Area | D3: X | I3: GENERAL SERVICE 50 TO 2,999 KW SERVICE CLASSIFICATION | Q3: GENERAL SERVICE 50 TO 2,999 KW SERVICE CLASSIFICATION | AA3: Retail Transmission Rate - Line and Transformation Connection Service Rate - < 1,000 kW
A4: Brantford Power Inc. | B4: GQQHM388 | C4: Port Colborne Service Area | D4: X | I4: GENERAL SERVICE 3,000 TO 4,999 KW SERVICE CLASSIFICATION | Q4: GENERAL SERVICE 3,000 TO 4,999 KW SERVICE CLASSIFICATION | AA4: Retail Transmission Rate - Line and Transformation Connection Service Rate - Interval Metered
A5: Burlington Hydro Inc. | B5: SFXZP935 | D5: X | I5: UNMETERED SCATTERED LOAD SERVICE CLASSIFICATION | Q5: UNMETERED SCATTERED LOAD SERVICE CLASSIFICATION | AA5: Retail Transmission Rate - Line and Transformation Connection Service Rate - Interval Metered (1,000 to 4,999 kW)
A6: Canadian Niagara Power Inc. | B6: KQEEH473 | C6: Former Chatham-Kent Hydro Service Area | D6: X | I6: SENTINEL LIGHTING SERVICE CLASSIFICATION | Q6: SENTINEL LIGHTING SERVICE CLASSIFICATION | AA6: Retail Transmission Rate - Line and Transformation Connection Service Rate - Interval Metered < 1,000 kW
A7: Centre Wellington Hydro Ltd. | B7: OARZC118 | C7: Strathroy, Mount Brydges & Parkhill Service Area | D7: X | I7: STREET LIGHTING SERVICE CLASSIFICATION | Q7: STREET LIGHTING SERVICE CLASSIFICATION | AA7: Retail Transmission Rate - Line and Transformation Connection Service Rate - Interval Metered > 1,000 kW
A8: Chapleau Public Utilities Corporation | B8: WKBSV849 | C8: Dutton Service Area | D8: X | I8: microFIT SERVICE CLASSIFICATION | AA8: Retail Transmission Rate - Line Connection Service Rate
A9: Collus PowerStream Corp. | B9: FUIJX538 | AA9: Retail Transmission Rate - Transformation Connection Service Rate
A10: Cooperative Hydro Embrun Inc. | B10: HJHBH994 | C10: Newbury Service Area | D10: X
A11: E.L.K. Energy Inc. | B11: NJYBW716
A12: Energy+ Inc. | B12: QXHJU641
A13: Enersource Hydro Mississauga Inc. | B13: AVXSO594 | C13: For Former Parry Sound Power Service Area | D13: X
A14: Entegrus Powerlines Inc. | B14: TVKSH414 | C14: Except for the Former Parry Sound Power Service Area | D14: X
A15: EnWin Utilities Ltd. | B15: DUISI693 | D15: X
A16: Erie Thames Powerlines Corporation | B16: JMNNR431 | C16: For Former Brant County Power Service Area
A17: Espanola Regional Hydro Distribution Corporation | B17: GQQHM388 | C17: For Former Cambridge and North Dumfries Hydro Service Area | D17: X
A18: Essex Powerlines Corporation | B18: QHCKN852
A19: Festival Hydro Inc. | B19: PWKJP953 | D19: X
A20: Fort Frances Power Corporation | B20: ADICB565 | C20: Former Haldimand County Hydro Inc. Service Area | AA20: Retail Transmission Rate - Network Service Rate
A21: Greater Sudbury Hydro Inc. | B21: YEOQG654 | C21: Former Norfolk Power Distribution Inc. Service Area | AA21: Retail Transmission Rate - Network Service Rate - < 1,000 kW
A22: Grimsby Power Incorporated | B22: LRECV427 | C22: Former Woodstock Hydro Services Inc. Service Area | AA22: Retail Transmission Rate - Network Service Rate - Interval Metered
A23: Guelph Hydro Electric Systems Inc. | B23: PQZCY963 | AA23: Retail Transmission Rate - Network Service Rate - Interval Metered (1,000 to 4,999 kW)
A24: Halton Hills Hydro Inc. | B24: KTCNY552 | D24: X | AA24: Retail Transmission Rate - Network Service Rate - Interval Metered < 1,000 kW
A25: Hearst Power Distribution Company Ltd. | B25: YEPCI143 | AA25: Retail Transmission Rate - Network Service Rate - Interval Metered > 1,000 kW
A26: Horizon Utilities Corporation | B26: GRHTW113
A27: Hydro 2000 Inc. | B27: GTLBW445
A28: Hydro Hawkesbury Inc. | B28: HHPNS717 | D28: X
A29: Hydro One Brampton Networks Inc. | B29: NJYBW716
A30: Hydro One Networks Inc. | B30: GMGHU415
A31: Hydro Ottawa Limited | B31: YTPWF351 | D31: X
A32: InnPower Corporation | B32: SFXZP935
A33: Kenora Hydro Electric Corporation Ltd. | B33: YCYKQ642 | D33: X
A34: Kingston Hydro Corporation | B34: ADZFM459 | D34: X
A35: Kitchener-Wilmot Hydro Inc. | B35: RVWKN794
A36: Lakefront Utilities Inc. | B36: XCFPH269
A37: Lakeland Power Distribution Ltd. | B37: KESKM585 | D37: X
A38: London Hydro Inc. | B38: MQFNL784 | D38: X
A39: Midland Power Utility Corporation | B39: JEGGW178
A40: Milton Hydro Distribution Inc. | B40: FNDHH648
A41: Newmarket - Tay Power Distribution Ltd. | B41: PTREM828
A42: Niagara Peninsula Energy Inc. | B42: TXKTT167
A43: Niagara-on-the-Lake Hydro Inc. | B43: UBBYF452
A44: North Bay Hydro Distribution Limited | B44: NSBED625 | D44: X
A45: Northern Ontario Wires Inc. | B45: CPEFQ593
A46: Oakville Hydro Electricity Distribution Inc. | B46: MLWYG784 | D46: X
A47: Orangeville Hydro Limited | B47: ZHKLA874 | D47: X
A48: Orillia Power Distribution Corporation | B48: YLJHT264 | D48: X
A49: Oshawa PUC Networks Inc. | B49: JKBZG525
A50: Ottawa River Power Corporation | B50: YLCEC559
A51: Peterborough Distribution Incorporated | B51: OARZC118 | D51: X
A52: PowerStream Inc. | B52: KQEEH473 | D52: X
A53: PUC Distribution Inc. | B53: NHKJF259
A54: Renfrew Hydro Inc. | B54: SLRXO177
A55: Rideau St. Lawrence Distribution Inc. | B55: SLRXO178
A56: Sioux Lookout Hydro Inc. | B56: UIFEM157 | D56: X
A57: St. Thomas Energy Inc. | B57: RUZIU984 | D57: X
A58: Thunder Bay Hydro Electricity Distribution Inc. | B58: HJHBH994 | D58: X
A59: Tillsonburg Hydro Inc. | B59: AMZEN437
A60: Toronto Hydro-Electric System Limited | B60: ACEVX242 | D60: X
A61: Veridian Connections Inc. | B61: PTLUC812
A62: Wasaga Distribution Inc. | B62: QDKIF127 | D62: X
A63: Waterloo North Hydro Inc. | B63: OLIUU862 | D63: X
A64: Welland Hydro-Electric System Corp. | B64: NIOJF461
A65: Wellington North Power Inc. | B65: ZYZFO848
A66: West Coast Huron Energy Inc. | B66: ASEGZ471
A67: Westario Power Inc. | B67: IOKHC383 | D67: X
A68: Whitby Hydro Electric Corporation | B68: DSPWZ318
D69: X
D72: X
D73: X

Sheet 3. Regulatory Charges
B12: Update the following rates if an OEB Decision has been issued at the time of completing this application
B13: Regulatory Charges | D13: Proposed
B14: Wholesale Market Service Rate (WMS) - not including CBR | C14: $/kWh | D14: 0.0032
B15: Capacity Based Recovery (CBR) - Applicable for Class B Customers | C15: $/kWh | D15: 0.0004
B16: Rural or Remote Electricity Rate Protection Charge (RRRP) | C16: $/kWh | D16: 0.0003
B17: Standard Supply Service - Administrative Charge (if applicable) | C17: $ | D17: 0.25
B18: Ontario Electricity Support Program (OESP) | C18: $/kWh | D18: 0
B21: Time-of-Use RPP Prices
B22: As of | C22: 2017-07-01
B23: Off-Peak | C23: $/kWh | D23: 0.065
B24: Mid-Peak | C24: $/kWh | D24: 0.095
B25: On-Peak | C25: $/kWh | D25: 0.132
B28: Debt Retirement Charge (DRC)
B29: Debt Retirement Charge (DRC) | C29: $/kWh | D29: 0.007 | E29: If your utility's DRC differs from the value in Cell D29, please update this value.

Sheet 4.2-TS Tariff Schedule
CG1: File Number: | CH1: ='1. Information Sheet'!F18 -> EB-2017-0032 | CQ1: ='1. Information Sheet'!F18 -> EB-2017-0032 | DA1: TRUE
CG2: Exhibit:
B3: Macro has been activated
B9: For each class, Applicants are required to copy and paste the class descriptions (located directly under the class name) and the description of the applicability of those rates (description is found under the class name and directly under the word "APPLICATION"). By using the drop-down lists located under the column labeled "Rate Description", please select the descriptions of the rates and charges that BEST MATCHES the descriptions on your most recent OEB-Approved Tariff of Rates and Charges. If the description is not found in the drop-down list, please enter the description in the green shaded cells under the correct class exactly as it appears on the tariff. Please do not enter more than one "Service Charge" for each class for which a base monthly fixed charge applies. All rate rider descriptions should begin with "Rate Rider for...". A value must be entered in Column I for every tariff item. Available values are “A”, “B”, “C” and “T”. These correspond with sub-totals A, B, C and the total bill, and determine where specific rates and rate rider charges appear on the bill impacts page. Please see General Tip #8 starting on Page 5 of the instructions document for a brief explanation of the different sub-totals categories.
B10: Select the appropriate rate classes as they appear on your most recent OEB-Approved Tariff of Rates and Charges, including the microFIT Class. | CD10: Click this check box if all input is correct
B11: How many classes are listed on your most recent OEB-Approved Tariff of Rates and Charges? | E11: 8
F12: X | G12: Atikokan Hydro Inc._Start | H12: Atikokan Hydro Inc. | J12: 6
B14: Identify Your Rate Classes in the Blue Cells below. Rate class names can be selected from the pull-dwon menu. Please ensure that a rate class is assigned to each shaded cell.
B15: List of Rate Classes | CD15: Linked to: | CG15: Add before:
B16: RESIDENTIAL SERVICE CLASSIFICATION
B17: GENERAL SERVICE LESS THAN 50 kW SERVICE CLASSIFICATION | AS17: X
B18: GENERAL SERVICE 50 TO 2,999 KW SERVICE CLASSIFICATION | AA18: GENERAL SERVICE 50 TO 2,999 KW SERVICE CLASSIFICATION | AS18: X
B19: GENERAL SERVICE 3,000 TO 4,999 KW SERVICE CLASSIFICATION | AA19: GENERAL SERVICE 3,000 TO 4,999 KW SERVICE CLASSIFICATION | AS19: X
B20: UNMETERED SCATTERED LOAD SERVICE CLASSIFICATION | AA20: UNMETERED SCATTERED LOAD SERVICE CLASSIFICATION | AS20: X
B21: SENTINEL LIGHTING SERVICE CLASSIFICATION | AA21: SENTINEL LIGHTING SERVICE CLASSIFICATION | AS21: X
B22: STREET LIGHTING SERVICE CLASSIFICATION | AA22: STREET LIGHTING SERVICE CLASSIFICATION | AS22: X
B23: microFIT SERVICE CLASSIFICATION | AA23: microFIT SERVICE CLASSIFICATION
B30: Centre Wellington Hydro Ltd. | F30: X | G30: Centre Wellington Hydro Ltd._Start | H30: CENTRE WELLINGTON HYDRO LTD. | J30: 8 | V30: 28 | AA30: Centre Wellington Hydro Ltd.
B31: TARIFF OF RATES AND CHARGES | V31: 27 | AA31: TARIFF OF RATES AND CHARGES
B32: Effective and Implementation Date January 1, 2018 | P32: 2017-05-01 | V32: 49 | AA32: Effective and Implementation Date January 1, 2018
B33: This schedule supersedes and replaces all previously | V33: 52 | AA33: This schedule supersedes and replaces all previously
B34: approved schedules of Rates, Charges and Loss Factors | V34: 53 | AA34: approved schedules of Rates, Charges and Loss Factors
B35: ='1. Information Sheet'!F18 -> EB-2017-0032 | H35: EB-2017-0032 | V35: 12 | AA35: EB-2017-0032 | AS35: X
AS36: X
B37: RESIDENTIAL SERVICE CLASSIFICATION | H37: 1_RESIDENTIAL SERVICE CLASSIFICATION | V37: 34 | AA37: RESIDENTIAL SERVICE CLASSIFICATION
B38: This classification is for single dwelling units with separate metering, detached, semi-detached, triplex, etc. Class B consumers are defined in accordance with O. Reg. 429/04. Further servicing details are available in the distributor's Conditions of Service. | H38: 1_RESIDENTIAL SERVICE CLASSIFICATION | V38: 260 | AA38: This classification is for single dwelling units with separate metering, detached, semi-detached, triplex, etc. Class B consumers are defined in accordance with O. Reg. 429/04. Further servicing details are available in the distributor's Conditions of Service.
B40: APPLICATION | H40: 1_APPLICATION | V40: 11 | AA40: APPLICATION
B42: The application of these rates and charges shall be in accordance with the Licence of the Distributor and any Code or Order of the Ontario Energy Board, and amendments thereto as approved by the Ontario Energy Board, which may be applicable to the administration of this schedule. | H42: 1_RESIDENTIAL SERVICE CLASSIFICATION | V42: 280 | AA42: The application of these rates and charges shall be in accordance with the Licence of the Distributor and any Code or Order of the Ontario Energy Board, and amendments thereto as approved by the Ontario Energy Board, which may be applicable to the administration of this schedule.
B44: No rates and charges for the distribution of electricity and charges to meet the costs of any work or service done or furnished for the purpose of the distribution of electricity shall be made except as permitted by this schedule, unless required by the Distributor’s Licence or a Code or Order of the Ontario Energy Board, and amendments thereto as approved by the Ontario Energy Board, or as specified herein. | H44: 1_RESIDENTIAL SERVICE CLASSIFICATION | V44: 411 | AA44: No rates and charges for the distribution of electricity and charges to meet the costs of any work or service done or furnished for the purpose of the distribution of electricity shall be made except as permitted by this schedule, unless required by the Distributor’s Licence or a Code or Order of the Ontario Energy Board, and amendments thereto as approved by the Ontario Energy Board, or as specified herein.
B46: Unless specifically noted, this schedule does not contain any charges for the electricity commodity, be it under the Regulated Price Plan, a contract with a retailer or the wholesale market price, as applicable. In addition, the charges in the MONTHLY RATES AND CHARGES - Regulatory Component of this schedule do not apply to a customer that is an embedded wholesale market participant. | H46: 1_RESIDENTIAL SERVICE CLASSIFICATION | V46: 386 | AA46: Unless specifically noted, this schedule does not contain any charges for the electricity commodity, be it under the Regulated Price Plan, a contract with a retailer or the wholesale market price, as applicable. In addition, the charges in the MONTHLY RATES AND CHARGES - Regulatory Component of this schedule do not apply to a customer that is an embedded wholesale market participant.
B48: It should be noted that this schedule does not list any charges, assessments, or credits that are required by law to be invoiced by a distributor and that are not subject to Ontario Energy Board approval, such as the Debt Retirement Charge, the Global Adjustment and the HST. | H48: 1_RESIDENTIAL SERVICE CLASSIFICATION | V48: 275 | AA48: It should be noted that this schedule does not list any charges, assessments, or credits that are required by law to be invoiced by a distributor and that are not subject to Ontario Energy Board approval, such as the Debt Retirement Charge, the Global Adjustment and the HST.
B50: MONTHLY RATES AND CHARGES - Delivery Component | H50: 1_MRC_DEL | V50: 46 | AA50: MONTHLY RATES AND CHARGES - Delivery Component
B52: Service Charge | D52: $ | E52: 26.33 | H52: 1_RESIDENTIAL SERVICE CLASSIFICATION | I52: A | M52: 1_RESIDENTIAL SERVICE CLASSIFICATION_MSC | V52: 5 | Z52: Service Charge
B53: Rate Rider for Smart Metering Entity Charge - effective until October 31, 2018 | D53: $ | E53: 0.79 | H53: 1_RESIDENTIAL SERVICE CLASSIFICATION | I53: B | M53: 1_RESIDENTIAL SERVICE CLASSIFICATION_SME | Q53: 2018-10-31 | V53: 4 | Z53: Rate Rider for Smart Metering Entity Charge - effective until October 31, 2018
B54: Distribution Volumetric Rate | D54: $/kWh | E54: 0.0042 | H54: 1_RESIDENTIAL SERVICE CLASSIFICATION | I54: A | M54: 1_RESIDENTIAL SERVICE CLASSIFICATION_DVC | V54: 6 | Z54: Distribution Volumetric Rate
B55: Low Voltage Service Rate | D55: $/kWh | E55: 0.003 | H55: 1_RESIDENTIAL SERVICE CLASSIFICATION | I55: B | M55: 1_RESIDENTIAL SERVICE CLASSIFICATION_LV | V55: 5 | Z55: Low Voltage Service Rate
B56: Rate Rider for Disposition of Lost Revenue Adjustment Mechanism Variance Account (LRAMVA) (2018) - effective until December 31, 2021 | D56: $/kWh | E56: 0.0001 | H56: 1_RESIDENTIAL SERVICE CLASSIFICATION | I56: A | M56: 1_RESIDENTIAL SERVICE CLASSIFICATION_VR_RR_3
B57: Rate Rider for Disposition of Deferral/Variance Accounts Balances (excluding Global Adj.) (2018) -effective until December 31, 2018 | D57: $/kWh | E57: 0.002 | H57: 1_RESIDENTIAL SERVICE CLASSIFICATION | I57: B | M57: 1_RESIDENTIAL SERVICE CLASSIFICATION_DEFVAR_ALL | V57: 5
B58: Rate Rider for Disposition of Deferral/Variance Accounts Balances (excluding Global Adj.) (2018)- NON-WMP - effective until December 31, 2018 | D58: $/kWh | E58: -0.0027 | H58: 1_RESIDENTIAL SERVICE CLASSIFICATION | I58: B | M58: 1_RESIDENTIAL SERVICE CLASSIFICATION_DEFVAR_ALL | V58: 7
B59: Rate Rider for Disposition of RSVA - Power - Global Adjustment - NON-WMP (2018) - effective until December 31, 2018 | D59: $/kWh | E59: 0.0042 | H59: 1_RESIDENTIAL SERVICE CLASSIFICATION | I59: B | M59: 1_RESIDENTIAL SERVICE CLASSIFICATION_GA_kwh | V59: 5
B60: Rate Rider for Disposition of Group 2 Deferral/Variance Accounts (2018) - effective until December 31, 2018 | D60: $ | E60: 0.65 | H60: 1_RESIDENTIAL SERVICE CLASSIFICATION | I60: B | M60: 1_RESIDENTIAL SERVICE CLASSIFICATION_FX_RR_2 | V60: 4
B61: Retail Transmission Rate - Network Service Rate | D61: $/kWh | E61: 0.0065 | H61: 1_RESIDENTIAL SERVICE CLASSIFICATION | I61: C | M61: 1_RESIDENTIAL SERVICE CLASSIFICATION_Retail Transmission Rate - Network Service Rate | V61: 6 | Z61: Retail Transmission Rate - Network Service Rate
B62: Retail Transmission Rate - Line and Transformation Connection Service Rate | D62: $/kWh | E62: 0.0052 | H62: 1_RESIDENTIAL SERVICE CLASSIFICATION | I62: C | M62: 1_RESIDENTIAL SERVICE CLASSIFICATION_Retail Transmission Rate - Line and Transformation Connection Service Rate | V62: 6 | Z62: Retail Transmission Rate - Line and Transformation Connection Service Rate
B64: MONTHLY RATES AND CHARGES - Regulatory Component | H64: 1_MRC_REG | V64: 48 | Z64: MONTHLY RATES AND CHARGES - Regulatory Component
B66: Wholesale Market Service Rate (WMS) - not including CBR | D66: $/kWh | E66: 0.0032 | H66: 1_RESIDENTIAL SERVICE CLASSIFICATION | I66: T | M66: 1_RESIDENTIAL SERVICE CLASSIFICATION_WMSR | V66: 6 | Z66: Wholesale Market Service Rate (WMS) - not including CBR
B67: Capacity Based Recovery (CBR) - Applicable for Class B Customers | D67: $/kWh | E67: 0.0004 | H67: 1_RESIDENTIAL SERVICE CLASSIFICATION | I67: T | V67: 6 | Z67: Capacity Based Recovery (CBR) - Applicable for Class B Customers | AS67: X
B68: Rural or Remote Electricity Rate Protection Charge (RRRP) | D68: $/kWh | E68: 0.0003 | H68: 1_RESIDENTIAL SERVICE CLASSIFICATION | I68: T | V68: 6 | Z68: RESIDENTIAL SERVICE CLASSIFICATION
B69: Standard Supply Service - Administrative Charge (if applicable) | D69: $ | E69: 0.25 | H69: 1_RESIDENTIAL SERVICE CLASSIFICATION | I69: T | M69: 1_RESIDENTIAL SERVICE CLASSIFICATION_SSS | V69: 4 | Z69: Standard Supply Service - Administrative Charge (if applicable) | AS69: X
B70: GENERAL SERVICE LESS THAN 50 KW SERVICE CLASSIFICATION | H70: 2_GENERAL SERVICE LESS THAN 50 KW SERVICE CLASSIFICATION | V70: 54 | AA70: GENERAL SERVICE LESS THAN 50 KW SERVICE CLASSIFICATION
B71: This classification applies to a non-residential account taking electricity at 750 volts or less whose average monthly maximum demand is less than, or is forecasted to be less than, 50kW. Class B consumers are defined in accordance with O. Reg. 429/04. Further servicing details are available in the distributor's Conditions of Service. | H71: 2_GENERAL SERVICE LESS THAN 50 KW SERVICE CLASSIFICATION | V71: 336 | AA71: This classification applies to a non-residential account taking electricity at 750 volts or less whose average monthly maximum demand is less than, or is forecasted to be less than, 50kW. Class B consumers are defined in accordance with O. Reg. 429/04. Further servicing details are available in the distributor's Conditions of Service.
B73: APPLICATION | H73: 2_APPLICATION | V73: 11 | AA73: APPLICATION
B75: The application of these rates and charges shall be in accordance with the Licence of the Distributor and any Code or Order of the Ontario Energy Board, and amendments thereto as approved by the Ontario Energy Board, which may be applicable to the administration of this schedule. | H75: 2_GENERAL SERVICE LESS THAN 50 KW SERVICE CLASSIFICATION | V75: 280 | AA75: The application of these rates and charges shall be in accordance with the Licence of the Distributor and any Code or Order of the Ontario Energy Board, and amendments thereto as approved by the Ontario Energy Board, which may be applicable to the administration of this schedule.
B77: No rates and charges for the distribution of electricity and charges to meet the costs of any work or service done or furnished for the purpose of the distribution of electricity shall be made except as permitted by this schedule, unless required by the Distributor’s Licence or a Code or Order of the Ontario Energy Board, and amendments thereto as approved by the Ontario Energy Board, or as specified herein. | H77: 2_GENERAL SERVICE LESS THAN 50 KW SERVICE CLASSIFICATION | V77: 411 | AA77: No rates and charges for the distribution of electricity and charges to meet the costs of any work or service done or furnished for the purpose of the distribution of electricity shall be made except as permitted by this schedule, unless required by the Distributor’s Licence or a Code or Order of the Ontario Energy Board, and amendments thereto as approved by the Ontario Energy Board, or as specified herein.
B79: Unless specifically noted, this schedule does not contain any charges for the electricity commodity, be it under the Regulated Price Plan, a contract with a retailer or the wholesale market price, as applicable. In addition, the charges in the MONTHLY RATES AND CHARGES - Regulatory Component of this schedule do not apply to a customer that is an embedded wholesale market participant. | H79: 2_GENERAL SERVICE LESS THAN 50 KW SERVICE CLASSIFICATION | V79: 386 | AA79: Unless specifically noted, this schedule does not contain any charges for the electricity commodity, be it under the Regulated Price Plan, a contract with a retailer or the wholesale market price, as applicable. In addition, the charges in the MONTHLY RATES AND CHARGES - Regulatory Component of this schedule do not apply to a customer that is an embedded wholesale market participant.
B81: It should be noted that this schedule does not list any charges, assessments, or credits that are required by law to be invoiced by a distributor and that are not subject to Ontario Energy Board approval, such as the Debt Retirement Charge, the Global Adjustment and the HST. | H81: 2_GENERAL SERVICE LESS THAN 50 KW SERVICE CLASSIFICATION | V81: 275 | AA81: It should be noted that this schedule does not list any charges, assessments, or credits that are required by law to be invoiced by a distributor and that are not subject to Ontario Energy Board approval, such as the Debt Retirement Charge, the Global Adjustment and the HST.
B83: MONTHLY RATES AND CHARGES - Delivery Component | H83: 2_MRC_DEL | V83: 46 | AA83: MONTHLY RATES AND CHARGES - Delivery Component
B85: Service Charge | D85: $ | E85: 20.85 | H85: 2_GENERAL SERVICE LESS THAN 50 KW SERVICE CLASSIFICATION | I85: A | M85: 2_GENERAL SERVICE LESS THAN 50 KW SERVICE CLASSIFICATION_MSC | V85: 5 | Z85: Service Charge
B86: Rate Rider for Smart Metering Entity Charge - effective until October 31, 2018 | D86: $ | E86: 0.79 | H86: 2_GENERAL SERVICE LESS THAN 50 KW SERVICE CLASSIFICATION | I86: B | M86: 2_GENERAL SERVICE LESS THAN 50 KW SERVICE CLASSIFICATION_SME | Q86: 2018-10-31 | V86: 4 | Z86: Rate Rider for Smart Metering Entity Charge - effective until October 31, 2018
B87: Distribution Volumetric Rate | D87: $/kWh | E87: 0.0217 | H87: 2_GENERAL SERVICE LESS THAN 50 KW SERVICE CLASSIFICATION | I87: A | M87: 2_GENERAL SERVICE LESS THAN 50 KW SERVICE CLASSIFICATION_DVC | V87: 6 | Z87: Distribution Volumetric Rate
B88: Low Voltage Service Rate | D88: $/kWh | E88: 0.0027 | H88: 2_GENERAL SERVICE LESS THAN 50 KW SERVICE CLASSIFICATION | I88: B | M88: 2_GENERAL SERVICE LESS THAN 50 KW SERVICE CLASSIFICATION_LV | V88: 6 | Z88: Low Voltage Service Rate
B89: Rate Rider for Disposition of Lost Revenue Adjustment Mechanism Variance Account (LRAMVA) (2017) - effective until April 30, 2018 | D89: $/kWh | E89: 0.004 | H89: 2_GENERAL SERVICE LESS THAN 50 KW SERVICE CLASSIFICATION | I89: A | M89: 2_GENERAL SERVICE LESS THAN 50 KW SERVICE CLASSIFICATION_VR_RR_7 | Q89: 2018-04-30 | V89: 5 | Z89: Rate Rider for Disposition of Lost Revenue Adjustment Mechanism Variance Account (LRAMVA) (2017) - effective until April 30, 2018
B90: Rate Rider for Disposition of Lost Revenue Adjustment Mechanism Variance Account (LRAMVA) (2018) - effective until December 31, 2021 | D90: $/kWh | E90: 0.001 | H90: 2_GENERAL SERVICE LESS THAN 50 KW SERVICE CLASSIFICATION | I90: A | M90: 2_GENERAL SERVICE LESS THAN 50 KW SERVICE CLASSIFICATION_VR_RR_7
B91: Rate Rider for Disposition of Deferral/Variance Accounts Balances (excluding Global Adj.) (2018) -effective until December 31, 2018 | D91: $/kWh | E91: 0.002 | H91: 2_GENERAL SERVICE LESS THAN 50 KW SERVICE CLASSIFICATION | I91: B | M91: 2_GENERAL SERVICE LESS THAN 50 KW SERVICE CLASSIFICATION_DEFVAR_ALL | V91: 5
B92: Rate Rider for Disposition of Deferral/Variance Accounts Balances (excluding Global Adj.) (2018)- NON-WMP - effective until December 31, 2018 | D92: $/kWh | E92: -0.0027 | H92: 2_GENERAL SERVICE LESS THAN 50 KW SERVICE CLASSIFICATION | I92: B | M92: 2_GENERAL SERVICE LESS THAN 50 KW SERVICE CLASSIFICATION_DEFVAR_ALL | V92: 7
B93: Rate Rider for Disposition of RSVA - Power - Global Adjustment - NON-WMP (2018)- effective until December 31, 2018 | D93: $/kWh | E93: 0.0042 | H93: 2_GENERAL SERVICE LESS THAN 50 KW SERVICE CLASSIFICATION | I93: B | M93: 2_GENERAL SERVICE LESS THAN 50 KW SERVICE CLASSIFICATION_GA_kwh | V93: 5
B94: Rate Rider for Disposition of Group 2 Deferral/Variance Accounts (2018) - effective until December 31, 2018 | D94: $/kWh | E94: 0.0011 | H94: 2_GENERAL SERVICE LESS THAN 50 KW SERVICE CLASSIFICATION | I94: B | M94: 2_GENERAL SERVICE LESS THAN 50 KW SERVICE CLASSIFICATION_DEFVAR_ALL | V94: 6
B95: Retail Transmission Rate - Network Service Rate | D95: $/kWh | E95: 0.006 | H95: 2_GENERAL SERVICE LESS THAN 50 KW SERVICE CLASSIFICATION | I95: C | M95: 2_GENERAL SERVICE LESS THAN 50 KW SERVICE CLASSIFICATION_Retail Transmission Rate - Network Service Rate | V95: 5 | Z95: Retail Transmission Rate - Network Service Rate
B96: Retail Transmission Rate - Line and Transformation Connection Service Rate | D96: $/kWh | E96: 0.0047 | H96: 2_GENERAL SERVICE LESS THAN 50 KW SERVICE CLASSIFICATION | I96: C | M96: 2_GENERAL SERVICE LESS THAN 50 KW SERVICE CLASSIFICATION_Retail Transmission Rate - Line and Transformation Connection Service Rate | V96: 6 | Z96: Retail Transmission Rate - Line and Transformation Connection Service Rate
B98: MONTHLY RATES AND CHARGES - Regulatory Component | H98: 2_MRC_REG | V98: 48 | Z98: MONTHLY RATES AND CHARGES - Regulatory Component
B100: Wholesale Market Service Rate (WMS) - not including CBR | D100: $/kWh | E100: 0.0032 | H100: 2_GENERAL SERVICE LESS THAN 50 KW SERVICE CLASSIFICATION | I100: T | M100: 2_GENERAL SERVICE LESS THAN 50 KW SERVICE CLASSIFICATION_WMSR | V100: 6 | Z100: Wholesale Market Service Rate (WMS) - not including CBR
B101: Capacity Based Recovery (CBR) - Applicable for Class B Customers | D101: $/kWh | E101: 0.0004 | H101: 2_GENERAL SERVICE LESS THAN 50 KW SERVICE CLASSIFICATION | I101: T | V101: 6 | Z101: Capacity Based Recovery (CBR) - Applicable for Class B Customers | AS101: X
B102: Rural or Remote Electricity Rate Protection Charge (RRRP) | D102: $/kWh | E102: 0.0003 | H102: 2_GENERAL SERVICE LESS THAN 50 KW SERVICE CLASSIFICATION | I102: T | V102: 6 | Z102: RESIDENTIAL SERVICE CLASSIFICATION
B103: Standard Supply Service - Administrative Charge (if applicable) | D103: $ | E103: 0.25 | H103: 2_GENERAL SERVICE LESS THAN 50 KW SERVICE CLASSIFICATION | I103: T | M103: 2_GENERAL SERVICE LESS THAN 50 KW SERVICE CLASSIFICATION_SSS | V103: 4 | Z103: Standard Supply Service - Administrative Charge (if applicable) | AS103: X
B104: GENERAL SERVICE 50 TO 2,999 KW SERVICE CLASSIFICATION | H104: 3_GENERAL SERVICE 50 TO 2,999 KW SERVICE CLASSIFICATION | V104: 53 | AA104: GENERAL SERVICE 50 TO 2,999 KW SERVICE CLASSIFICATION
B105: This classification applies to a non-residential account whose average monthly maximum demand used for billing purposes is equal to or greater than, or is forecasted to be equal to or greater than, 50 kW but less than 3,000 kW. Class A and Class B consumers are defined in accordance with O. Reg. 429/04. Further servicing details are available in the distributor's Conditions of Service. | H105: 3_GENERAL SERVICE 50 TO 2,999 KW SERVICE CLASSIFICATION | V105: 388 | AA105: This classification applies to a non-residential account whose average monthly maximum demand used for billing purposes is equal to or greater than, or is forecasted to be equal to or greater than, 50 kW but less than 3,000 kW. Class A and Class B consumers are defined in accordance with O. Reg. 429/04. Further servicing details are available in the distributor's Conditions of Service.
B107: APPLICATION | H107: 3_APPLICATION | V107: 11 | AA107: APPLICATION
B109: The application of these rates and charges shall be in accordance with the Licence of the Distributor and any Code or Order of the Ontario Energy Board, and amendments thereto as approved by the Ontario Energy Board, which may be applicable to the administration of this schedule. | H109: 3_GENERAL SERVICE 50 TO 2,999 KW SERVICE CLASSIFICATION | V109: 280 | AA109: The application of these rates and charges shall be in accordance with the Licence of the Distributor and any Code or Order of the Ontario Energy Board, and amendments thereto as approved by the Ontario Energy Board, which may be applicable to the administration of this schedule.
B111: No rates and charges for the distribution of electricity and charges to meet the costs of any work or service done or furnished for the purpose of the distribution of electricity shall be made except as permitted by this schedule, unless required by the Distributor’s Licence or a Code or Order of the Ontario Energy Board, and amendments thereto as approved by the Ontario Energy Board, or as specified herein. | H111: 3_GENERAL SERVICE 50 TO 2,999 KW SERVICE CLASSIFICATION | V111: 411 | AA111: No rates and charges for the distribution of electricity and charges to meet the costs of any work or service done or furnished for the purpose of the distribution of electricity shall be made except as permitted by this schedule, unless required by the Distributor’s Licence or a Code or Order of the Ontario Energy Board, and amendments thereto as approved by the Ontario Energy Board, or as specified herein.
B113: Unless specifically noted, this schedule does not contain any charges for the electricity commodity, be it under the Regulated Price Plan, a contract with a retailer or the wholesale market price, as applicable. In addition, the charges in the MONTHLY RATES AND CHARGES - Regulatory Component of this schedule do not apply to a customer that is an embedded wholesale market participant. | H113: 3_GENERAL SERVICE 50 TO 2,999 KW SERVICE CLASSIFICATION | V113: 386 | AA113: Unless specifically noted, this schedule does not contain any charges for the electricity commodity, be it under the Regulated Price Plan, a contract with a retailer or the wholesale market price, as applicable. In addition, the charges in the MONTHLY RATES AND CHARGES - Regulatory Component of this schedule do not apply to a customer that is an embedded wholesale market participant.
B115: The rate rider for the disposition of Global Adjustment is only applicable to non-RPP Class B customers. It is not applicable to WMP, customers that transitioned between Class A and Class B during the variance account accumulation period, or to customers that were in Class A for the entire period. Customers who transitioned are to be charged or refunded their share of the variance disposed through customer specific billing adjustments. This rate rider is to be consistently applied for the entire period to the sunset date of the rate rider. In addition, this rate rider is applicable to all new non-RPP Class B customers. | H115: 3_GENERAL SERVICE 50 TO 2,999 KW SERVICE CLASSIFICATION | V115: 626 | AA115: The rate rider for the disposition of Global Adjustment is only applicable to non-RPP Class B customers. It is not applicable to WMP, customers that transitioned between Class A and Class B during the variance account accumulation period, or to customers that were in Class A for the entire period. Customers who transitioned are to be charged or refunded their share of the variance disposed through customer specific billing adjustments. This rate rider is to be consistently applied for the entire period to the sunset date of the rate rider. In addition, this rate rider is applicable to all new non-RPP Class B customers.
B116: It should be noted that this schedule does not list any charges, assessments, or credits that are required by law to be invoiced by a distributor and that are not subject to Ontario Energy Board approval, such as the Debt Retirement Charge, the Global Adjustment and the HST. | H116: 3_GENERAL SERVICE 50 TO 2,999 KW SERVICE CLASSIFICATION | V116: 275 | AA116: It should be noted that this schedule does not list any charges, assessments, or credits that are required by law to be invoiced by a distributor and that are not subject to Ontario Energy Board approval, such as the Debt Retirement Charge, the Global Adjustment and the HST.
B118: MONTHLY RATES AND CHARGES - Delivery Component | H118: 3_MRC_DEL | V118: 46 | AA118: MONTHLY RATES AND CHARGES - Delivery Component
B120: Service Charge | D120: $ | E120: 170.19 | H120: 3_GENERAL SERVICE 50 TO 2,999 KW SERVICE CLASSIFICATION | I120: A | M120: 3_GENERAL SERVICE 50 TO 2,999 KW SERVICE CLASSIFICATION_MSC | V120: 6 | Z120: Service Charge
B121: Distribution Volumetric Rate | D121: $/kW | E121: 4.1917 | H121: 3_GENERAL SERVICE 50 TO 2,999 KW SERVICE CLASSIFICATION | I121: A | M121: 3_GENERAL SERVICE 50 TO 2,999 KW SERVICE CLASSIFICATION_DVC | V121: 6 | Z121: Distribution Volumetric Rate
B122: Low Voltage Service Rate | D122: $/kW | E122: 0.9987 | H122: 3_GENERAL SERVICE 50 TO 2,999 KW SERVICE CLASSIFICATION | I122: B | M122: 3_GENERAL SERVICE 50 TO 2,999 KW SERVICE CLASSIFICATION_LV | V122: 6 | Z122: Low Voltage Service Rate
B123: Rate Rider for Disposition of Lost Revenue Adjustment Mechanism Variance Account (LRAMVA) (2017) - effective until April 30, 2018 | D123: $/kW | E123: -0.0548 | H123: 3_GENERAL SERVICE 50 TO 2,999 KW SERVICE CLASSIFICATION | I123: A | M123: 3_GENERAL SERVICE 50 TO 2,999 KW SERVICE CLASSIFICATION_VR_RR_7 | Q123: 2018-04-30 | V123: 7 | Z123: Rate Rider for Disposition of Lost Revenue Adjustment Mechanism Variance Account (LRAMVA) (2017) - effective until April 30, 2018
B124: Rate Rider for Disposition of Lost Revenue Adjustment Mechanism Variance Account (LRAMVA) (2018) - effective until December 31, 2021 | D124: $/kW | E124: 0.0112 | H124: 3_GENERAL SERVICE 50 TO 2,999 KW SERVICE CLASSIFICATION | I124: A | M124: 3_GENERAL SERVICE 50 TO 2,999 KW SERVICE CLASSIFICATION_VR_RR_7
B125: Rate Rider for Disposition of Deferral/Variance Accounts Balances (excluding Global Adj.) (2018) -effective until December 31, 2018 | D125: $/kW | E125: 0.7894 | H125: 3_GENERAL SERVICE 50 TO 2,999 KW SERVICE CLASSIFICATION | I125: B | M125: 3_GENERAL SERVICE 50 TO 2,999 KW SERVICE CLASSIFICATION_DEFVAR_ALL | V125: 5
B126: Rate Rider for Disposition of Deferral/Variance Accounts Balances (excluding Global Adj.) (2018) - NON-WMP - effective until December 31, 2018 | D126: $/kW | E126: -1.0406 | H126: 3_GENERAL SERVICE 50 TO 2,999 KW SERVICE CLASSIFICATION | I126: B | M126: 3_GENERAL SERVICE 50 TO 2,999 KW SERVICE CLASSIFICATION_DEFVAR_ALL | V126: 7
B127: Rate Rider for Disposition of RSVA - Power - Global Adjustment - NON-WMP (2018) - effective until December 31, 2018 | D127: $/kWh | E127: 0.0042 | H127: 3_GENERAL SERVICE 50 TO 2,999 KW SERVICE CLASSIFICATION | I127: B | M127: 3_GENERAL SERVICE 50 TO 2,999 KW SERVICE CLASSIFICATION_GA_kwh | V127: 5
B128: Rate Rider for Disposition of Group 2 Deferral/Variance Accounts (2018) - effective until December 31, 2018 | D128: $/kW | E128: 0.409 | H128: 3_GENERAL SERVICE 50 TO 2,999 KW SERVICE CLASSIFICATION | I128: B | M128: 3_GENERAL SERVICE 50 TO 2,999 KW SERVICE CLASSIFICATION_DEFVAR_ALL | V128: 6
B129: Retail Transmission Rate - Network Service Rate | D129: $/kW | E129: 2.4194 | H129: 3_GENERAL SERVICE 50 TO 2,999 KW SERVICE CLASSIFICATION | I129: C | M129: 3_GENERAL SERVICE 50 TO 2,999 KW SERVICE CLASSIFICATION_Retail Transmission Rate - Network Service Rate | V129: 6 | Z129: Retail Transmission Rate - Network Service Rate
B130: Retail Transmission Rate - Line and Transformation Connection Service Rate | D130: $/kW | E130: 1.847 | H130: 3_GENERAL SERVICE 50 TO 2,999 KW SERVICE CLASSIFICATION | I130: C | M130: 3_GENERAL SERVICE 50 TO 2,999 KW SERVICE CLASSIFICATION_Retail Transmission Rate - Line and Transformation Connection Service Rate | V130: 5 | Z130: Retail Transmission Rate - Line and Transformation Connection Service Rate
B132: MONTHLY RATES AND CHARGES - Regulatory Component | H132: 3_MRC_REG | V132: 48 | Z132: MONTHLY RATES AND CHARGES - Regulatory Component
B134: Wholesale Market Service Rate (WMS) - not including CBR | D134: $/kWh | E134: 0.0032 | H134: 3_GENERAL SERVICE 50 TO 2,999 KW SERVICE CLASSIFICATION | I134: T | M134: 3_GENERAL SERVICE 50 TO 2,999 KW SERVICE CLASSIFICATION_WMSR | V134: 6 | Z134: Wholesale Market Service Rate (WMS) - not including CBR
B135: Capacity Based Recovery (CBR) - Applicable for Class B Customers | D135: $/kWh | E135: 0.0004 | H135: 3_GENERAL SERVICE 50 TO 2,999 KW SERVICE CLASSIFICATION | I135: T | V135: 6 | Z135: Capacity Based Recovery (CBR) - Applicable for Class B Customers | AS135: X
B136: Rural or Remote Electricity Rate Protection Charge (RRRP) | D136: $/kWh | E136: 0.0003 | H136: 3_GENERAL SERVICE 50 TO 2,999 KW SERVICE CLASSIFICATION | I136: T | V136: 6 | Z136: RESIDENTIAL SERVICE CLASSIFICATION
B137: Standard Supply Service - Administrative Charge (if applicable) | D137: $ | E137: 0.25 | H137: 3_GENERAL SERVICE 50 TO 2,999 KW SERVICE CLASSIFICATION | I137: T | M137: 3_GENERAL SERVICE 50 TO 2,999 KW SERVICE CLASSIFICATION_SSS | V137: 4 | Z137: Standard Supply Service - Administrative Charge (if applicable) | AS137: X
B138: GENERAL SERVICE 3,000 TO 4,999 KW SERVICE CLASSIFICATION | H138: 4_GENERAL SERVICE 3,000 TO 4,999 KW SERVICE CLASSIFICATION | V138: 56 | AA138: GENERAL SERVICE 3,000 TO 4,999 KW SERVICE CLASSIFICATION
B139: This classification applies to a non-residential account whose average monthly maximum demand used for billing is equal to or greater than, or is forecasted to be equal to or greater than, 3,000 kW but less than 5,000 kW. Class A and Class B consumers are defined in accordance with O. Reg. 429/04. Further servicing details are available in the distributor's Conditions of Service. | H139: 4_GENERAL SERVICE 3,000 TO 4,999 KW SERVICE CLASSIFICATION | V139: 382 | AA139: This classification applies to a non-residential account whose average monthly maximum demand used for billing is equal to or greater than, or is forecasted to be equal to or greater than, 3,000 kW but less than 5,000 kW. Class A and Class B consumers are defined in accordance with O. Reg. 429/04. Further servicing details are available in the distributor's Conditions of Service.
B141: APPLICATION | H141: 4_APPLICATION | V141: 11 | AA141: APPLICATION
B143: The application of these rates and charges shall be in accordance with the Licence of the Distributor and any Code or Order of the Ontario Energy Board, and amendments thereto as approved by the Ontario Energy Board, which may be applicable to the administration of this schedule. | H143: 4_GENERAL SERVICE 3,000 TO 4,999 KW SERVICE CLASSIFICATION | V143: 280 | AA143: The application of these rates and charges shall be in accordance with the Licence of the Distributor and any Code or Order of the Ontario Energy Board, and amendments thereto as approved by the Ontario Energy Board, which may be applicable to the administration of this schedule.
B145: No rates and charges for the distribution of electricity and charges to meet the costs of any work or service done or furnished for the purpose of the distribution of electricity shall be made except as permitted by this schedule, unless required by the Distributor’s Licence or a Code or Order of the Ontario Energy Board, and amendments thereto as approved by the Ontario Energy Board, or as specified herein. | H145: 4_GENERAL SERVICE 3,000 TO 4,999 KW SERVICE CLASSIFICATION | V145: 411 | AA145: No rates and charges for the distribution of electricity and charges to meet the costs of any work or service done or furnished for the purpose of the distribution of electricity shall be made except as permitted by this schedule, unless required by the Distributor’s Licence or a Code or Order of the Ontario Energy Board, and amendments thereto as approved by the Ontario Energy Board, or as specified herein.
B147: Unless specifically noted, this schedule does not contain any charges for the electricity commodity, be it under the Regulated Price Plan, a contract with a retailer or the wholesale market price, as applicable. In addition, the charges in the MONTHLY RATES AND CHARGES - Regulatory Component of this schedule do not apply to a customer that is an embedded wholesale market participant. | H147: 4_GENERAL SERVICE 3,000 TO 4,999 KW SERVICE CLASSIFICATION | V147: 386 | AA147: Unless specifically noted, this schedule does not contain any charges for the electricity commodity, be it under the Regulated Price Plan, a contract with a retailer or the wholesale market price, as applicable. In addition, the charges in the MONTHLY RATES AND CHARGES - Regulatory Component of this schedule do not apply to a customer that is an embedded wholesale market participant.
B149: The rate rider for the disposition of Global Adjustment is only applicable to non-RPP Class B customers. It is not applicable to WMP, customers that transitioned between Class A and Class B during the variance account accumulation period, or to customers that were in Class A for the entire period. Customers who transitioned are to be charged or refunded their share of the variance disposed through customer specific billing adjustments. This rate rider is to be consistently applied for the entire period to the sunset date of the rate rider. In addition, this rate rider is applicable to all new non-RPP Class B customers. | H149: 4_GENERAL SERVICE 3,000 TO 4,999 KW SERVICE CLASSIFICATION | V149: 626 | AA149: The rate rider for the disposition of Global Adjustment is only applicable to non-RPP Class B customers. It is not applicable to WMP, customers that transitioned between Class A and Class B during the variance account accumulation period, or to customers that were in Class A for the entire period. Customers who transitioned are to be charged or refunded their share of the variance disposed through customer specific billing adjustments. This rate rider is to be consistently applied for the entire period to the sunset date of the rate rider. In addition, this rate rider is applicable to all new non-RPP Class B customers.
B150: It should be noted that this schedule does not list any charges, assessments, or credits that are required by law to be invoiced by a distributor and that are not subject to Ontario Energy Board approval, such as the Debt Retirement Charge, the Global Adjustment and the HST. | H150: 4_GENERAL SERVICE 3,000 TO 4,999 KW SERVICE CLASSIFICATION | V150: 275 | AA150: It should be noted that this schedule does not list any charges, assessments, or credits that are required by law to be invoiced by a distributor and that are not subject to Ontario Energy Board approval, such as the Debt Retirement Charge, the Global Adjustment and the HST.
B152: MONTHLY RATES AND CHARGES - Delivery Component | H152: 4_MRC_DEL | V152: 46 | AA152: MONTHLY RATES AND CHARGES - Delivery Component
B154: Service Charge | D154: $ | E154: 685.86 | H154: 4_GENERAL SERVICE 3,000 TO 4,999 KW SERVICE CLASSIFICATION | I154: A | M154: 4_GENERAL SERVICE 3,000 TO 4,999 KW SERVICE CLASSIFICATION_MSC | V154: 6 | Z154: Service Charge
B155: Distribution Volumetric Rate | D155: $/kW | E155: 3.1776 | H155: 4_GENERAL SERVICE 3,000 TO 4,999 KW SERVICE CLASSIFICATION | I155: A | M155: 4_GENERAL SERVICE 3,000 TO 4,999 KW SERVICE CLASSIFICATION_DVC | V155: 6 | Z155: Distribution Volumetric Rate
B156: Low Voltage Service Rate | D156: $/kW | E156: 1.1778 | H156: 4_GENERAL SERVICE 3,000 TO 4,999 KW SERVICE CLASSIFICATION | I156: B | M156: 4_GENERAL SERVICE 3,000 TO 4,999 KW SERVICE CLASSIFICATION_LV | V156: 6 | Z156: Low Voltage Service Rate
B157: Rate Rider for Disposition of Lost Revenue Adjustment Mechanism Variance Account (LRAMVA) (2017) - effective until April 30, 2018 | D157: $/kW | E157: -0.0774 | H157: 4_GENERAL SERVICE 3,000 TO 4,999 KW SERVICE CLASSIFICATION | I157: A | M157: 4_GENERAL SERVICE 3,000 TO 4,999 KW SERVICE CLASSIFICATION_VR_RR_7 | Q157: 2018-04-30 | V157: 7 | Z157: Rate Rider for Disposition of Lost Revenue Adjustment Mechanism Variance Account (LRAMVA) (2017) - effective until April 30, 2018
B158: Rate Rider for Disposition of Lost Revenue Adjustment Mechanism Variance Account (LRAMVA) (2018) - effective until December 31, 2021 | D158: $/kW | E158: -0.0195 | H158: 4_GENERAL SERVICE 3,000 TO 4,999 KW SERVICE CLASSIFICATION | I158: A | M158: 4_GENERAL SERVICE 3,000 TO 4,999 KW SERVICE CLASSIFICATION_VR_RR_7
B159: Rate Rider for Disposition of Deferral/Variance Accounts Balances (excluding Global Adj.) (2018) -effective until December 31, 2018 | D159: $/kW | E159: 0.7635 | H159: 4_GENERAL SERVICE 3,000 TO 4,999 KW SERVICE CLASSIFICATION | I159: B | M159: 4_GENERAL SERVICE 3,000 TO 4,999 KW SERVICE CLASSIFICATION_DEFVAR_ALL | V159: 6
B160: Rate Rider for Disposition of Deferral/Variance Accounts Balances (excluding Global Adj.) (2018) - NON-WMP - effective until December 31, 2018 | D160: $/kW | E160: -1.0186 | H160: 4_GENERAL SERVICE 3,000 TO 4,999 KW SERVICE CLASSIFICATION | I160: B | M160: 4_GENERAL SERVICE 3,000 TO 4,999 KW SERVICE CLASSIFICATION_DEFVAR_ALL | V160: 7
B161: Rate Rider for Disposition of RSVA - Power - Global Adjustment - NON-WMP (2018) - effective until December 31, 2018 | D161: $/kWh | E161: 0.0042 | H161: 4_GENERAL SERVICE 3,000 TO 4,999 KW SERVICE CLASSIFICATION | I161: B | M161: 4_GENERAL SERVICE 3,000 TO 4,999 KW SERVICE CLASSIFICATION_GA_kwh | V161: 5
B162: Rate Rider for Disposition of Group 2 Deferral/Variance Accounts (2018) - effective until December 31, 2018 | D162: $/kW | E162: 0.3962 | H162: 4_GENERAL SERVICE 3,000 TO 4,999 KW SERVICE CLASSIFICATION | I162: B | M162: 4_GENERAL SERVICE 3,000 TO 4,999 KW SERVICE CLASSIFICATION_VR_RR_18 | V162: 6
B163: Retail Transmission Rate - Network Service Rate | D163: $/kW | E163: 2.7057 | H163: 4_GENERAL SERVICE 3,000 TO 4,999 KW SERVICE CLASSIFICATION | I163: C | M163: 4_GENERAL SERVICE 3,000 TO 4,999 KW SERVICE CLASSIFICATION_Retail Transmission Rate - Network Service Rate | V163: 6 | Z163: Retail Transmission Rate - Network Service Rate
B164: Retail Transmission Rate - Line and Transformation Connection Service Rate | D164: $/kW | E164: 2.1783 | H164: 4_GENERAL SERVICE 3,000 TO 4,999 KW SERVICE CLASSIFICATION | I164: C | M164: 4_GENERAL SERVICE 3,000 TO 4,999 KW SERVICE CLASSIFICATION_Retail Transmission Rate - Line and Transformation Connection Service Rate | V164: 6 | Z164: Retail Transmission Rate - Line and Transformation Connection Service Rate
B166: MONTHLY RATES AND CHARGES - Regulatory Component | H166: 4_MRC_REG | V166: 48 | Z166: MONTHLY RATES AND CHARGES - Regulatory Component
B168: Wholesale Market Service Rate (WMS) - not including CBR | D168: $/kWh | E168: 0.0032 | H168: 4_GENERAL SERVICE 3,000 TO 4,999 KW SERVICE CLASSIFICATION | I168: T | M168: 4_GENERAL SERVICE 3,000 TO 4,999 KW SERVICE CLASSIFICATION_WMSR | V168: 6 | Z168: Wholesale Market Service Rate (WMS) - not including CBR
B169: Capacity Based Recovery (CBR) - Applicable for Class B Customers | D169: $/kWh | E169: 0.0004 | H169: 4_GENERAL SERVICE 3,000 TO 4,999 KW SERVICE CLASSIFICATION | I169: T | V169: 6 | Z169: Capacity Based Recovery (CBR) - Applicable for Class B Customers | AS169: X
B170: Rural or Remote Electricity Rate Protection Charge (RRRP) | D170: $/kWh | E170: 0.0003 | H170: 4_GENERAL SERVICE 3,000 TO 4,999 KW SERVICE CLASSIFICATION | I170: T | V170: 6 | Z170: RESIDENTIAL SERVICE CLASSIFICATION
B171: Standard Supply Service - Administrative Charge (if applicable) | D171: $ | E171: 0.25 | H171: 4_GENERAL SERVICE 3,000 TO 4,999 KW SERVICE CLASSIFICATION | I171: T | M171: 4_GENERAL SERVICE 3,000 TO 4,999 KW SERVICE CLASSIFICATION_SSS | V171: 4 | Z171: Standard Supply Service - Administrative Charge (if applicable) | AS171: X
B172: UNMETERED SCATTERED LOAD SERVICE CLASSIFICATION | H172: 5_UNMETERED SCATTERED LOAD SERVICE CLASSIFICATION | V172: 47 | AA172: UNMETERED SCATTERED LOAD SERVICE CLASSIFICATION
B173: This classification applies to a non-residential account taking electricity at 750 volts or less whose average monthly maximum demand is less than, or is forecasted to be less than, 50kW and the consumption is unmetered. Such connections include cable TV power packs, bus shelters, telephone booths, traffic lights, railway crossings, etc.. The level of the consumption will be agreed to by the distributor and the customer, based on detailed manufacturer information/documentation with regard to electrical consumption of the unmetered load or periodic monitoring of actual consumption. Class B consumers are defined in accordance with O. Reg. 429/04. Further servicing details are available in the distributor's Conditions of Service. | H173: 5_UNMETERED SCATTERED LOAD SERVICE CLASSIFICATION | V173: 736 | AA173: This classification applies to a non-residential account taking electricity at 750 volts or less whose average monthly maximum demand is less than, or is forecasted to be less than, 50kW and the consumption is unmetered. Such connections include cable TV power packs, bus shelters, telephone booths, traffic lights, railway crossings, etc.. The level of the consumption will be agreed to by the distributor and the customer, based on detailed manufacturer information/documentation with regard to electrical consumption of the unmetered load or periodic monitoring of actual consumption. Class B consumers are defined in accordance with O. Reg. 429/04. Further servicing details are available in the distributor's Conditions of Service.
B175: APPLICATION | H175: 5_APPLICATION | V175: 11 | AA175: APPLICATION
B177: The application of these rates and charges shall be in accordance with the Licence of the Distributor and any Code or Order of the Ontario Energy Board, and amendments thereto as approved by the Ontario Energy Board, which may be applicable to the administration of this schedule. | H177: 5_UNMETERED SCATTERED LOAD SERVICE CLASSIFICATION | V177: 280 | AA177: The application of these rates and charges shall be in accordance with the Licence of the Distributor and any Code or Order of the Ontario Energy Board, and amendments thereto as approved by the Ontario Energy Board, which may be applicable to the administration of this schedule.
B179: No rates and charges for the distribution of electricity and charges to meet the costs of any work or service done or furnished for the purpose of the distribution of electricity shall be made except as permitted by this schedule, unless required by the Distributor’s Licence or a Code or Order of the Ontario Energy Board, and amendments thereto as approved by the Ontario Energy Board, or as specified herein. | H179: 5_UNMETERED SCATTERED LOAD SERVICE CLASSIFICATION | V179: 411 | AA179: No rates and charges for the distribution of electricity and charges to meet the costs of any work or service done or furnished for the purpose of the distribution of electricity shall be made except as permitted by this schedule, unless required by the Distributor’s Licence or a Code or Order of the Ontario Energy Board, and amendments thereto as approved by the Ontario Energy Board, or as specified herein.
B181: Unless specifically noted, this schedule does not contain any charges for the electricity commodity, be it under the Regulated Price Plan, a contract with a retailer or the wholesale market price, as applicable. In addition, the charges in the MONTHLY RATES AND CHARGES - Regulatory Component of this schedule do not apply to a customer that is an embedded wholesale market participant. | H181: 5_UNMETERED SCATTERED LOAD SERVICE CLASSIFICATION | V181: 386 | AA181: Unless specifically noted, this schedule does not contain any charges for the electricity commodity, be it under the Regulated Price Plan, a contract with a retailer or the wholesale market price, as applicable. In addition, the charges in the MONTHLY RATES AND CHARGES - Regulatory Component of this schedule do not apply to a customer that is an embedded wholesale market participant.
B183: It should be noted that this schedule does not list any charges, assessments, or credits that are required by law to be invoiced by a distributor and that are not subject to Ontario Energy Board approval, such as the Debt Retirement Charge, the Global Adjustment and the HST. | H183: 5_UNMETERED SCATTERED LOAD SERVICE CLASSIFICATION | V183: 275 | AA183: It should be noted that this schedule does not list any charges, assessments, or credits that are required by law to be invoiced by a distributor and that are not subject to Ontario Energy Board approval, such as the Debt Retirement Charge, the Global Adjustment and the HST.
B185: MONTHLY RATES AND CHARGES - Delivery Component | H185: 5_MRC_DEL | V185: 46 | AA185: MONTHLY RATES AND CHARGES - Delivery Component
B187: Service Charge (per customer) | D187: $ | E187: 7.83 | H187: 5_UNMETERED SCATTERED LOAD SERVICE CLASSIFICATION | I187: A | M187: 5_UNMETERED SCATTERED LOAD SERVICE CLASSIFICATION_MSC | V187: 3 | Z187: Service Charge (per customer)
B188: Distribution Volumetric Rate | D188: $/kWh | E188: 0.0123 | H188: 5_UNMETERED SCATTERED LOAD SERVICE CLASSIFICATION | I188: A | M188: 5_UNMETERED SCATTERED LOAD SERVICE CLASSIFICATION_DVC | V188: 6 | Z188: Distribution Volumetric Rate
B189: Low Voltage Service Rate | D189: $/kWh | E189: 0.0027 | H189: 5_UNMETERED SCATTERED LOAD SERVICE CLASSIFICATION | I189: B | M189: 5_UNMETERED SCATTERED LOAD SERVICE CLASSIFICATION_LV | V189: 6 | Z189: Low Voltage Service Rate
B190: Rate Rider for Disposition of Lost Revenue Adjustment Mechanism Variance Account (LRAMVA) (2017) - effective until April 30, 2018 | D190: $/kWh | E190: -0.0005 | H190: 5_UNMETERED SCATTERED LOAD SERVICE CLASSIFICATION | I190: A | M190: 5_UNMETERED SCATTERED LOAD SERVICE CLASSIFICATION_VR_RR_7 | Q190: 2018-04-30 | V190: 7 | Z190: Rate Rider for Disposition of Lost Revenue Adjustment Mechanism Variance Account (LRAMVA) (2017) - effective until April 30, 2018
B191: Rate Rider for Disposition of Lost Revenue Adjustment Mechanism Variance Account (LRAMVA) (2018) - effective until December 31, 2021 | D191: $/kWh | E191: -0.0001 | H191: 5_UNMETERED SCATTERED LOAD SERVICE CLASSIFICATION | I191: A | M191: 5_UNMETERED SCATTERED LOAD SERVICE CLASSIFICATION_VR_RR_7
B192: Rate Rider for Disposition of RSVA - Power - Global Adjustment - NON-WMP (2018)- effective until December 31, 2018 | D192: $/kWh | E192: 0.0042 | H192: 5_UNMETERED SCATTERED LOAD SERVICE CLASSIFICATION | I192: B | M192: 5_UNMETERED SCATTERED LOAD SERVICE CLASSIFICATION_GA_kwh | V192: 5
B193: Rate Rider for Disposition of Group 2 Deferral/Variance Accounts (2018) - effective until December 31, 2018 | D193: $/kWh | E193: 0.0011 | H193: 5_UNMETERED SCATTERED LOAD SERVICE CLASSIFICATION | I193: B | M193: 5_UNMETERED SCATTERED LOAD SERVICE CLASSIFICATION_DEFVAR_ALL | V193: 6
B194: Retail Transmission Rate - Network Service Rate | D194: $/kWh | E194: 0.006 | H194: 5_UNMETERED SCATTERED LOAD SERVICE CLASSIFICATION | I194: C | M194: 5_UNMETERED SCATTERED LOAD SERVICE CLASSIFICATION_Retail Transmission Rate - Network Service Rate | V194: 5 | Z194: Retail Transmission Rate - Network Service Rate
B195: Retail Transmission Rate - Line and Transformation Connection Service Rate | D195: $/kWh | E195: 0.0047 | H195: 5_UNMETERED SCATTERED LOAD SERVICE CLASSIFICATION | I195: C | M195: 5_UNMETERED SCATTERED LOAD SERVICE CLASSIFICATION_Retail Transmission Rate - Line and Transformation Connection Service Rate | V195: 6 | Z195: Retail Transmission Rate - Line and Transformation Connection Service Rate
B197: MONTHLY RATES AND CHARGES - Regulatory Component | H197: 5_MRC_REG | V197: 48 | Z197: MONTHLY RATES AND CHARGES - Regulatory Component
B199: Wholesale Market Service Rate (WMS) - not including CBR | D199: $/kWh | E199: 0.0032 | H199: 5_UNMETERED SCATTERED LOAD SERVICE CLASSIFICATION | I199: T | M199: 5_UNMETERED SCATTERED LOAD SERVICE CLASSIFICATION_WMSR | V199: 6 | Z199: Wholesale Market Service Rate (WMS) - not including CBR
B200: Capacity Based Recovery (CBR) - Applicable for Class B Customers | D200: $/kWh | E200: 0.0004 | H200: 5_UNMETERED SCATTERED LOAD SERVICE CLASSIFICATION | I200: T | V200: 6 | Z200: Capacity Based Recovery (CBR) - Applicable for Class B Customers | AS200: X
B201: Rural or Remote Electricity Rate Protection Charge (RRRP) | D201: $/kWh | E201: 0.0003 | H201: 5_UNMETERED SCATTERED LOAD SERVICE CLASSIFICATION | I201: T | V201: 6 | Z201: RESIDENTIAL SERVICE CLASSIFICATION
B202: Standard Supply Service - Administrative Charge (if applicable) | D202: $ | E202: 0.25 | H202: 5_UNMETERED SCATTERED LOAD SERVICE CLASSIFICATION | I202: T | M202: 5_UNMETERED SCATTERED LOAD SERVICE CLASSIFICATION_SSS | V202: 4 | Z202: Standard Supply Service - Administrative Charge (if applicable) | AS202: X
B203: SENTINEL LIGHTING SERVICE CLASSIFICATION | H203: 6_SENTINEL LIGHTING SERVICE CLASSIFICATION | V203: 40 | AA203: SENTINEL LIGHTING SERVICE CLASSIFICATION
B204: This classification refers to an account that is an unmetered lighting load supplied to a sentinel light where consumption isbased on connected load. Class B consumers are defined in accordance with O. Reg. 429/04. Further servicing details are available in the distributor's Conditions of Service. | H204: 6_SENTINEL LIGHTING SERVICE CLASSIFICATION | V204: 298 | AA204: This classification refers to an account that is an unmetered lighting load supplied to a sentinel light where consumption isbased on connected load. Class B consumers are defined in accordance with O. Reg. 429/04. Further servicing details are available in the distributor's Conditions of Service.
B206: APPLICATION | H206: 6_APPLICATION | V206: 11 | AA206: APPLICATION
B208: The application of these rates and charges shall be in accordance with the Licence of the Distributor and any Code or Order of the Ontario Energy Board, and amendments thereto as approved by the Ontario Energy Board, which may be applicable to the administration of this schedule. | H208: 6_SENTINEL LIGHTING SERVICE CLASSIFICATION | V208: 280 | AA208: The application of these rates and charges shall be in accordance with the Licence of the Distributor and any Code or Order of the Ontario Energy Board, and amendments thereto as approved by the Ontario Energy Board, which may be applicable to the administration of this schedule.
B210: No rates and charges for the distribution of electricity and charges to meet the costs of any work or service done or furnished for the purpose of the distribution of electricity shall be made except as permitted by this schedule, unless required by the Distributor’s Licence or a Code or Order of the Ontario Energy Board, and amendments thereto as approved by the Ontario Energy Board, or as specified herein. | H210: 6_SENTINEL LIGHTING SERVICE CLASSIFICATION | V210: 411 | AA210: No rates and charges for the distribution of electricity and charges to meet the costs of any work or service done or furnished for the purpose of the distribution of electricity shall be made except as permitted by this schedule, unless required by the Distributor’s Licence or a Code or Order of the Ontario Energy Board, and amendments thereto as approved by the Ontario Energy Board, or as specified herein.
B212: Unless specifically noted, this schedule does not contain any charges for the electricity commodity, be it under the Regulated Price Plan, a contract with a retailer or the wholesale market price, as applicable. In addition, the charges in the MONTHLY RATES AND CHARGES - Regulatory Component of this schedule do not apply to a customer that is an embedded wholesale market participant. | H212: 6_SENTINEL LIGHTING SERVICE CLASSIFICATION | V212: 386 | AA212: Unless specifically noted, this schedule does not contain any charges for the electricity commodity, be it under the Regulated Price Plan, a contract with a retailer or the wholesale market price, as applicable. In addition, the charges in the MONTHLY RATES AND CHARGES - Regulatory Component of this schedule do not apply to a customer that is an embedded wholesale market participant.
B214: It should be noted that this schedule does not list any charges, assessments, or credits that are required by law to be invoiced by a distributor and that are not subject to Ontario Energy Board approval, such as the Debt Retirement Charge, the Global Adjustment and the HST. | H214: 6_SENTINEL LIGHTING SERVICE CLASSIFICATION | V214: 275 | AA214: It should be noted that this schedule does not list any charges, assessments, or credits that are required by law to be invoiced by a distributor and that are not subject to Ontario Energy Board approval, such as the Debt Retirement Charge, the Global Adjustment and the HST.
B216: MONTHLY RATES AND CHARGES - Delivery Component | H216: 6_MRC_DEL | V216: 46 | AA216: MONTHLY RATES AND CHARGES - Delivery Component
B218: Service Charge (per connection) | D218: $ | E218: 5.78 | H218: 6_SENTINEL LIGHTING SERVICE CLASSIFICATION | I218: A | M218: 6_SENTINEL LIGHTING SERVICE CLASSIFICATION_MSC | V218: 4 | Z218: Service Charge (per connection)
B219: Distribution Volumetric Rate | D219: $/kW | E219: 15.2908 | H219: 6_SENTINEL LIGHTING SERVICE CLASSIFICATION | I219: A | M219: 6_SENTINEL LIGHTING SERVICE CLASSIFICATION_DVC | V219: 7 | Z219: Distribution Volumetric Rate
B220: Low Voltage Service Rate | D220: $/kW | E220: 0.7882 | H220: 6_SENTINEL LIGHTING SERVICE CLASSIFICATION | I220: B | M220: 6_SENTINEL LIGHTING SERVICE CLASSIFICATION_LV | V220: 6 | Z220: Low Voltage Service Rate
B221: Rate Rider for Disposition of Lost Revenue Adjustment Mechanism Variance Account (LRAMVA) (2017) - effective until April 30, 2018 | D221: $/kW | E221: -0.3623 | H221: 6_SENTINEL LIGHTING SERVICE CLASSIFICATION | I221: A | M221: 6_SENTINEL LIGHTING SERVICE CLASSIFICATION_VR_RR_7 | Q221: 2018-04-30 | V221: 7 | Z221: Rate Rider for Disposition of Lost Revenue Adjustment Mechanism Variance Account (LRAMVA) (2017) - effective until April 30, 2018
B222: Rate Rider for Disposition of Lost Revenue Adjustment Mechanism Variance Account (LRAMVA) (2018) - effective until December 31, 2021 | D222: $/kW | E222: -0.0951 | H222: 6_SENTINEL LIGHTING SERVICE CLASSIFICATION | I222: A | M222: 6_SENTINEL LIGHTING SERVICE CLASSIFICATION_VR_RR_7
B223: Rate Rider for Disposition of Deferral/Variance Accounts Balances (excluding Global Adj.) (2018) -effective until December 31, 2018 | D223: $/kWh | E223: 0.002 | H223: 6_SENTINEL LIGHTING SERVICE CLASSIFICATION | I223: B | M223: 6_SENTINEL LIGHTING SERVICE CLASSIFICATION_DEFVAR_ALL | V223: 5
B224: Rate Rider for Disposition of Deferral/Variance Accounts Balances (excluding Global Adj.) (2018)- NON-WMP - effective until December 31, 2018 | D224: $/kWh | E224: -0.0027 | H224: 6_SENTINEL LIGHTING SERVICE CLASSIFICATION | I224: B | M224: 6_SENTINEL LIGHTING SERVICE CLASSIFICATION_DEFVAR_ALL | V224: 7
B225: Rate Rider for Disposition of RSVA - Power - Global Adjustment - NON-WMP (2018)- effective until December 31, 2018 | D225: $/kWh | E225: 0.0042 | H225: 6_SENTINEL LIGHTING SERVICE CLASSIFICATION | I225: B | M225: 6_SENTINEL LIGHTING SERVICE CLASSIFICATION_GA_kwh | V225: 5
B226: Rate Rider for Disposition of Group 2 Deferral/Variance Accounts (2018) - effective until December 31, 2018 | D226: $/kW | E226: 0.3914 | H226: 6_SENTINEL LIGHTING SERVICE CLASSIFICATION | I226: B | M226: 6_SENTINEL LIGHTING SERVICE CLASSIFICATION_DEFVAR_ALL | V226: 6
B227: Retail Transmission Rate - Network Service Rate | D227: $/kW | E227: 1.8338 | H227: 6_SENTINEL LIGHTING SERVICE CLASSIFICATION | I227: C | M227: 6_SENTINEL LIGHTING SERVICE CLASSIFICATION_Retail Transmission Rate - Network Service Rate | V227: 6 | Z227: Retail Transmission Rate - Network Service Rate
B228: Retail Transmission Rate - Line and Transformation Connection Service Rate | D228: $/kW | E228: 1.4577 | H228: 6_SENTINEL LIGHTING SERVICE CLASSIFICATION | I228: C | M228: 6_SENTINEL LIGHTING SERVICE CLASSIFICATION_Retail Transmission Rate - Line and Transformation Connection Service Rate | V228: 6 | Z228: Retail Transmission Rate - Line and Transformation Connection Service Rate
B230: MONTHLY RATES AND CHARGES - Regulatory Component | H230: 6_MRC_REG | V230: 48 | Z230: MONTHLY RATES AND CHARGES - Regulatory Component
B232: Wholesale Market Service Rate (WMS) - not including CBR | D232: $/kWh | E232: 0.0032 | H232: 6_SENTINEL LIGHTING SERVICE CLASSIFICATION | I232: T | M232: 6_SENTINEL LIGHTING SERVICE CLASSIFICATION_WMSR | V232: 6 | Z232: Wholesale Market Service Rate (WMS) - not including CBR
B233: Capacity Based Recovery (CBR) - Applicable for Class B Customers | D233: $/kWh | E233: 0.0004 | H233: 6_SENTINEL LIGHTING SERVICE CLASSIFICATION | I233: T | V233: 6 | Z233: Capacity Based Recovery (CBR) - Applicable for Class B Customers | AS233: X
B234: Rural or Remote Electricity Rate Protection Charge (RRRP) | D234: $/kWh | E234: 0.0003 | H234: 6_SENTINEL LIGHTING SERVICE CLASSIFICATION | I234: T | V234: 6 | Z234: RESIDENTIAL SERVICE CLASSIFICATION
B235: Standard Supply Service - Administrative Charge (if applicable) | D235: $ | E235: 0.25 | H235: 6_SENTINEL LIGHTING SERVICE CLASSIFICATION | I235: T | M235: 6_SENTINEL LIGHTING SERVICE CLASSIFICATION_SSS | V235: 4 | Z235: Standard Supply Service - Administrative Charge (if applicable) | AS235: X
B236: STREET LIGHTING SERVICE CLASSIFICATION | H236: 7_STREET LIGHTING SERVICE CLASSIFICATION | V236: 38 | AA236: STREET LIGHTING SERVICE CLASSIFICATION
B237: This classification applies to an account for roadway lighting with a Municipality, Regional Municipality, Ministry of Transportation and private roadway lighting, controlled by photo cells. The consumption of these customers will be based on the calculated connected load times the required lighting times established in the approved Ontario Energy Board street lighting load shape template. Class B consumers are defined in accordance with O. Reg. 429/04. Further servicing details are available in the distributor's Conditions of Service. | H237: 7_STREET LIGHTING SERVICE CLASSIFICATION | V237: 542 | AA237: This classification applies to an account for roadway lighting with a Municipality, Regional Municipality, Ministry of Transportation and private roadway lighting, controlled by photo cells. The consumption of these customers will be based on the calculated connected load times the required lighting times established in the approved Ontario Energy Board street lighting load shape template. Class B consumers are defined in accordance with O. Reg. 429/04. Further servicing details are available in the distributor's Conditions of Service.
B239: APPLICATION | H239: 7_APPLICATION | V239: 11 | AA239: APPLICATION
B241: The application of these rates and charges shall be in accordance with the Licence of the Distributor and any Code or Order of the Ontario Energy Board, and amendments thereto as approved by the Ontario Energy Board, which may be applicable to the administration of this schedule. | H241: 7_STREET LIGHTING SERVICE CLASSIFICATION | V241: 280 | AA241: The application of these rates and charges shall be in accordance with the Licence of the Distributor and any Code or Order of the Ontario Energy Board, and amendments thereto as approved by the Ontario Energy Board, which may be applicable to the administration of this schedule.
B243: No rates and charges for the distribution of electricity and charges to meet the costs of any work or service done or furnished for the purpose of the distribution of electricity shall be made except as permitted by this schedule, unless required by the Distributor’s Licence or a Code or Order of the Ontario Energy Board, and amendments thereto as approved by the Ontario Energy Board, or as specified herein. | H243: 7_STREET LIGHTING SERVICE CLASSIFICATION | V243: 411 | AA243: No rates and charges for the distribution of electricity and charges to meet the costs of any work or service done or furnished for the purpose of the distribution of electricity shall be made except as permitted by this schedule, unless required by the Distributor’s Licence or a Code or Order of the Ontario Energy Board, and amendments thereto as approved by the Ontario Energy Board, or as specified herein.
B245: Unless specifically noted, this schedule does not contain any charges for the electricity commodity, be it under the Regulated Price Plan, a contract with a retailer or the wholesale market price, as applicable. In addition, the charges in the MONTHLY RATES AND CHARGES - Regulatory Component of this schedule do not apply to a customer that is an embedded wholesale market participant. | H245: 7_STREET LIGHTING SERVICE CLASSIFICATION | V245: 386 | AA245: Unless specifically noted, this schedule does not contain any charges for the electricity commodity, be it under the Regulated Price Plan, a contract with a retailer or the wholesale market price, as applicable. In addition, the charges in the MONTHLY RATES AND CHARGES - Regulatory Component of this schedule do not apply to a customer that is an embedded wholesale market participant.
B247: It should be noted that this schedule does not list any charges, assessments, or credits that are required by law to be invoiced by a distributor and that are not subject to Ontario Energy Board approval, such as the Debt Retirement Charge, the Global Adjustment and the HST. | H247: 7_STREET LIGHTING SERVICE CLASSIFICATION | V247: 275 | AA247: It should be noted that this schedule does not list any charges, assessments, or credits that are required by law to be invoiced by a distributor and that are not subject to Ontario Energy Board approval, such as the Debt Retirement Charge, the Global Adjustment and the HST.
B249: MONTHLY RATES AND CHARGES - Delivery Component | H249: 7_MRC_DEL | V249: 46 | AA249: MONTHLY RATES AND CHARGES - Delivery Component
B251: Service Charge (per connection) | D251: $ | E251: 2.18 | H251: 7_STREET LIGHTING SERVICE CLASSIFICATION | I251: A | M251: 7_STREET LIGHTING SERVICE CLASSIFICATION_MSC | V251: 4 | Z251: Service Charge (per connection)
B252: Distribution Volumetric Rate | D252: $/kW | E252: 10.5671 | H252: 7_STREET LIGHTING SERVICE CLASSIFICATION | I252: A | M252: 7_STREET LIGHTING SERVICE CLASSIFICATION_DVC | V252: 7 | Z252: Distribution Volumetric Rate
B253: Low Voltage Service Rate | D253: $/kW | E253: 0.772 | H253: 7_STREET LIGHTING SERVICE CLASSIFICATION | I253: B | M253: 7_STREET LIGHTING SERVICE CLASSIFICATION_LV | V253: 6 | Z253: Low Voltage Service Rate
B254: Rate Rider for Disposition of Lost Revenue Adjustment Mechanism Variance Account (LRAMVA) (2017) - effective until April 30, 2018 | D254: $/kW | E254: -0.4462 | H254: 7_STREET LIGHTING SERVICE CLASSIFICATION | I254: A | M254: 7_STREET LIGHTING SERVICE CLASSIFICATION_VR_RR_7 | Q254: 2018-04-30 | V254: 7 | Z254: Rate Rider for Disposition of Lost Revenue Adjustment Mechanism Variance Account (LRAMVA) (2017) - effective until April 30, 2018
B255: Rate Rider for Disposition of Lost Revenue Adjustment Mechanism Variance Account (LRAMVA) (2018) - effective until December 31, 2021 | D255: $/kW | E255: 3.0915 | H255: 7_STREET LIGHTING SERVICE CLASSIFICATION | I255: A | M255: 7_STREET LIGHTING SERVICE CLASSIFICATION_VR_RR_7
B256: Rate Rider for Disposition of Deferral/Variance Accounts Balances (excluding Global Adj.) (2018)-effective until December 31, 2018 | D256: $/kW | E256: 0.7414 | H256: 7_STREET LIGHTING SERVICE CLASSIFICATION | I256: B | M256: 7_STREET LIGHTING SERVICE CLASSIFICATION_DEFVAR_ALL | V256: 6
B257: Rate Rider for Disposition of Deferral/Variance Accounts Balances (excluding Global Adj.) (2018)- NON-WMP - effective until December 31, 2018 | D257: $/kW | E257: -1.0174 | H257: 7_STREET LIGHTING SERVICE CLASSIFICATION | I257: B | M257: 7_STREET LIGHTING SERVICE CLASSIFICATION_DEFVAR_ALL | V257: 7
B258: Rate Rider for Disposition of RSVA - Power - Global Adjustment - NON-WMP (2018)- effective until December 31, 2018 | D258: $/kWh | E258: 0.0042 | H258: 7_STREET LIGHTING SERVICE CLASSIFICATION | I258: B | M258: 7_STREET LIGHTING SERVICE CLASSIFICATION_GA_kwh | V258: 5
B259: Rate Rider for Disposition of Group 2 Deferral/Variance Accounts (2018) - effective until December 31, 2018 | D259: $/kW | E259: 0.3957 | H259: 7_STREET LIGHTING SERVICE CLASSIFICATION | I259: B | M259: 7_STREET LIGHTING SERVICE CLASSIFICATION_DEFVAR_ALL | V259: 6
B260: Retail Transmission Rate - Network Service Rate | D260: $/kW | E260: 1.8245 | H260: 7_STREET LIGHTING SERVICE CLASSIFICATION | I260: C | M260: 7_STREET LIGHTING SERVICE CLASSIFICATION_Retail Transmission Rate - Network Service Rate | V260: 6 | Z260: Retail Transmission Rate - Network Service Rate
B261: Retail Transmission Rate - Line and Transformation Connection Service Rate | D261: $/kW | E261: 1.4279 | H261: 7_STREET LIGHTING SERVICE CLASSIFICATION | I261: C | M261: 7_STREET LIGHTING SERVICE CLASSIFICATION_Retail Transmission Rate - Line and Transformation Connection Service Rate | V261: 6 | Z261: Retail Transmission Rate - Line and Transformation Connection Service Rate
B263: MONTHLY RATES AND CHARGES - Regulatory Component | H263: 7_MRC_REG | V263: 48 | Z263: MONTHLY RATES AND CHARGES - Regulatory Component
B265: Wholesale Market Service Rate (WMS) - not including CBR | D265: $/kWh | E265: 0.0032 | H265: 7_STREET LIGHTING SERVICE CLASSIFICATION | I265: T | M265: 7_STREET LIGHTING SERVICE CLASSIFICATION_WMSR | V265: 6 | Z265: Wholesale Market Service Rate (WMS) - not including CBR
B266: Capacity Based Recovery (CBR) - Applicable for Class B Customers | D266: $/kWh | E266: 0.0004 | H266: 7_STREET LIGHTING SERVICE CLASSIFICATION | I266: T | V266: 6 | Z266: Capacity Based Recovery (CBR) - Applicable for Class B Customers | AS266: X
B267: Rural or Remote Electricity Rate Protection Charge (RRRP) | D267: $/kWh | E267: 0.0003 | H267: 7_STREET LIGHTING SERVICE CLASSIFICATION | I267: T | V267: 6 | Z267: RESIDENTIAL SERVICE CLASSIFICATION
B268: Standard Supply Service - Administrative Charge (if applicable) | D268: $ | E268: 0.25 | H268: 7_STREET LIGHTING SERVICE CLASSIFICATION | I268: T | M268: 7_STREET LIGHTING SERVICE CLASSIFICATION_SSS | V268: 4 | Z268: Standard Supply Service - Administrative Charge (if applicable) | AS268: X
B269: microFIT SERVICE CLASSIFICATION | H269: 8_MICROFIT SERVICE CLASSIFICATION | V269: 31 | AA269: microFIT SERVICE CLASSIFICATION
B270: This classification applies to an electricity generation facility contracted under the Independent Electricity System Operator’s microFIT program and connected to the distributor's distribution system. Further servicing details are available in the distributor's Conditions of Service. | H270: 8_MICROFIT SERVICE CLASSIFICATION | V270: 285 | AA270: This classification applies to an electricity generation facility contracted under the Independent Electricity System Operator’s microFIT program and connected to the distributor's distribution system. Further servicing details are available in the distributor's Conditions of Service.
B272: APPLICATION | H272: 8_APPLICATION | V272: 11 | AA272: APPLICATION
B274: The application of these rates and charges shall be in accordance with the Licence of the Distributor and any Code or Order of the Ontario Energy Board, and amendments thereto as approved by the Ontario Energy Board, which may be applicable to the administration of this schedule. | H274: 8_MICROFIT SERVICE CLASSIFICATION | V274: 280 | AA274: The application of these rates and charges shall be in accordance with the Licence of the Distributor and any Code or Order of the Ontario Energy Board, and amendments thereto as approved by the Ontario Energy Board, which may be applicable to the administration of this schedule.
B276: No rates and charges for the distribution of electricity and charges to meet the costs of any work or service done or furnished for the purpose of the distribution of electricity shall be made except as permitted by this schedule, unless required by the Distributor’s Licence or a Code or Order of the Ontario Energy Board, and amendments thereto as approved by the Ontario Energy Board, or as specified herein. | H276: 8_MICROFIT SERVICE CLASSIFICATION | V276: 411 | AA276: No rates and charges for the distribution of electricity and charges to meet the costs of any work or service done or furnished for the purpose of the distribution of electricity shall be made except as permitted by this schedule, unless required by the Distributor’s Licence or a Code or Order of the Ontario Energy Board, and amendments thereto as approved by the Ontario Energy Board, or as specified herein.
B278: Unless specifically noted, this schedule does not contain any charges for the electricity commodity, be it under the Regulated Price Plan, a contract with a retailer or the wholesale market price, as applicable. | H278: 8_MICROFIT SERVICE CLASSIFICATION | V278: 211 | AA278: Unless specifically noted, this schedule does not contain any charges for the electricity commodity, be it under the Regulated Price Plan, a contract with a retailer or the wholesale market price, as applicable.
B280: It should be noted that this schedule does not list any charges, assessments, or credits that are required by law to be invoiced by a distributor and that are not subject to Ontario Energy Board approval, such as the Debt Retirement Charge, the Global Adjustment and the HST. | H280: 8_MICROFIT SERVICE CLASSIFICATION | V280: 275 | AA280: It should be noted that this schedule does not list any charges, assessments, or credits that are required by law to be invoiced by a distributor and that are not subject to Ontario Energy Board approval, such as the Debt Retirement Charge, the Global Adjustment and the HST.
... 70 more rows

Sheet 5. 2-W Bill Impacts
AZ1: YES | CA1: 1
D12: The bill comparisons below must be provided for typical customers and consumption levels. Bill impacts must be provided for residential customers consuming 750 kWh per month and general service customers consuming 2,000 kWh per month and having a monthly demand of less than 50 kW. Include bill comparisons for Non-RPP (retailer) as well. The OEB has established that, when assessing the combined effects of the shift to fixed rates and other bill impacts associated with changes in the cost of distribution service, a utility shall evaluate the total bill impact for a low volume residential customer consuming at the distributor’s 10th consumption percentile19, to a minimum of 50 kWh per month. Refer to page 62 of Chapter 2 Filing Requirements For Electricity Distribution Rate Applications issued July 14, 2016. For certain classes where one or more customers have unique consumption and demand patterns and which may be significantly impacted by the proposed rate changes, the distributor must show a typical comparison, and provide an explanation. Note: 1. For those classes that are not eligible for the RPP price, the weighted average price including Class B GA through end of May 2016 of $0.113/kWh (IESO's Monthly Market Report for May 2016, page 22) has been used to represent the cost of power. For those classes on a retailer contract, applicants should enter the contract price (plus GA) for a more accurate estimate. Changes to the cost of power can be made directly on the bill impact chart for the specific class. 2. Due to the change to energy consumption used in the calculation of GA rate riders for the 2017 rate year, the separate “GA Rate Riders” line is only applicable to the “Proposed” section of the bill impact tables. 3. Please enter the applicable billing determinant (e.g. number of connections or devices) to be applied to the monthly service charge for unmetered rate classes in column N. If the monthly service charge is applied on a per customer basis, enter the number “1”. Distributors should provide the number of connections or devices reflective of a typical customer in each class.
D13: Note that cells with the highlighted color shown to the left indicate quantities that are loss adjusted.
D28: Table 1
D29: RATE CLASSES / CATEGORIES (eg: Residential TOU, Residential Retailer) | G29: Units | H29: RPP? Non-RPP Retailer? Non-RPP Other? | I29: Current Loss Factor (eg: 1.0351) | J29: Proposed Loss Factor | K29: Consumption (kWh) | L29: Demand kW (if applicable) | M29: RTSR Demand or Demand-Interval? | N29: Billing Determinant Applied to Fixed Charge for Unmetered Classes (e.g. # of devices/connections).
B30: 1 | C30: 1 | D30: RESIDENTIAL SERVICE CLASSIFICATION | G30: kWh | H30: RPP | I30: 1.0497 | J30: 1.0453 | K30: 750 | M30: N/A | T30: =SUM(I30:L30) -> 752.095 | U30: 78 | AS30: 1
B31: 2 | C31: 2 | D31: GENERAL SERVICE LESS THAN 50 kW SERVICE CLASSIFICATION | G31: kWh | H31: RPP | I31: 1.0497 | J31: 1.0453 | K31: 2000 | M31: N/A | T31: 2002.095 | U31: =U30+68 -> 146 | AS31: 2
B32: 3 | C32: 3 | D32: GENERAL SERVICE 50 TO 2,999 KW SERVICE CLASSIFICATION | G32: kW | H32: Non-RPP (Other) | I32: 1.0497 | J32: 1.0453 | K32: 332500 | L32: 840 | M32: DEMAND | T32: 333342.095 | U32: 214 | AS32: 3
B33: 4 | C33: 4 | D33: GENERAL SERVICE 3,000 TO 4,999 KW SERVICE CLASSIFICATION | G33: kW | H33: Non-RPP (Other) | I33: 1.0497 | J33: 1.0453 | K33: 1507000 | L33: 3600 | M33: DEMAND | T33: 1510602.095 | U33: 282 | AS33: 4
B34: 5 | C34: 5 | D34: UNMETERED SCATTERED LOAD SERVICE CLASSIFICATION | G34: kWh | H34: RPP | I34: 1.0497 | J34: 1.0453 | K34: 275 | M34: N/A | N34: 1 | T34: 277.095 | U34: 350 | AS34: 5
B35: 6 | C35: 6 | D35: SENTINEL LIGHTING SERVICE CLASSIFICATION | G35: kW | H35: RPP | I35: 1.0497 | J35: 1.0453 | K35: 75 | L35: 0.3 | M35: DEMAND | N35: 1 | T35: 77.395 | U35: 418 | AS35: 6
B36: 7 | C36: 7 | D36: STREET LIGHTING SERVICE CLASSIFICATION | G36: kW | H36: Non-RPP (Other) | I36: 1.0497 | J36: 1.0453 | K36: 19051 | L36: 45 | M36: DEMAND | N36: 532 | T36: 19098.095 | U36: 486 | AS36: 7
B37: 8 | C37: 8 | D37: RESIDENTIAL SERVICE CLASSIFICATION | G37: kWh | H37: RPP | I37: 1.0497 | J37: 1.0453 | K37: 318 | M37: N/A | T37: 320.095 | AS37: 8
B38: 9 | C38: 9 | D38: RESIDENTIAL SERVICE CLASSIFICATION | G38: kWh | H38: Non-RPP (Retailer) | I38: 1.0497 | J38: 1.0453 | K38: 318 | M38: N/A | T38: 320.095 | AS38: 9
B39: 10 | C39: =IF(ISERROR(VLOOKUP(D39, D30:AS69, 42, FALSE)),"", VLOOKUP(D39, D30:AS69, 42, FALSE)) -> 1 | D39: RESIDENTIAL SERVICE CLASSIFICATION | G39: kWh | H39: Non-RPP (Retailer) | I39: 1.0497 | J39: 1.0453 | K39: 750 | M39: N/A | T39: 752.095
B40: 11 | C40: =IF(ISERROR(VLOOKUP(D40, D30:AS69, 42, FALSE)),"", VLOOKUP(D40, D30:AS69, 42, FALSE)) -> 2 | D40: GENERAL SERVICE LESS THAN 50 kW SERVICE CLASSIFICATION | G40: kWh | H40: Non-RPP (Retailer) | I40: 1.0497 | J40: 1.0453 | K40: 2000 | M40: N/A | T40: 2002.095
B41: 12 | C41: =IF(ISERROR(VLOOKUP(D41, D30:AS69, 42, FALSE)),"", VLOOKUP(D41, D30:AS69, 42, FALSE)) -> 5 | D41: UNMETERED SCATTERED LOAD SERVICE CLASSIFICATION | G41: kWh | H41: Non-RPP (Retailer) | I41: 1.0497 | J41: 1.0453 | K41: 275 | M41: N/A | N41: 1 | T41: 277.095
B42: 13 | C42: =IF(ISERROR(VLOOKUP(D42, D30:AS69, 42, FALSE)),"", VLOOKUP(D42, D30:AS69, 42, FALSE)) -> 6 | D42: SENTINEL LIGHTING SERVICE CLASSIFICATION | G42: kW | H42: Non-RPP (Retailer) | I42: 1.0497 | J42: 1.0453 | K42: 75 | L42: 0.3 | M42: DEMAND | N42: 1 | T42: 77.395
B43: 14 | C43: =IF(ISERROR(VLOOKUP(D43, D30:AS69, 42, FALSE)),"", VLOOKUP(D43, D30:AS69, 42, FALSE)) -> 0 | D43: Add additional scenarios if required | T43: 0
B44: 15 | C44: =IF(ISERROR(VLOOKUP(D44, D30:AS69, 42, FALSE)),"", VLOOKUP(D44, D30:AS69, 42, FALSE)) -> 0 | D44: Add additional scenarios if required | T44: 0
B45: 16 | C45: =IF(ISERROR(VLOOKUP(D45, D30:AS69, 42, FALSE)),"", VLOOKUP(D45, D30:AS69, 42, FALSE)) -> 0 | D45: Add additional scenarios if required | T45: 0
B46: 17 | C46: =IF(ISERROR(VLOOKUP(D46, D30:AS69, 42, FALSE)),"", VLOOKUP(D46, D30:AS69, 42, FALSE)) -> 0 | D46: Add additional scenarios if required | T46: 0
B47: 18 | C47: =IF(ISERROR(VLOOKUP(D47, D30:AS69, 42, FALSE)),"", VLOOKUP(D47, D30:AS69, 42, FALSE)) -> 0 | D47: Add additional scenarios if required | T47: 0
B48: 19 | C48: =IF(ISERROR(VLOOKUP(D48, D30:AS69, 42, FALSE)),"", VLOOKUP(D48, D30:AS69, 42, FALSE)) -> 0 | D48: Add additional scenarios if required | T48: 0
B49: 20 | C49: =IF(ISERROR(VLOOKUP(D49, D30:AS69, 42, FALSE)),"", VLOOKUP(D49, D30:AS69, 42, FALSE)) -> 0 | D49: Add additional scenarios if required | T49: 0
B50: 21 | C50: =IF(ISERROR(VLOOKUP(D50, D30:AS69, 42, FALSE)),"", VLOOKUP(D50, D30:AS69, 42, FALSE)) -> 0 | D50: Add additional scenarios if required | T50: 0
B51: 22 | C51: =IF(ISERROR(VLOOKUP(D51, D30:AS69, 42, FALSE)),"", VLOOKUP(D51, D30:AS69, 42, FALSE)) -> 0 | D51: Add additional scenarios if required | T51: 0
B52: 23 | C52: =IF(ISERROR(VLOOKUP(D52, D30:AS69, 42, FALSE)),"", VLOOKUP(D52, D30:AS69, 42, FALSE)) -> 0 | D52: Add additional scenarios if required | T52: 0
B53: 24 | C53: =IF(ISERROR(VLOOKUP(D53, D30:AS69, 42, FALSE)),"", VLOOKUP(D53, D30:AS69, 42, FALSE)) -> 0 | D53: Add additional scenarios if required | T53: 0
B54: 25 | C54: =IF(ISERROR(VLOOKUP(D54, D30:AS69, 42, FALSE)),"", VLOOKUP(D54, D30:AS69, 42, FALSE)) -> 0 | D54: Add additional scenarios if required | T54: 0
B55: 26 | C55: =IF(ISERROR(VLOOKUP(D55, D30:AS69, 42, FALSE)),"", VLOOKUP(D55, D30:AS69, 42, FALSE)) -> 0 | D55: Add additional scenarios if required | T55: 0
B56: 27 | C56: =IF(ISERROR(VLOOKUP(D56, D30:AS69, 42, FALSE)),"", VLOOKUP(D56, D30:AS69, 42, FALSE)) -> 0 | D56: Add additional scenarios if required | T56: 0
B57: 28 | C57: =IF(ISERROR(VLOOKUP(D57, D30:AS69, 42, FALSE)),"", VLOOKUP(D57, D30:AS69, 42, FALSE)) -> 0 | D57: Add additional scenarios if required | T57: 0 | U57: =U36+68 -> 554 | AS57: 8
B58: 29 | C58: =IF(ISERROR(VLOOKUP(D58, D30:AS69, 42, FALSE)),"", VLOOKUP(D58, D30:AS69, 42, FALSE)) -> 0 | D58: Add additional scenarios if required | T58: 0 | U58: =U57+68 -> 622 | AS58: 9
B59: 30 | C59: =IF(ISERROR(VLOOKUP(D59, D30:AS69, 42, FALSE)),"", VLOOKUP(D59, D30:AS69, 42, FALSE)) -> 0 | D59: Add additional scenarios if required | T59: 0 | U59: 690 | AS59: 10
B60: 31 | C60: =IF(ISERROR(VLOOKUP(D60, D30:AS69, 42, FALSE)),"", VLOOKUP(D60, D30:AS69, 42, FALSE)) -> 0 | D60: Add additional scenarios if required | T60: 0 | U60: 758
B61: 32 | C61: =IF(ISERROR(VLOOKUP(D61, D30:AS69, 42, FALSE)),"", VLOOKUP(D61, D30:AS69, 42, FALSE)) -> 0 | D61: Add additional scenarios if required | T61: 0 | U61: 826
B62: 33 | C62: =IF(ISERROR(VLOOKUP(D62, D30:AS69, 42, FALSE)),"", VLOOKUP(D62, D30:AS69, 42, FALSE)) -> 0 | D62: Add additional scenarios if required | T62: 0 | U62: 894
B63: 34 | C63: =IF(ISERROR(VLOOKUP(D63, D30:AS69, 42, FALSE)),"", VLOOKUP(D63, D30:AS69, 42, FALSE)) -> 0 | D63: Add additional scenarios if required | T63: 0 | U63: 962
B64: 35 | C64: =IF(ISERROR(VLOOKUP(D64, D30:AS69, 42, FALSE)),"", VLOOKUP(D64, D30:AS69, 42, FALSE)) -> 0 | D64: Add additional scenarios if required | T64: 0 | U64: 1030
B65: 36 | C65: =IF(ISERROR(VLOOKUP(D65, D30:AS69, 42, FALSE)),"", VLOOKUP(D65, D30:AS69, 42, FALSE)) -> 0 | D65: Add additional scenarios if required | T65: 0 | U65: 1098
B66: 37 | C66: =IF(ISERROR(VLOOKUP(D66, D30:AS69, 42, FALSE)),"", VLOOKUP(D66, D30:AS69, 42, FALSE)) -> 0 | D66: Add additional scenarios if required | T66: 0 | U66: 1166
B67: 38 | C67: =IF(ISERROR(VLOOKUP(D67, D30:AS69, 42, FALSE)),"", VLOOKUP(D67, D30:AS69, 42, FALSE)) -> 0 | D67: Add additional scenarios if required | T67: 0 | U67: 1234
B68: 39 | C68: =IF(ISERROR(VLOOKUP(D68, D30:AS69, 42, FALSE)),"", VLOOKUP(D68, D30:AS69, 42, FALSE)) -> 0 | D68: Add additional scenarios if required | T68: 0 | U68: 1302
B69: 40 | C69: =IF(ISERROR(VLOOKUP(D69, D30:AS69, 42, FALSE)),"", VLOOKUP(D69, D30:AS69, 42, FALSE)) -> 0 | D69: Add additional scenarios if required | T69: 0 | U69: 1370
D71: Table 2
D72: RATE CLASSES / CATEGORIES (eg: Residential TOU, Residential Retailer) | G72: Units | H72: Sub-Total | N72: Total
H73: A | J73: B | L73: C | N73: A + B + C
H74: $ | I74: % | J74: $ | K74: % | L74: $ | M74: % | N74: $ | O74: %
B75: =H30 -> RPP | C75: 1 | D75: =IF(ISBLANK(D30), "", IF(D30 = "Add additional scenarios if required", "", IF(M30="YES", D30 & " - " & H30 & " - Interval Customers", D30 & " - " &H30))) -> RESIDENTIAL SERVICE CLASSIFICATION - RPP | G75: =IF(ISBLANK(G30), "", G30) -> kWh | H75: =IF(LEN($G75)>1, (SUMPRODUCT(--($C$118:$C$1002=$B30), --($A$118:$A$1002=$D30), --($B$118:$B$1002="ST_A"), $L$118:$L$1002)), "") -> 2.985 | I75: =IF(LEN($G75)>1, (SUMPRODUCT(--($C$118:$C$1002=$B30), --($A$118:$A$1002=$D30), --($B$118:$B$1002="ST_A"), $M$118:$M$1002)), "") -> 0.1123447497 | J75: =IF(LEN($G75)>1, (SUMPRODUCT(--($C$118:$C$1002=$B30), --($A$118:$A$1002=$D30), --($B$118:$B$1002="ST_B"), $L$118:$L$1002)), "") -> 3.738872 | K75: =IF(LEN($G75)>1, (SUMPRODUCT(--($C$118:$C$1002=$B30), --($A$118:$A$1002=$D30), --($B$118:$B$1002="ST_B"), $M$118:$M$1002)), "") -> 0.1176763035 | L75: =IF(LEN($G75)>1, (SUMPRODUCT(--($C$118:$C$1002=$B30), --($A$118:$A$1002=$D30), --($B$118:$B$1002="ST_C"), $L$118:$L$1002)), "") -> 3.7789895 | M75: =IF(LEN($G75)>1, (SUMPRODUCT(--($C$118:$C$1002=$B30), --($A$118:$A$1002=$D30), --($B$118:$B$1002="ST_C"), $M$118:$M$1002)), "") -> 0.09238475416 | N75: =IF(LEN($G75)>1, (SUMPRODUCT(--($C$118:$C$1002=$B30), --($A$118:$A$1002=$D30), --($B$118:$B$1002=$B75&"_TOTAL"), $L$118:$L$1002)), "") -> 2.137206225 | O75: =IF(LEN($G75)>1, (SUMPRODUCT(--($C$118:$C$1002=$B30), --($A$118:$A$1002=$D30), --($B$118:$B$1002=$B75&"_TOTAL"), $M$118:$M$1002)), "") -> 0.01897622131
B76: RPP | C76: 2 | D76: GENERAL SERVICE LESS THAN 50 kW SERVICE CLASSIFICATION - RPP | G76: kWh | H76: 9.41 | I76: 0.1451264651 | J76: 11.686992 | K76: 0.1517856141 | L76: 11.802772 | M76: 0.118919205 | N76: 7.5109566 | O76: 0.02468466106
B77: Non-RPP (Other) | C77: 3 | D77: GENERAL SERVICE 50 TO 2,999 KW SERVICE CLASSIFICATION - Non-RPP (Other) | G77: kW | H77: 412.944 | I77: 0.1273869789 | J77: 2251.536 | K77: 0.5970631803 | L77: 2286.984 | M77: 0.3124574245 | N77: 1528.812764 | O77: 0.02702405845
B78: Non-RPP (Other) | C78: 4 | D78: GENERAL SERVICE 3,000 TO 4,999 KW SERVICE CLASSIFICATION - Non-RPP (Other) | G78: kW | H78: 829.44 | I78: 0.07576911904 | J78: 9231 | K78: 0.6776130052 | L78: 9403.8 | M78: 0.3030314748 | N78: 5842.513286 | O78: 0.02300340895
B79: RPP | C79: 5 | D79: UNMETERED SCATTERED LOAD SERVICE CLASSIFICATION - RPP | G79: kWh | H79: 1.2675 | I79: 0.129601227 | J79: 1.7730864 | K79: 0.1563165498 | L79: 1.78900615 | M79: 0.1242124091 | N79: 1.299163994 | O79: 0.02816711073
B80: RPP | C80: 6 | D80: SENTINEL LIGHTING SERVICE CLASSIFICATION - RPP | G80: kW | H80: 1.8525 | I80: 0.2211274936 | J80: 2.0298372 | K80: 0.2298017861 | L80: 2.0395872 | M80: 0.2078943386 | N80: 2.107711821 | O80: 0.1084661651
B81: Non-RPP (Other) | C81: 7 | D81: STREET LIGHTING SERVICE CLASSIFICATION - Non-RPP (Other) | G81: kW | H81: 328.6465 | I81: 0.2305204951 | J81: 426.8632 | K81: 0.2948774019 | L81: 428.3077 | M81: 0.2689515099 | N81: 423.5127134 | O81: 0.09273272884
B82: =H37 -> RPP | C82: 8 | D82: RESIDENTIAL SERVICE CLASSIFICATION - RPP | G82: kWh | H82: 4.3242 | I82: 0.1850067599 | J82: 5.018241728 | K82: 0.1927564457 | L82: 5.035251548 | M82: 0.1683679281 | N82: 4.510783439 | O82: 0.07383216903
B83: Non-RPP (Retailer) | C83: 9 | D83: RESIDENTIAL SERVICE CLASSIFICATION - Non-RPP (Retailer) | G83: kWh | H83: 4.3242 | I83: 0.1850067599 | J83: 6.31474808 | K83: 0.2385112125 | L83: 6.3317579 | M83: 0.20863963 | N83: 5.872115109 | O83: 0.08314449666
B84: Non-RPP (Retailer) | C84: 10 | D84: RESIDENTIAL SERVICE CLASSIFICATION - Non-RPP (Retailer) | G84: kWh | H84: 2.985 | I84: 0.1123447497 | J84: 6.79667 | K84: 0.2071272829 | L84: 6.8367875 | M84: 0.1629887856 | N84: 5.347894125 | O84: 0.03947971858
B85: Non-RPP (Retailer) | C85: 11 | D85: GENERAL SERVICE LESS THAN 50 kW SERVICE CLASSIFICATION - Non-RPP (Retailer) | G85: kWh | H85: 9.41 | I85: 0.1451264651 | J85: 19.84112 | K85: 0.2487168115 | L85: 19.9569 | M85: 0.1956029928 | N85: 16.072791 | O85: 0.04396231114
B86: Non-RPP (Retailer) | C86: 12 | D86: UNMETERED SCATTERED LOAD SERVICE CLASSIFICATION - Non-RPP (Retailer) | G86: kWh | H86: 1.2675 | I86: 0.129601227 | J86: 2.894279 | K86: 0.2468512074 | L86: 2.91019875 | M86: 0.1968389752 | N86: 2.566111632 | O86: 0.04669494449
B87: Non-RPP (Retailer) | C87: 13 | D87: SENTINEL LIGHTING SERVICE CLASSIFICATION - Non-RPP (Retailer) | G87: kW | H87: 1.8525 | I87: 0.2211274936 | J87: 2.335617 | K87: 0.2613383687 | L87: 2.345367 | M87: 0.2365512234 | N87: 2.453242995 | O87: 0.1133919314
B88: 0 | C88: 14
B89: 0 | C89: 15
B90: 0 | C90: 16
B91: 0 | C91: 17
B92: 0 | C92: 18
B93: 0 | C93: 19
B94: 0 | C94: 20
B95: 0 | C95: 21
B96: 0 | C96: 22
B97: 0 | C97: 23
B98: =H53 -> 0 | C98: 24
B99: 0 | C99: 25
B100: 0 | C100: 26
B101: 0 | C101: 27
B102: 0 | C102: 28
B103: 0 | C103: 29
B104: 0 | C104: 30
B105: 0 | C105: 31
B106: 0 | C106: 32
B107: 0 | C107: 33
B108: 0 | C108: 34
B109: 0 | C109: 35
B110: 0 | C110: 36
B111: 0 | C111: 37
B112: 0 | C112: 38
B113: 0 | C113: 39
B114: 0 | C114: 40
D118: Customer Class: | E118: =D30 -> RESIDENTIAL SERVICE CLASSIFICATION | K118: =IF(N30="DEMAND - INTERVAL","RTSR - INTERVAL METERED","") ->  | T118: X
D119: RPP / Non-RPP: | E119: =H30 -> RPP
D120: Consumption | E120: =K30 -> 750 | F120: kWh
D121: Demand | E121: =L30 -> 0 | F121: kW
D122: Current Loss Factor | E122: =I30 -> 1.0497
D123: Proposed/Approved Loss Factor | E123: =J30 -> 1.0453
F125: Current OEB-Approved | I125: Proposed | L125: Impact
F126: Rate | G126: Volume | H126: Charge | I126: Rate | J126: Volume | K126: Charge | L126: $ Change | M126: % Change
F127: ($) | H127: ($) | I127: ($) | K127: ($)
A128: =$E118 -> RESIDENTIAL SERVICE CLASSIFICATION | D128: Monthly Service Charge | F128: 21.02 | G128: 1 | H128: =G128*F128 -> 21.02 | I128: 26.33 | J128: =G128 -> 1 | K128: =J128*I128 -> 26.33 | L128: =K128-H128 -> 5.31 | M128: =IF(ISERROR(L128/H128), "", L128/H128) -> 0.2526165557
A129: =A128 -> RESIDENTIAL SERVICE CLASSIFICATION | D129: Distribution Volumetric Rate | F129: 0.0074 | G129: =IF($E121>0, $E121, $E120) -> 750 | H129: =G129*F129 -> 5.55 | I129: 0.0042 | J129: =IF($E121>0, $E121, $E120) -> 750 | K129: =J129*I129 -> 3.15 | L129: -2.4 | M129: =IF(ISERROR(L129/H129), "", L129/H129) -> -0.4324324324
A130: =A129 -> RESIDENTIAL SERVICE CLASSIFICATION | D130: Fixed Rate Riders | F130: 0 | G130: 1 | H130: 0 | I130: 0 | J130: =G130 -> 1 | K130: =J130*I130 -> 0 | L130: 0
A131: RESIDENTIAL SERVICE CLASSIFICATION | D131: Volumetric Rate Riders | F131: 0 | G131: =IF($E121>0, $E121, $E120) -> 750 | H131: 0 | I131: 0.0001 | J131: =IF($E121>0, $E121, $E120) -> 750 | K131: =J131*I131 -> 0.075 | L131: 0.075
A132: RESIDENTIAL SERVICE CLASSIFICATION | B132: ST_A | C132: =B30 -> 1 | D132: Sub-Total A (excluding pass through) | H132: =SUM(H128:H131) -> 26.57 | K132: =SUM(K128:K131) -> 29.555 | L132: 2.985 | M132: =IF((H132)=0,"",(L132/H132)) -> 0.1123447497
A133: RESIDENTIAL SERVICE CLASSIFICATION | D133: Line Losses on Cost of Power | F133: =IF((E120*12>=150000), 0, IF(E119="RPP",(F147*0.65+F148*0.17+F149*0.18),IF(E119="Non-RPP (Retailer)",F150,F151))) -> 0.08216 | G133: =IF(F133=0, 0, $E120*E122-E120) -> 37.275 | H133: =G133*F133 -> 3.062514 | I133: =IF((E120*12>=150000), 0, IF(E119="RPP",(I147*0.65+I148*0.17+I149*0.18),IF(E119="Non-RPP (Retailer)",I150,I151))) -> 0.08216 | J133: =IF(I133=0, 0, E120*E123-E120) -> 33.975 | K133: =J133*I133 -> 2.791386 | L133: =K133-H133 -> -0.271128 | M133: =IF(ISERROR(L133/H133), "", L133/H133) -> -0.08853118712
A134: RESIDENTIAL SERVICE CLASSIFICATION | D134: Total Deferral/Variance Account Rate Riders | F134: 0 | G134: =IF($E121>0, $E121, $E120) -> 750 | H134: 0 | I134: -0.0007 | J134: =IF($E121>0, $E121, $E120) -> 750 | K134: -0.525 | L134: -0.525
A135: RESIDENTIAL SERVICE CLASSIFICATION | D135: Fixed Rate Rider Group 2 | F135: 0 | G135: 1 | H135: 0 | I135: 0.65 | J135: 1 | K135: =J135*I135 -> 0.65 | L135: 0.65
A136: RESIDENTIAL SERVICE CLASSIFICATION | D136: Low Voltage Service Charge | F136: 0.0018 | G136: =IF($E121>0, $E121, $E120) -> 750 | H136: 1.35 | I136: 0.003 | J136: =IF($E121>0, $E121, $E120) -> 750 | K136: 2.25 | L136: 0.9 | M136: 0.6666666667
A137: RESIDENTIAL SERVICE CLASSIFICATION | D137: Smart Meter Entity Charge (if applicable) | F137: 0.79 | G137: 1 | H137: =G137*F137 -> 0.79 | I137: 0.79 | J137: 1 | K137: =J137*I137 -> 0.79 | L137: 0 | M137: =IF(ISERROR(L137/H137), "", L137/H137) -> 0
A138: RESIDENTIAL SERVICE CLASSIFICATION | B138: ST_B | C138: =B30 -> 1 | D138: Sub-Total B - Distribution (includes Sub-Total A) | H138: =SUM(H132:H137) -> 31.772514 | K138: =SUM(K132:K137) -> 35.511386 | L138: 3.738872 | M138: =IF((H138)=0,"",(L138/H138)) -> 0.1176763035
A139: RESIDENTIAL SERVICE CLASSIFICATION | D139: RTSR - Network | F139: 0.0064 | G139: =IF($E121>0, $E121, $E120*$E122) -> 787.275 | H139: =G139*F139 -> 5.03856 | I139: 0.0065 | J139: =IF($E121>0, $E121, $E120*$E123) -> 783.975 | K139: =J139*I139 -> 5.0958375 | L139: 0.0572775 | M139: =IF(ISERROR(L139/H139), "", L139/H139) -> 0.01136783129
A140: RESIDENTIAL SERVICE CLASSIFICATION | D140: RTSR - Connection and/or Line and Transformation Connection | F140: 0.0052 | G140: =IF($E121>0, $E121, $E120*$E122) -> 787.275 | H140: =G140*F140 -> 4.09383 | I140: 0.0052 | J140: =IF($E121>0, $E121, $E120*$E123) -> 783.975 | K140: =J140*I140 -> 4.07667 | L140: -0.01716 | M140: =IF(ISERROR(L140/H140), "", L140/H140) -> -0.004191673812
A141: RESIDENTIAL SERVICE CLASSIFICATION | B141: ST_C | C141: =B30 -> 1 | D141: Sub-Total C - Delivery (including Sub-Total B) | H141: =SUM(H138:H140) -> 40.904904 | K141: =SUM(K138:K140) -> 44.6838935 | L141: 3.7789895 | M141: =IF((H141)=0,"",(L141/H141)) -> 0.09238475416
A142: RESIDENTIAL SERVICE CLASSIFICATION | D142: Wholesale Market Service Charge (WMSC) | F142: 0.0036 | G142: =E120*E122 -> 787.275 | H142: =G142*F142 -> 2.83419 | I142: 0.0032 | J142: =E120*E123 -> 783.975 | K142: =J142*I142 -> 2.50872 | L142: -0.32547 | M142: =IF(ISERROR(L142/H142), "", L142/H142) -> -0.1148370434
A143: RESIDENTIAL SERVICE CLASSIFICATION | D143: Rural and Remote Rate Protection (RRRP) | F143: 0.0021 | G143: =E120*E122 -> 787.275 | H143: 1.6532775 | I143: 0.0003 | J143: =E120*E123 -> 783.975 | K143: 0.2351925 | L143: -1.418085 | M143: -0.8577416677
A144: RESIDENTIAL SERVICE CLASSIFICATION | D144: Standard Supply Service Charge | F144: 0.25 | G144: 1 | H144: 0.25 | I144: 0.25 | J144: 1 | K144: 0.25 | L144: 0 | M144: 0
A145: RESIDENTIAL SERVICE CLASSIFICATION | D145: Debt Retirement Charge (DRC)
A146: RESIDENTIAL SERVICE CLASSIFICATION | D146: Ontario Electricity Support Program (OESP) | G146: =E120*E123 -> 783.975 | H146: 0 | J146: =E120*E123 -> 783.975 | K146: 0 | L146: 0
A147: RESIDENTIAL SERVICE CLASSIFICATION | B147: RPP | D147: TOU - Off Peak | F147: =OffPeak -> 0.065 | G147: =IF(AND(E120*12>=150000),0.65*E120*E122,0.65*E120) -> 487.5 | H147: 31.6875 | I147: =OffPeak -> 0.065 | J147: =IF(AND(E120*12>=150000),0.65*E120*E123,0.65*E120) -> 487.5 | K147: 31.6875 | L147: 0 | M147: 0
A148: RESIDENTIAL SERVICE CLASSIFICATION | B148: RPP | D148: TOU - Mid Peak | F148: =MidPeak -> 0.095 | G148: =IF(AND(E120*12>=150000),0.17*E120*E122,0.17*E120) -> 127.5 | H148: 12.1125 | I148: =MidPeak -> 0.095 | J148: =IF(AND(E120*12>=150000),0.17*E120*E123,0.17*E120) -> 127.5 | K148: 12.1125 | L148: 0 | M148: 0
A149: RESIDENTIAL SERVICE CLASSIFICATION | B149: RPP | D149: TOU - On Peak | F149: =OnPeak -> 0.132 | G149: =IF(AND(E120*12>=150000),0.18*E120*E122,0.18*E120) -> 135 | H149: 17.82 | I149: =OnPeak -> 0.132 | J149: =IF(AND(E120*12>=150000),0.18*E120*E123,0.18*E120) -> 135 | K149: 17.82 | L149: 0 | M149: 0
A150: RESIDENTIAL SERVICE CLASSIFICATION | B150: Non-RPP (Retailer) | D150: Non-RPP Retailer Avg. Price | F150: =0.1101 -> 0.1101 | G150: =IF(AND(E120*12>=150000),E120*E122,E120) -> 750 | H150: =G150*F150 -> 82.575 | I150: =F150 -> 0.1101 | J150: =IF(AND(E120*12>=150000),E120*E123,E120) -> 750 | K150: =J150*I150 -> 82.575 | L150: 0 | M150: 0
A151: RESIDENTIAL SERVICE CLASSIFICATION | B151: Non-RPP (Other) | D151: Average IESO Wholesale Market Price | F151: =0.1101 -> 0.1101 | G151: =IF(AND(E120*12>=150000),E120*E122,E120) -> 750 | H151: =G151*F151 -> 82.575 | I151: =F151 -> 0.1101 | J151: =IF(AND(E120*12>=150000),E120*E123,E120) -> 750 | K151: =J151*I151 -> 82.575 | L151: 0 | M151: 0
A152: RESIDENTIAL SERVICE CLASSIFICATION
A153: RESIDENTIAL SERVICE CLASSIFICATION | B153: RPP | D153: Total Bill on TOU (before Taxes) | H153: =SUM(H142:H149,H141) -> 107.2623715 | K153: =SUM(K142:K149,K141) -> 109.297806 | L153: =K153-H153 -> 2.0354345 | M153: =IF((H153)=0,"",(L153/H153)) -> 0.01897622131
A154: RESIDENTIAL SERVICE CLASSIFICATION | B154: RPP | D154: HST | F154: 0.13 | H154: =H153*F154 -> 13.9441083 | I154: 0.13 | K154: =K153*I154 -> 14.20871478 | L154: =K154-H154 -> 0.264606485 | M154: =IF((H154)=0,"",(L154/H154)) -> 0.01897622131
A155: 0 | B155: RPP | D155: 8% Rebate | F155: 0.08 | H155: =H153*F155*(-1) -> -8.58098972 | I155: 0.08 | K155: =K153*I155*(-1) -> -8.74382448 | L155: =K155-H155 -> -0.16283476
A156: =A154 -> RESIDENTIAL SERVICE CLASSIFICATION | B156: RPP_TOTAL | C156: =B30 -> 1 | D156: Total Bill on TOU | H156: =H153+H154+H155 -> 112.6254901 | K156: =K153+K154+K155 -> 114.7626963 | L156: =K156-H156 -> 2.137206225 | M156: =IF((H156)=0,"",(L156/H156)) -> 0.01897622131
A157: RESIDENTIAL SERVICE CLASSIFICATION | B157: RPP
A158: RESIDENTIAL SERVICE CLASSIFICATION | B158: Non-RPP (Retailer) | D158: Total Bill on Non-RPP Avg. Price | H158: =SUM(H150,H142:H146,H141) -> 128.2173715 | K158: =SUM(K150,K142:K146,K141) -> 130.252806 | L158: =K158-H158 -> 2.0354345 | M158: =IF((H158)=0,"",(L158/H158)) -> 0.01587487309
A159: RESIDENTIAL SERVICE CLASSIFICATION | B159: Non-RPP (Retailer) | D159: HST | F159: 0.13 | H159: =H158*F159 -> 16.6682583 | I159: 0.13 | K159: =K158*I159 -> 16.93286478 | L159: =K159-H159 -> 0.264606485 | M159: =IF((H159)=0,"",(L159/H159)) -> 0.01587487309
A160: 0 | B160: Non-RPP (Retailer) | D160: 8% Rebate | F160: 0.08 | H160: =H158*F160*(-1) -> -10.25738972 | I160: 0.08 | K160: =K158*I160*(-1) -> -10.42022448
A161: =A159 -> RESIDENTIAL SERVICE CLASSIFICATION | B161: Non-RPP (Retailer)_TOTAL | D161: Total Bill on Non-RPP Avg. Price | H161: =H158+H159+H160 -> 134.6282401 | K161: =K158+K159+K160 -> 136.7654463 | L161: =K161-H161 -> 2.137206225 | M161: =IF((H161)=0,"",(L161/H161)) -> 0.01587487309
A162: RESIDENTIAL SERVICE CLASSIFICATION | B162: Non-RPP (Retailer)
A163: RESIDENTIAL SERVICE CLASSIFICATION | B163: Non-RPP (Other) | D163: Total Bill on Average IESO Wholesale Market Price | H163: =SUM(H151,H142:H146,H141) -> 128.2173715 | K163: =SUM(K151,K142:K146,K141) -> 130.252806 | L163: =K163-H163 -> 2.0354345 | M163: =IF((H163)=0,"",(L163/H163)) -> 0.01587487309
A164: RESIDENTIAL SERVICE CLASSIFICATION | B164: Non-RPP (Other) | D164: HST | F164: 0.13 | H164: =H163*F164 -> 16.6682583 | I164: 0.13 | K164: =K163*I164 -> 16.93286478 | L164: =K164-H164 -> 0.264606485 | M164: =IF((H164)=0,"",(L164/H164)) -> 0.01587487309
A165: 0 | B165: Non-RPP (Other) | D165: 8% Rebate | F165: 0.08 | H165: =H163*F165*(-1) -> -10.25738972 | I165: 0.08 | K165: =K163*I165*(-1) -> -10.42022448
A166: =A164 -> RESIDENTIAL SERVICE CLASSIFICATION | B166: Non-RPP (Other)_TOTAL | D166: Total Bill on Average IESO Wholesale Market Price | H166: =H163+H164+H165 -> 134.6282401 | K166: =K163+K164+K165 -> 136.7654463 | L166: =K166-H166 -> 2.137206225 | M166: =IF((H166)=0,"",(L166/H166)) -> 0.01587487309
A167: RESIDENTIAL SERVICE CLASSIFICATION | B167: Non-RPP (Other)
D172: Customer Class: | E172: =D31 -> GENERAL SERVICE LESS THAN 50 kW SERVICE CLASSIFICATION | K172: =IF(N31="DEMAND - INTERVAL","RTSR - INTERVAL METERED","") ->  | T172: X
D173: RPP / Non-RPP: | E173: =H31 -> RPP
D174: Consumption | E174: =K31 -> 2000 | F174: kWh
D175: Demand | E175: =L31 -> 0 | F175: kW
D176: Current Loss Factor | E176: =I31 -> 1.0497
D177: Proposed/Approved Loss Factor | E177: =J31 -> 1.0453
F179: Current OEB-Approved | I179: Proposed | L179: Impact
F180: Rate | G180: Volume | H180: Charge | I180: Rate | J180: Volume | K180: Charge | L180: $ Change | M180: % Change
F181: ($) | H181: ($) | I181: ($) | K181: ($)
A182: =$E172 -> GENERAL SERVICE LESS THAN 50 kW SERVICE CLASSIFICATION | D182: Monthly Service Charge | F182: 18.44 | G182: 1 | H182: =G182*F182 -> 18.44 | I182: 20.85 | J182: =G182 -> 1 | K182: =J182*I182 -> 20.85 | L182: =K182-H182 -> 2.41 | M182: =IF(ISERROR(L182/H182), "", L182/H182) -> 0.1306941432
A183: =A182 -> GENERAL SERVICE LESS THAN 50 kW SERVICE CLASSIFICATION | D183: Distribution Volumetric Rate | F183: 0.0192 | G183: =IF($E175>0, $E175, $E174) -> 2000 | H183: =G183*F183 -> 38.4 | I183: 0.0217 | J183: =IF($E175>0, $E175, $E174) -> 2000 | K183: =J183*I183 -> 43.4 | L183: 5 | M183: =IF(ISERROR(L183/H183), "", L183/H183) -> 0.1302083333
A184: =A183 -> GENERAL SERVICE LESS THAN 50 kW SERVICE CLASSIFICATION | D184: Fixed Rate Riders | F184: 0 | G184: 1 | H184: 0 | I184: 0 | J184: =G184 -> 1 | K184: =J184*I184 -> 0 | L184: 0
A185: GENERAL SERVICE LESS THAN 50 kW SERVICE CLASSIFICATION | D185: Volumetric Rate Riders | F185: 0.004 | G185: =IF($E175>0, $E175, $E174) -> 2000 | H185: 8 | I185: 0.005 | J185: =IF($E175>0, $E175, $E174) -> 2000 | K185: 10 | L185: 2 | M185: 0.25
A186: GENERAL SERVICE LESS THAN 50 kW SERVICE CLASSIFICATION | B186: ST_A | C186: =B31 -> 2 | D186: Sub-Total A (excluding pass through) | H186: =SUM(H182:H185) -> 64.84 | K186: =SUM(K182:K185) -> 74.25 | L186: 9.41 | M186: =IF((H186)=0,"",(L186/H186)) -> 0.1451264651
A187: GENERAL SERVICE LESS THAN 50 kW SERVICE CLASSIFICATION | D187: Line Losses on Cost of Power | F187: =IF((E174*12>=150000), 0, IF(E173="RPP",(F201*0.65+F202*0.17+F203*0.18),IF(E173="Non-RPP (Retailer)",F204,F205))) -> 0.08216 | G187: =IF(F187=0, 0, $E174*E176-E174) -> 99.4 | H187: =G187*F187 -> 8.166704 | I187: =IF((E174*12>=150000), 0, IF(E173="RPP",(I201*0.65+I202*0.17+I203*0.18),IF(E173="Non-RPP (Retailer)",I204,I205))) -> 0.08216 | J187: =IF(I187=0, 0, E174*E177-E174) -> 90.6 | K187: =J187*I187 -> 7.443696 | L187: =K187-H187 -> -0.723008 | M187: =IF(ISERROR(L187/H187), "", L187/H187) -> -0.08853118712
A188: GENERAL SERVICE LESS THAN 50 kW SERVICE CLASSIFICATION | D188: Total Deferral/Variance Account Rate Riders | F188: 0 | G188: =IF($E175>0, $E175, $E174) -> 2000 | H188: 0 | I188: 0.0004 | J188: =IF($E175>0, $E175, $E174) -> 2000 | K188: 0.8 | L188: 0.8
A189: GENERAL SERVICE LESS THAN 50 kW SERVICE CLASSIFICATION | D189: GA Rate Riders | F189: 0 | G189: =E174 -> 2000 | H189: 0 | I189: 0 | J189: =E174 -> 2000 | K189: 0 | L189: 0
A190: GENERAL SERVICE LESS THAN 50 kW SERVICE CLASSIFICATION | D190: Low Voltage Service Charge | F190: 0.0016 | G190: =IF($E175>0, $E175, $E174) -> 2000 | H190: 3.2 | I190: 0.0027 | J190: =IF($E175>0, $E175, $E174) -> 2000 | K190: 5.4 | L190: 2.2 | M190: 0.6875
A191: GENERAL SERVICE LESS THAN 50 kW SERVICE CLASSIFICATION | D191: Smart Meter Entity Charge (if applicable) | F191: 0.79 | G191: 1 | H191: =G191*F191 -> 0.79 | I191: 0.79 | J191: 1 | K191: =J191*I191 -> 0.79 | L191: 0 | M191: =IF(ISERROR(L191/H191), "", L191/H191) -> 0
A192: GENERAL SERVICE LESS THAN 50 kW SERVICE CLASSIFICATION | B192: ST_B | C192: =B31 -> 2 | D192: Sub-Total B - Distribution (includes Sub-Total A) | H192: =SUM(H186:H191) -> 76.996704 | K192: =SUM(K186:K191) -> 88.683696 | L192: 11.686992 | M192: =IF((H192)=0,"",(L192/H192)) -> 0.1517856141
A193: GENERAL SERVICE LESS THAN 50 kW SERVICE CLASSIFICATION | D193: RTSR - Network | F193: 0.0059 | G193: =IF($E175>0, $E175, $E174*$E176) -> 2099.4 | H193: =G193*F193 -> 12.38646 | I193: 0.006 | J193: =IF($E175>0, $E175, $E174*$E177) -> 2090.6 | K193: =J193*I193 -> 12.5436 | L193: 0.15714 | M193: =IF(ISERROR(L193/H193), "", L193/H193) -> 0.01268643341
A194: GENERAL SERVICE LESS THAN 50 kW SERVICE CLASSIFICATION | D194: RTSR - Connection and/or Line and Transformation Connection | F194: 0.0047 | G194: =IF($E175>0, $E175, $E174*$E176) -> 2099.4 | H194: =G194*F194 -> 9.86718 | I194: 0.0047 | J194: =IF($E175>0, $E175, $E174*$E177) -> 2090.6 | K194: =J194*I194 -> 9.82582 | L194: -0.04136 | M194: =IF(ISERROR(L194/H194), "", L194/H194) -> -0.004191673812
A195: GENERAL SERVICE LESS THAN 50 kW SERVICE CLASSIFICATION | B195: ST_C | C195: =B31 -> 2 | D195: Sub-Total C - Delivery (including Sub-Total B) | H195: =SUM(H192:H194) -> 99.250344 | K195: =SUM(K192:K194) -> 111.053116 | L195: 11.802772 | M195: =IF((H195)=0,"",(L195/H195)) -> 0.118919205
A196: GENERAL SERVICE LESS THAN 50 kW SERVICE CLASSIFICATION | D196: Wholesale Market Service Charge (WMSC) | F196: 0.0036 | G196: =E174*E176 -> 2099.4 | H196: =G196*F196 -> 7.55784 | I196: 0.0032 | J196: =E174*E177 -> 2090.6 | K196: =J196*I196 -> 6.68992 | L196: -0.86792 | M196: =IF(ISERROR(L196/H196), "", L196/H196) -> -0.1148370434
A197: GENERAL SERVICE LESS THAN 50 kW SERVICE CLASSIFICATION | D197: Rural and Remote Rate Protection (RRRP) | F197: 0.0021 | G197: =E174*E176 -> 2099.4 | H197: 4.40874 | I197: 0.0003 | J197: =E174*E177 -> 2090.6 | K197: 0.62718 | L197: -3.78156 | M197: -0.8577416677
A198: GENERAL SERVICE LESS THAN 50 kW SERVICE CLASSIFICATION | D198: Standard Supply Service Charge | F198: 0.25 | G198: 1 | H198: 0.25 | I198: 0.25 | J198: 1 | K198: 0.25 | L198: 0 | M198: 0
A199: GENERAL SERVICE LESS THAN 50 kW SERVICE CLASSIFICATION | D199: Debt Retirement Charge (DRC) | F199: =IF('1. Information Sheet'!F196 = DATE(2016, 5, 1), (IF(ISERROR(FIND("RESIDENTIAL", UPPER(E172))),DRC, 0)), DRC) -> 0.007 | G199: =E174 -> 2000 | H199: 14 | I199: =IF(ISERROR(FIND("RESIDENTIAL", UPPER(E172))), DRC, 0) -> 0.007 | J199: =E174 -> 2000 | K199: 14 | L199: 0 | M199: 0
A200: GENERAL SERVICE LESS THAN 50 kW SERVICE CLASSIFICATION | D200: Ontario Electricity Support Program (OESP) | G200: =E174*E177 -> 2090.6 | H200: 0 | J200: =E174*E177 -> 2090.6 | K200: 0 | L200: 0
A201: GENERAL SERVICE LESS THAN 50 kW SERVICE CLASSIFICATION | B201: RPP | D201: TOU - Off Peak | F201: =OffPeak -> 0.065 | G201: =IF(AND(E174*12>=150000),0.65*E174*E176,0.65*E174) -> 1300 | H201: 84.5 | I201: =OffPeak -> 0.065 | J201: =IF(AND(E174*12>=150000),0.65*E174*E177,0.65*E174) -> 1300 | K201: 84.5 | L201: 0 | M201: 0
A202: GENERAL SERVICE LESS THAN 50 kW SERVICE CLASSIFICATION | B202: RPP | D202: TOU - Mid Peak | F202: =MidPeak -> 0.095 | G202: =IF(AND(E174*12>=150000),0.17*E174*E176,0.17*E174) -> 340 | H202: 32.3 | I202: =MidPeak -> 0.095 | J202: =IF(AND(E174*12>=150000),0.17*E174*E177,0.17*E174) -> 340 | K202: 32.3 | L202: 0 | M202: 0
A203: GENERAL SERVICE LESS THAN 50 kW SERVICE CLASSIFICATION | B203: RPP | D203: TOU - On Peak | F203: =OnPeak -> 0.132 | G203: =IF(AND(E174*12>=150000),0.18*E174*E176,0.18*E174) -> 360 | H203: 47.52 | I203: =OnPeak -> 0.132 | J203: =IF(AND(E174*12>=150000),0.18*E174*E177,0.18*E174) -> 360 | K203: 47.52 | L203: 0 | M203: 0
A204: GENERAL SERVICE LESS THAN 50 kW SERVICE CLASSIFICATION | B204: Non-RPP (Retailer) | D204: Non-RPP Retailer Avg. Price | F204: =0.1101 -> 0.1101 | G204: =IF(AND(E174*12>=150000),E174*E176,E174) -> 2000 | H204: =G204*F204 -> 220.2 | I204: =F204 -> 0.1101 | J204: =IF(AND(E174*12>=150000),E174*E177,E174) -> 2000 | K204: =J204*I204 -> 220.2 | L204: 0 | M204: 0
A205: GENERAL SERVICE LESS THAN 50 kW SERVICE CLASSIFICATION | B205: Non-RPP (Other) | D205: Average IESO Wholesale Market Price | F205: =0.1101 -> 0.1101 | G205: =IF(AND(E174*12>=150000),E174*E176,E174) -> 2000 | H205: =G205*F205 -> 220.2 | I205: =F205 -> 0.1101 | J205: =IF(AND(E174*12>=150000),E174*E177,E174) -> 2000 | K205: =J205*I205 -> 220.2 | L205: 0 | M205: 0
A206: GENERAL SERVICE LESS THAN 50 kW SERVICE CLASSIFICATION
A207: GENERAL SERVICE LESS THAN 50 kW SERVICE CLASSIFICATION | B207: RPP | D207: Total Bill on TOU (before Taxes) | H207: =SUM(H196:H203,H195) -> 289.786924 | K207: =SUM(K196:K203,K195) -> 296.940216 | L207: =K207-H207 -> 7.153292 | M207: =IF((H207)=0,"",(L207/H207)) -> 0.02468466106
A208: GENERAL SERVICE LESS THAN 50 kW SERVICE CLASSIFICATION | B208: RPP | D208: HST | F208: 0.13 | H208: =H207*F208 -> 37.67230012 | I208: 0.13 | K208: =K207*I208 -> 38.60222808 | L208: =K208-H208 -> 0.92992796 | M208: =IF((H208)=0,"",(L208/H208)) -> 0.02468466106
A209: 0 | B209: RPP | D209: 8% Rebate | F209: 0.08 | H209: =H207*F209*(-1) -> -23.18295392 | I209: 0.08 | K209: =K207*I209*(-1) -> -23.75521728 | L209: =K209-H209 -> -0.57226336
A210: =A208 -> GENERAL SERVICE LESS THAN 50 kW SERVICE CLASSIFICATION | B210: RPP_TOTAL | C210: =B31 -> 2 | D210: Total Bill on TOU | H210: =H207+H208+H209 -> 304.2762702 | K210: =K207+K208+K209 -> 311.7872268 | L210: =K210-H210 -> 7.5109566 | M210: =IF((H210)=0,"",(L210/H210)) -> 0.02468466106
A211: GENERAL SERVICE LESS THAN 50 kW SERVICE CLASSIFICATION | B211: RPP
A212: GENERAL SERVICE LESS THAN 50 kW SERVICE CLASSIFICATION | B212: Non-RPP (Retailer) | D212: Total Bill on Non-RPP Avg. Price | H212: =SUM(H204,H196:H200,H195) -> 345.666924 | K212: =SUM(K204,K196:K200,K195) -> 352.820216 | L212: =K212-H212 -> 7.153292 | M212: =IF((H212)=0,"",(L212/H212)) -> 0.02069417553
A213: GENERAL SERVICE LESS THAN 50 kW SERVICE CLASSIFICATION | B213: Non-RPP (Retailer) | D213: HST | F213: 0.13 | H213: =H212*F213 -> 44.93670012 | I213: 0.13 | K213: =K212*I213 -> 45.86662808 | L213: =K213-H213 -> 0.92992796 | M213: =IF((H213)=0,"",(L213/H213)) -> 0.02069417553
A214: 0 | B214: Non-RPP (Retailer) | D214: 8% Rebate | F214: 0.08 | H214: =H212*F214*(-1) -> -27.65335392 | I214: 0.08 | K214: =K212*I214*(-1) -> -28.22561728
A215: =A213 -> GENERAL SERVICE LESS THAN 50 kW SERVICE CLASSIFICATION | B215: Non-RPP (Retailer)_TOTAL | D215: Total Bill on Non-RPP Avg. Price | H215: =H212+H213+H214 -> 362.9502702 | K215: =K212+K213+K214 -> 370.4612268 | L215: =K215-H215 -> 7.5109566 | M215: =IF((H215)=0,"",(L215/H215)) -> 0.02069417553
A216: GENERAL SERVICE LESS THAN 50 kW SERVICE CLASSIFICATION | B216: Non-RPP (Retailer)
A217: GENERAL SERVICE LESS THAN 50 kW SERVICE CLASSIFICATION | B217: Non-RPP (Other) | D217: Total Bill on Average IESO Wholesale Market Price | H217: =SUM(H205,H196:H200,H195) -> 345.666924 | K217: =SUM(K205,K196:K200,K195) -> 352.820216 | L217: =K217-H217 -> 7.153292 | M217: =IF((H217)=0,"",(L217/H217)) -> 0.02069417553
A218: GENERAL SERVICE LESS THAN 50 kW SERVICE CLASSIFICATION | B218: Non-RPP (Other) | D218: HST | F218: 0.13 | H218: =H217*F218 -> 44.93670012 | I218: 0.13 | K218: =K217*I218 -> 45.86662808 | L218: =K218-H218 -> 0.92992796 | M218: =IF((H218)=0,"",(L218/H218)) -> 0.02069417553
A219: 0 | B219: Non-RPP (Other) | D219: 8% Rebate | F219: 0.08 | H219: =H217*F219*(-1) -> -27.65335392 | I219: 0.08 | K219: =K217*I219*(-1) -> -28.22561728
A220: =A218 -> GENERAL SERVICE LESS THAN 50 kW SERVICE CLASSIFICATION | B220: Non-RPP (Other)_TOTAL | D220: Total Bill on Average IESO Wholesale Market Price | H220: =H217+H218+H219 -> 362.9502702 | K220: =K217+K218+K219 -> 370.4612268 | L220: =K220-H220 -> 7.5109566 | M220: =IF((H220)=0,"",(L220/H220)) -> 0.02069417553
A221: GENERAL SERVICE LESS THAN 50 kW SERVICE CLASSIFICATION | B221: Non-RPP (Other)
D226: Customer Class: | E226: =D32 -> GENERAL SERVICE 50 TO 2,999 KW SERVICE CLASSIFICATION | K226: =IF(N32="DEMAND - INTERVAL","RTSR - INTERVAL METERED","") ->  | T226: X
D227: RPP / Non-RPP: | E227: =H32 -> Non-RPP (Other)
D228: Consumption | E228: =K32 -> 332500 | F228: kWh
D229: Demand | E229: =L32 -> 840 | F229: kW
D230: Current Loss Factor | E230: =I32 -> 1.0497
D231: Proposed/Approved Loss Factor | E231: =J32 -> 1.0453
F233: Current OEB-Approved | I233: Proposed | L233: Impact
F234: Rate | G234: Volume | H234: Charge | I234: Rate | J234: Volume | K234: Charge | L234: $ Change | M234: % Change
F235: ($) | H235: ($) | I235: ($) | K235: ($)
A236: =$E226 -> GENERAL SERVICE 50 TO 2,999 KW SERVICE CLASSIFICATION | D236: Monthly Service Charge | F236: 170.19 | G236: 1 | H236: =G236*F236 -> 170.19 | I236: 170.19 | J236: =G236 -> 1 | K236: =J236*I236 -> 170.19 | L236: =K236-H236 -> 0 | M236: =IF(ISERROR(L236/H236), "", L236/H236) -> 0
A237: =A236 -> GENERAL SERVICE 50 TO 2,999 KW SERVICE CLASSIFICATION | D237: Distribution Volumetric Rate | F237: 3.7113 | G237: =IF($E229>0, $E229, $E228) -> 840 | H237: =G237*F237 -> 3117.492 | I237: 4.1917 | J237: =IF($E229>0, $E229, $E228) -> 840 | K237: =J237*I237 -> 3521.028 | L237: 403.536 | M237: =IF(ISERROR(L237/H237), "", L237/H237) -> 0.1294425134
A238: =A237 -> GENERAL SERVICE 50 TO 2,999 KW SERVICE CLASSIFICATION | D238: Fixed Rate Riders | F238: 0 | G238: 1 | H238: 0 | I238: 0 | J238: =G238 -> 1 | K238: =J238*I238 -> 0 | L238: 0
A239: GENERAL SERVICE 50 TO 2,999 KW SERVICE CLASSIFICATION | D239: Volumetric Rate Riders | F239: -0.0548 | G239: =IF($E229>0, $E229, $E228) -> 840 | H239: -46.032 | I239: -0.0436 | J239: =IF($E229>0, $E229, $E228) -> 840 | K239: -36.624 | L239: 9.408 | M239: -0.204379562
... 528 more rows

Sheet 20. HIDDEN (hidden)
D2: Customer Class: | O2: =FIND("RESIDENTIAL", E2) -> 
D3: RPP / Non-RPP:
D4: Consumption | F4: kWh
D5: Demand | F5: kW
D6: Current Loss Factor
D7: Proposed/Approved Loss Factor
F9: Current OEB-Approved | I9: Proposed | L9: Impact
F10: Rate | G10: Volume | H10: Charge | I10: Rate | J10: Volume | K10: Charge | L10: $ Change | M10: % Change
F11: ($) | H11: ($) | I11: ($) | K11: ($)
A12: =$E2 -> 0 | D12: Monthly Service Charge | G12: 1 | H12: =G12*F12 -> 0 | J12: =G12 -> 1 | K12: =J12*I12 -> 0 | L12: =K12-H12 -> 0 | M12: =IF(ISERROR(L12/H12), "", L12/H12) -> 
A13: =A12 -> 0 | D13: Distribution Volumetric Rate | G13: =IF($E5>0, $E5, $E4) -> 0 | H13: =G13*F13 -> 0 | J13: =IF($E5>0, $E5, $E4) -> 0 | K13: =J13*I13 -> 0 | L13: 0 | M13: =IF(ISERROR(L13/H13), "", L13/H13) -> 
A14: =A13 -> 0 | D14: Fixed Rate Riders | G14: 1 | H14: 0 | J14: =G14 -> 1 | K14: =J14*I14 -> 0 | L14: 0
A15: 0 | D15: Volumetric Rate Riders | G15: =IF($E5>0, $E5, $E4) -> 0 | H15: 0 | J15: =IF($E5>0, $E5, $E4) -> 0 | K15: 0 | L15: 0
A16: 0 | B16: ST_A | D16: Sub-Total A (excluding pass through) | H16: =SUM(H12:H15) -> 0 | K16: =SUM(K12:K15) -> 0 | L16: 0 | M16: =IF((H16)=0,"",(L16/H16)) -> 
A17: 0 | D17: Line Losses on Cost of Power | F17: =IF((E4*12>=150000), 0, IF(E3="RPP",(F31*0.65+F32*0.17+F33*0.18),IF(E3="Non-RPP (Retailer)",F34,F35))) -> 0.1101 | G17: =IF(F17=0, 0, $E4*E6-E4) -> 0 | H17: =G17*F17 -> 0 | I17: =IF((E4*12>=150000), 0, IF(E3="RPP",(I31*0.65+I32*0.17+I33*0.18),IF(E3="Non-RPP (Retailer)",I34,I35))) -> 0.1101 | J17: =IF(I17=0, 0, E4*E7-E4) -> 0 | K17: =J17*I17 -> 0 | L17: =K17-H17 -> 0 | M17: =IF(ISERROR(L17/H17), "", L17/H17) -> 
A18: 0 | D18: Total Deferral/Variance Account Rate Riders | G18: =IF($E5>0, $E5, $E4) -> 0 | H18: 0 | J18: =IF($E5>0, $E5, $E4) -> 0 | K18: 0 | L18: 0
A19: 0 | D19: GA Rate Riders | G19: =E4 -> 0 | H19: 0 | J19: =E4 -> 0 | K19: 0 | L19: 0
A20: 0 | D20: Low Voltage Service Charge | G20: =IF($E5>0, $E5, $E4) -> 0 | H20: 0 | J20: =IF($E5>0, $E5, $E4) -> 0 | K20: 0 | L20: 0
A21: 0 | D21: Smart Meter Entity Charge (if applicable) | F21: =IF(OR(ISNUMBER(SEARCH("RESIDENTIAL", E2))=TRUE, ISNUMBER(SEARCH("GENERAL SERVICE LESS THAN 50", E2))=TRUE), 0.79, 0) -> 0 | G21: 1 | H21: =G21*F21 -> 0 | I21: =IF(OR(ISNUMBER(SEARCH("RESIDENTIAL", E2))=TRUE, ISNUMBER(SEARCH("GENERAL SERVICE LESS THAN 50", E2))=TRUE), 0.79, 0) -> 0 | J21: 1 | K21: =J21*I21 -> 0 | L21: =K21-H21 -> 0 | M21: =IF(ISERROR(L21/H21), "", L21/H21) -> 
A22: 0 | B22: ST_B | D22: Sub-Total B - Distribution (includes Sub-Total A) | H22: =SUM(H16:H21) -> 0 | K22: =SUM(K16:K21) -> 0 | L22: 0 | M22: =IF((H22)=0,"",(L22/H22)) -> 
A23: 0 | D23: RTSR - Network | G23: =IF($E5>0, $E5, $E4*$E6) -> 0 | H23: =G23*F23 -> 0 | J23: =IF($E5>0, $E5, $E4*$E7) -> 0 | K23: =J23*I23 -> 0 | L23: 0 | M23: =IF(ISERROR(L23/H23), "", L23/H23) -> 
A24: 0 | D24: RTSR - Connection and/or Line and Transformation Connection | G24: =IF($E5>0, $E5, $E4*$E6) -> 0 | H24: =G24*F24 -> 0 | J24: =IF($E5>0, $E5, $E4*$E7) -> 0 | K24: =J24*I24 -> 0 | L24: 0 | M24: =IF(ISERROR(L24/H24), "", L24/H24) -> 
A25: 0 | B25: ST_C | D25: Sub-Total C - Delivery (including Sub-Total B) | H25: =SUM(H22:H24) -> 0 | K25: =SUM(K22:K24) -> 0 | L25: 0 | M25: =IF((H25)=0,"",(L25/H25)) -> 
A26: 0 | D26: Wholesale Market Service Charge (WMSC) | G26: =E4*E6 -> 0 | H26: =G26*F26 -> 0 | I26: ='3. Regulatory Charges'!D14 -> 0.0032 | J26: =E4*E7 -> 0 | K26: =J26*I26 -> 0 | L26: 0 | M26: =IF(ISERROR(L26/H26), "", L26/H26) -> 
A27: 0 | D27: Rural and Remote Rate Protection (RRRP) | F27: ='3. Regulatory Charges'!$D$16 -> 0.0003 | G27: =E4*E6 -> 0 | H27: 0 | I27: ='3. Regulatory Charges'!$D$16 -> 0.0003 | J27: =E4*E7 -> 0 | K27: 0 | L27: 0
A28: 0 | D28: Standard Supply Service Charge | F28: 0.25 | G28: 1 | H28: 0.25 | I28: ='3. Regulatory Charges'!D17 -> 0.25 | J28: 1 | K28: 0.25 | L28: 0 | M28: 0
A29: 0 | D29: Debt Retirement Charge (DRC) | F29: =IF('1. Information Sheet'!F26 = DATE(2016, 5, 1), (IF(ISERROR(FIND("RESIDENTIAL", UPPER(E2))),DRC, 0)), DRC) -> 0.007 | G29: =E4 -> 0 | H29: 0 | I29: =IF(ISERROR(FIND("RESIDENTIAL", UPPER(E2))), DRC, 0) -> 0.007 | J29: =E4 -> 0 | K29: 0 | L29: =K29-H29 -> 0
A30: 0 | D30: Ontario Electricity Support Program (OESP) | G30: =E4*E7 -> 0 | H30: 0 | J30: =E4*E7 -> 0 | K30: 0 | L30: 0
A31: 0 | B31: RPP | D31: TOU - Off Peak | F31: =OffPeak -> 0.065 | G31: =IF(AND(E4*12>=150000),0.65*E4*E6,0.65*E4) -> 0 | H31: 0 | I31: =OffPeak -> 0.065 | J31: =IF(AND(E4*12>=150000),0.65*E4*E7,0.65*E4) -> 0 | K31: 0 | L31: 0
A32: 0 | B32: RPP | D32: TOU - Mid Peak | F32: =MidPeak -> 0.095 | G32: =IF(AND(E4*12>=150000),0.17*E4*E6,0.17*E4) -> 0 | H32: 0 | I32: =MidPeak -> 0.095 | J32: =IF(AND(E4*12>=150000),0.17*E4*E7,0.17*E4) -> 0 | K32: 0 | L32: 0
A33: 0 | B33: RPP | D33: TOU - On Peak | F33: =OnPeak -> 0.132 | G33: =IF(AND(E4*12>=150000),0.18*E4*E6,0.18*E4) -> 0 | H33: 0 | I33: =OnPeak -> 0.132 | J33: =IF(AND(E4*12>=150000),0.18*E4*E7,0.18*E4) -> 0 | K33: 0 | L33: 0
A34: 0 | B34: Non-RPP (Retailer) | D34: Non-RPP Retailer Avg. Price | F34: =0.1101 -> 0.1101 | G34: =IF(AND(E4*12>=150000),E4*E6,E4) -> 0 | H34: =G34*F34 -> 0 | I34: =F34 -> 0.1101 | J34: =IF(AND(E4*12>=150000),E4*E7,E4) -> 0 | K34: =J34*I34 -> 0 | L34: 0
A35: 0 | B35: Non-RPP (Other) | D35: Average IESO Wholesale Market Price | F35: =0.1101 -> 0.1101 | G35: =IF(AND(E4*12>=150000),E4*E6,E4) -> 0 | H35: =G35*F35 -> 0 | I35: =F35 -> 0.1101 | J35: =IF(AND(E4*12>=150000),E4*E7,E4) -> 0 | K35: =J35*I35 -> 0 | L35: 0
A36: 0
A37: 0 | B37: RPP | D37: Total Bill on TOU (before Taxes) | H37: =SUM(H26:H33,H25) -> 0.25 | K37: =SUM(K26:K33,K25) -> 0.25 | L37: =K37-H37 -> 0 | M37: =IF((H37)=0,"",(L37/H37)) -> 0
A38: 0 | B38: RPP | D38: HST | F38: 0.13 | H38: =H37*F38 -> 0.0325 | I38: 0.13 | K38: =K37*I38 -> 0.0325 | L38: =K38-H38 -> 0 | M38: =IF((H38)=0,"",(L38/H38)) -> 0
A39: 0 | B39: RPP | D39: 8% Rebate | F39: 0.08 | H39: =H37*F39*(-1) -> -0.02 | I39: 0.08 | K39: =K37*I39*(-1) -> -0.02 | L39: =K39-H39 -> 0
A40: =A38 -> 0 | B40: RPP_TOTAL | D40: Total Bill on TOU | H40: =H37+H38+H39 -> 0.2625 | K40: =K37+K38+K39 -> 0.2625 | L40: =K40-H40 -> 0 | M40: =IF((H40)=0,"",(L40/H40)) -> 0
A41: 0 | B41: RPP
A42: 0 | B42: Non-RPP (Retailer) | D42: Total Bill on Non-RPP Avg. Price | H42: =SUM(H34,H26:H30,H25) -> 0.25 | K42: =SUM(K34,K26:K30,K25) -> 0.25 | L42: =K42-H42 -> 0 | M42: =IF((H42)=0,"",(L42/H42)) -> 0
A43: 0 | B43: Non-RPP (Retailer) | D43: HST | F43: 0.13 | H43: =H42*F43 -> 0.0325 | I43: 0.13 | K43: =K42*I43 -> 0.0325 | L43: =K43-H43 -> 0 | M43: =IF((H43)=0,"",(L43/H43)) -> 0
A44: 0 | B44: Non-RPP (Retailer) | D44: 8% Rebate | F44: 0.08 | H44: =H42*F44*(-1) -> -0.02 | I44: 0.08 | K44: =K42*I44*(-1) -> -0.02
A45: =A43 -> 0 | B45: Non-RPP (Retailer)_TOTAL | D45: Total Bill on Non-RPP Avg. Price | H45: =H42+H43+H44 -> 0.2625 | K45: =K42+K43+K44 -> 0.2625 | L45: =K45-H45 -> 0 | M45: =IF((H45)=0,"",(L45/H45)) -> 0
A46: 0 | B46: Non-RPP (Retailer)
A47: 0 | B47: Non-RPP (Other) | D47: Total Bill on Average IESO Wholesale Market Price | H47: =SUM(H35,H26:H30,H25) -> 0.25 | K47: =SUM(K35,K26:K30,K25) -> 0.25 | L47: =K47-H47 -> 0 | M47: =IF((H47)=0,"",(L47/H47)) -> 0
A48: 0 | B48: Non-RPP (Other) | D48: HST | F48: 0.13 | H48: =H47*F48 -> 0.0325 | I48: 0.13 | K48: =K47*I48 -> 0.0325 | L48: =K48-H48 -> 0 | M48: =IF((H48)=0,"",(L48/H48)) -> 0
A49: 0 | B49: Non-RPP (Other) | D49: 8% Rebate | F49: 0.08 | H49: =H47*F49*(-1) -> -0.02 | I49: 0.08 | K49: =K47*I49*(-1) -> -0.02
A50: =A48 -> 0 | B50: Non-RPP (Other)_TOTAL | D50: Total Bill on Average IESO Wholesale Market Price | H50: =H47+H48+H49 -> 0.2625 | K50: =K47+K48+K49 -> 0.2625 | L50: =K50-H50 -> 0 | M50: =IF((H50)=0,"",(L50/H50)) -> 0
A51: 0 | B51: Non-RPP (Other)

Sheet Database (hidden)
A1: A | B1: B | C1: C | D1: D | E1: E | F1: F | G1: $ | H1: H | I1: I | J1: J | K1: K | L1: L | M1: M | N1: N | O1: O | P1: P | Q1: Q | R1: R | S1: S | T1: T | U1: U | V1: V | W1: W
A2: Algoma Power Inc. | C2: EFF_DATE | E2: Algoma Power Inc. | I2: X | J2: Algoma Power Inc._Start | K2: Algoma Power Inc. | M2: 7 | V2: 17
A3: Algoma Power Inc. | C3: IMP_DATE | E3: TARIFF OF RATES AND CHARGES | V3: 27
A4: Algoma Power Inc. | C4: EBNUMBER | E4: Effective and Implementation Date January 1, 2017 | S4: 2017-01-01 | V4: 49
A5: Algoma Power Inc. | C5: NUMBER OF RATE CLASSES | E5: This schedule supersedes and replaces all previously | V5: 52
A6: Algoma Power Inc. | E6: approved schedules of Rates, Charges and Loss Factors | V6: 53
A7: Algoma Power Inc. | E7: EB-2016-0055 | K7: EB-2016-0055 | V7: 12
A8: Algoma Power Inc. | E8: RESIDENTIAL R1 SERVICE CLASSIFICATION | K8: 1_RESIDENTIAL R1 SERVICE CLASSIFICATION | V8: 34 | AC8: =FIND(E8, K8) -> 3
A9: Algoma Power Inc. | E9: For the purposes of rates and charges, a residential service is defined in two ways: i) a dwelling occupied as a residence continuously for at least eight months of the year and, where the residential premises is located on a farm, includes other farm premises associated with the residential electricity meter, and ii) consumers who are treated as residential-rate class customers under Ontario Regulation 445/07 (Reclassifying Certain Classes of Consumers as Residential-Rate Class Customers: Section 78 of the Ontario Energy Board Act, 1998) made under the Ontario Energy Board Act, 1998. | K9: 1_RESIDENTIAL R1 SERVICE CLASSIFICATION | V9: 592
A10: Algoma Power Inc. | E10: This application refers to a Residential service with a demand of less then, or is forecast to be less than, 50 kilowatts, and which is billed on an energy basis. Class B consumers are defined in accordance with 0. Reg. 429/04. Futher servicing details are available in the distributor's Condition of Service. | K10: 1_RESIDENTIAL R1 SERVICE CLASSIFICATION | V10: 310
A11: Algoma Power Inc. | E11: APPLICATION | K11: 1_APPLICATION | V11: 11
A12: Algoma Power Inc. | E12: The application of these rates and charges shall be in accordance with the Licence of the Distributor and any Code or Order of the Ontario Energy Board, and amendments thereto as approved by the Ontario Energy Board, which may be applicable to the administration of this schedule. | K12: 1_RESIDENTIAL R1 SERVICE CLASSIFICATION | V12: 280
A13: Algoma Power Inc. | E13: No rates and charges for the distribution of electricity and charges to meet the costs of any work or service done or furnished for the purpose of the distribution of electricity shall be made except as permitted by this schedule, unless required by the Distributor’s Licence or a Code or Order of the Ontario Energy Board, and amendments thereto as approved by the Ontario Energy Board, or as specified herein. | K13: 1_RESIDENTIAL R1 SERVICE CLASSIFICATION | V13: 411
A14: Algoma Power Inc. | E14: Unless specifically noted, this schedule does not contain any charges for the electricity commodity, be it under the Regulated Price Plan, a contract with a retailer or the wholesale market price, as applicable. In addition, the charges in the MONTHLY RATES AND CHARGES - Regulatory Component of this schedule do not apply to a customer that is an embedded wholesale market participant. | K14: 1_RESIDENTIAL R1 SERVICE CLASSIFICATION | V14: 387
A15: Algoma Power Inc. | E15: It should be noted that this schedule does not list any charges, assessments or credits that are required by law to be invoiced by a distributor and that are not subject to Ontario Energy Board approval, such as the Debt Retirement Charge, the Global Adjustment, and the HST. | K15: 1_RESIDENTIAL R1 SERVICE CLASSIFICATION | V15: 275
A16: Algoma Power Inc. | E16: MONTHLY RATES AND CHARGES - Delivery Component | K16: 1_MRC_Del | V16: 46
A17: Algoma Power Inc. | E17: Service Charge - Applicable only to customers that meet criteria (i) above | G17: $ | H17: 32.58 | K17: 1_RESIDENTIAL R1 SERVICE CLASSIFICATION | L17: A | P17: 1_RESIDENTIAL R1 SERVICE CLASSIFICATION_MSC | V17: 74
A18: Algoma Power Inc. | E18: Service Charge - Applicable only to customers that meet criteria (ii) above | G18: $ | H18: 24.46 | K18: 1_RESIDENTIAL R1 SERVICE CLASSIFICATION | L18: A | P18: 1_RESIDENTIAL R1 SERVICE CLASSIFICATION_MSC | V18: 75
A19: Algoma Power Inc. | E19: Rate Rider for Smart Metering Entity Charge - effective until October 31, 2018 | G19: $ | H19: 0.79 | K19: 1_RESIDENTIAL R1 SERVICE CLASSIFICATION | L19: B | P19: 1_RESIDENTIAL R1 SERVICE CLASSIFICATION_SME | T19: 2018-10-31 | V19: 78
A20: Algoma Power Inc. | E20: Distribution Volumetric Rate - Applicable only to customers that meet criteria (i) above | G20: $/kWh | H20: 0.0251 | K20: 1_RESIDENTIAL R1 SERVICE CLASSIFICATION | L20: A | P20: 1_RESIDENTIAL R1 SERVICE CLASSIFICATION_DVC | V20: 88
A21: Algoma Power Inc. | E21: Distribution Volumetric Rate - Applicable only to customers that meet criteria (ii) above | G21: $/kWh | H21: 0.0344 | K21: 1_RESIDENTIAL R1 SERVICE CLASSIFICATION | L21: A | P21: 1_RESIDENTIAL R1 SERVICE CLASSIFICATION_DVC | V21: 89
A22: Algoma Power Inc. | E22: Rate Rider for Disposition of Deferral/Variance Accounts (2017) - effective until December 31, 2017 | G22: $/kWh | H22: -0.0035 | K22: 1_RESIDENTIAL R1 SERVICE CLASSIFICATION | L22: B | P22: 1_RESIDENTIAL R1 SERVICE CLASSIFICATION_DEFVAR_ALL | T22: 2017-12-31 | V22: 99
A23: Algoma Power Inc. | E23: Rate Rider for Disposition of Global Adjustment Account (2017) - effective until December 31, 2017 - Applicable only for Non-RPP Customers | G23: $/kWh | H23: 0.0068 | K23: 1_RESIDENTIAL R1 SERVICE CLASSIFICATION | L23: B | P23: 1_RESIDENTIAL R1 SERVICE CLASSIFICATION_GA_kwh | T23: 2017-12-31 | V23: 144
A24: Algoma Power Inc. | E24: Rate Rider for Disposition of Capacity Based Recovery Account (2017) - effective until December 31, 2017 - Applicable only for Class B Customers | G24: $/kWh | H24: 0.0002 | K24: 1_RESIDENTIAL R1 SERVICE CLASSIFICATION | L24: B | P24: 1_RESIDENTIAL R1 SERVICE CLASSIFICATION_VR_RR_3 | T24: 2017-12-31 | V24: 150
A25: Algoma Power Inc. | E25: Rate Rider for Disposition of Accounts 1575 & 1576 - effective until December 31, 2019 | G25: $/kWh | H25: -0.0019 | K25: 1_RESIDENTIAL R1 SERVICE CLASSIFICATION | L25: A | P25: 1_RESIDENTIAL R1 SERVICE CLASSIFICATION_DEFVAR_ALL | T25: 2019-12-31 | V25: 87
A26: Algoma Power Inc. | E26: Retail Transmission Rate - Network Service Rate | G26: $/kWh | H26: 0.0066 | K26: 1_RESIDENTIAL R1 SERVICE CLASSIFICATION | L26: C | P26: 1_RESIDENTIAL R1 SERVICE CLASSIFICATION_Retail Transmission Rate Network Service Rate | V26: 47
A27: Algoma Power Inc. | E27: Retail Transmission Rate - Line and Transformation Connection Service Rate | G27: $/kWh | H27: 0.005 | K27: 1_RESIDENTIAL R1 SERVICE CLASSIFICATION | L27: C | P27: 1_RESIDENTIAL R1 SERVICE CLASSIFICATION_Retail Transmission Rate Line and Transformation Connection Service Rate | V27: 74
A28: Algoma Power Inc. | E28: MONTHLY RATES AND CHARGES - Regulatory Component | K28: 1_MRC_Reg | V28: 48
A29: Algoma Power Inc. | E29: Wholesale Market Service Rate | G29: $/kWh | H29: 0.0036 | K29: 1_RESIDENTIAL R1 SERVICE CLASSIFICATION | L29: T | P29: 1_RESIDENTIAL R1 SERVICE CLASSIFICATION_WMSR | V29: 30
A30: Algoma Power Inc. | E30: Rural or Remote Electricity Rate Protection Charge (RRRP) | G30: $/kWh | H30: 0.0013 | K30: 1_RESIDENTIAL R1 SERVICE CLASSIFICATION | L30: T | P30: 1_RESIDENTIAL R1 SERVICE CLASSIFICATION_RRRP | V30: 57
A31: Algoma Power Inc. | E31: Ontario Electricity Support Program Charge (OESP) | G31: $/kWh | H31: 0.0011 | K31: 1_RESIDENTIAL R1 SERVICE CLASSIFICATION | L31: T | P31: 1_RESIDENTIAL R1 SERVICE CLASSIFICATION_OESPR | V31: 49
A32: Algoma Power Inc. | E32: Standard Supply Service - Administrative Charge (if applicable) | G32: $ | H32: 0.25 | K32: 1_RESIDENTIAL R1 SERVICE CLASSIFICATION | L32: T | P32: 1_RESIDENTIAL R1 SERVICE CLASSIFICATION_SSS | V32: 63
A33: Algoma Power Inc. | E33: RESIDENTIAL R2 SERVICE CLASSIFICATION | K33: 2_RESIDENTIAL R2 SERVICE CLASSIFICATION | V33: 34 | AC33: =FIND(E33, K33) -> 3
A34: Algoma Power Inc. | E34: This classification refers to a Residential service with a demand equal to or greater than, or is forecast to be equal to or greater than, 50 kilowatts, and which is billed on a demand basis. Class A and Class B consumers are defined in accordance with 0. Reg. 429/04. Further servicing details are available in the distributor’s Conditions of Service. | K34: 2_RESIDENTIAL R2 SERVICE CLASSIFICATION | V34: 353
A35: Algoma Power Inc. | E35: APPLICATION | K35: 2_APPLICATION | V35: 11
A36: Algoma Power Inc. | E36: The application of these rates and charges shall be in accordance with the Licence of the Distributor and any Code or Order of the Ontario Energy Board, and amendments thereto as approved by the Ontario Energy Board, which may be applicable to the administration of this schedule. | K36: 2_RESIDENTIAL R2 SERVICE CLASSIFICATION | V36: 280
A37: Algoma Power Inc. | E37: No rates and charges for the distribution of electricity and charges to meet the costs of any work or service done or furnished for the purpose of the distribution of electricity shall be made except as permitted by this schedule, unless required by the Distributor’s Licence or a Code or Order of the Ontario Energy Board, and amendments thereto as approved by the Ontario Energy Board, or as specified herein. | K37: 2_RESIDENTIAL R2 SERVICE CLASSIFICATION | V37: 411
A38: Algoma Power Inc. | E38: Unless specifically noted, this schedule does not contain any charges for the electricity commodity, be it under the Regulated Price Plan, a contract with a retailer or the wholesale market price, as applicable. In addition, the charges in the MONTHLY RATES AND CHARGES - Regulatory Component of this schedule do not apply to a customer that is an embedded wholesale market participant. | K38: 2_RESIDENTIAL R2 SERVICE CLASSIFICATION | V38: 387
A39: Algoma Power Inc. | E39: The rate rider for the disposition of Class B WMS - Sub-account CBR (2017) is not applicable to wholesale market participants (WMP) and customers that transitioned between Class A and Class B in 2015. These transition customers are to be charged or refunded their share of the variance disposed through customer specific billing adjustments. This rate rider is to be consistently applied in accordance with a customer’s Class A or Class B classification as at December 31, 2015 and the above noted exception for 2015 transition customers, for the entire period to the sunset date of the rate rider. | K39: 2_RESIDENTIAL R2 SERVICE CLASSIFICATION | V39: 599
A40: Algoma Power Inc. | E40: The rate rider for the disposition of Global Adjustment (2017) is only applicable to non-RPP Class B customers. It is not applicable to WMP and customers that transitioned between Class A and Class B in the period of last Global Adjustment disposition to 2015. These transition customers are to be charged or refunded their share of the variance disposed through customer specific billing adjustments. This rate rider is to be consistently applied in accordance with a customer’s Class A or Class B classification as at December 31, 2015 and the above noted exception for 2015 transition customers, for the entire period to the sunset date of the rate rider. | K40: 2_RESIDENTIAL R2 SERVICE CLASSIFICATION | V40: 660
A41: Algoma Power Inc. | E41: It should be noted that this schedule does not list any charges, assessments or credits that are required by law to be invoiced by a distributor and that are not subject to Ontario Energy Board approval, such as the Debt Retirement Charge, the Global Adjustment, and the HST. | K41: 2_RESIDENTIAL R2 SERVICE CLASSIFICATION | V41: 275
A42: Algoma Power Inc. | E42: MONTHLY RATES AND CHARGES - Delivery Component | K42: 2_MRC_Del | V42: 46
A43: Algoma Power Inc. | E43: Service Charge | G43: $ | H43: 629.74 | K43: 2_RESIDENTIAL R2 SERVICE CLASSIFICATION | L43: A | P43: 2_RESIDENTIAL R2 SERVICE CLASSIFICATION_MSC | V43: 14
A44: Algoma Power Inc. | E44: Distribution Volumetric Rate | G44: $/kW | H44: 3.2629 | K44: 2_RESIDENTIAL R2 SERVICE CLASSIFICATION | L44: A | P44: 2_RESIDENTIAL R2 SERVICE CLASSIFICATION_DVC | V44: 28
A45: Algoma Power Inc. | E45: Rate Rider for Disposition of Deferral/Variance Accounts (2017) - effective until December 31, 2017 | G45: $/kW | H45: 1.5845 | K45: 2_RESIDENTIAL R2 SERVICE CLASSIFICATION | L45: B | P45: 2_RESIDENTIAL R2 SERVICE CLASSIFICATION_DEFVAR_ALL | T45: 2017-12-31 | V45: 99
A46: Algoma Power Inc. | E46: Rate Rider for Disposition of Global Adjustment Account (2017) - effective until December 31, 2017 - Applicable only for Non-RPP Customers | G46: $/kWh | H46: 0.0068 | K46: 2_RESIDENTIAL R2 SERVICE CLASSIFICATION | L46: B | P46: 2_RESIDENTIAL R2 SERVICE CLASSIFICATION_GA_kwh | T46: 2017-12-31 | V46: 144
A47: Algoma Power Inc. | E47: Rate Rider for Disposition of Capacity Based Recovery Account (2017) - effective until December 31, 2017 - Applicable only for Class B Customers | G47: $/kWh | H47: 0.0002 | K47: 2_RESIDENTIAL R2 SERVICE CLASSIFICATION | L47: B | P47: 2_RESIDENTIAL R2 SERVICE CLASSIFICATION_VR_RR_6 | T47: 2017-12-31 | V47: 150
A48: Algoma Power Inc. | E48: Rate Rider for Disposition of Accounts 1575 & 1576 - effective until December 31, 2019 | G48: $/kW | H48: -0.801 | K48: 2_RESIDENTIAL R2 SERVICE CLASSIFICATION | L48: A | P48: 2_RESIDENTIAL R2 SERVICE CLASSIFICATION_DEFVAR_ALL | T48: 2019-12-31 | V48: 86
A49: Algoma Power Inc. | E49: Retail Transmission Rate - Network Service Rate | G49: $/kW | H49: 2.5251 | K49: 2_RESIDENTIAL R2 SERVICE CLASSIFICATION | L49: C | P49: 2_RESIDENTIAL R2 SERVICE CLASSIFICATION_Retail Transmission Rate Network Service Rate | V49: 47
A50: Algoma Power Inc. | E50: Retail Transmission Rate - Line and Transformation Connection Service Rate | G50: $/kW | H50: 1.8871 | K50: 2_RESIDENTIAL R2 SERVICE CLASSIFICATION | L50: C | P50: 2_RESIDENTIAL R2 SERVICE CLASSIFICATION_Retail Transmission Rate Line and Transformation Connection Service Rate | V50: 74
A51: Algoma Power Inc. | E51: MONTHLY RATES AND CHARGES - Regulatory Component | K51: 2_MRC_Reg | V51: 48
A52: Algoma Power Inc. | E52: Wholesale Market Service Rate | G52: $/kWh | H52: 0.0036 | K52: 2_RESIDENTIAL R2 SERVICE CLASSIFICATION | L52: T | P52: 2_RESIDENTIAL R2 SERVICE CLASSIFICATION_WMSR | V52: 29
A53: Algoma Power Inc. | E53: Rural or Remote Electricity Rate Protection Charge (RRRP) | G53: $/kWh | H53: 0.0013 | K53: 2_RESIDENTIAL R2 SERVICE CLASSIFICATION | L53: T | P53: 2_RESIDENTIAL R2 SERVICE CLASSIFICATION_RRRP | V53: 57
A54: Algoma Power Inc. | E54: Ontario Electricity Support Program Charge (OESP) | G54: $/kWh | H54: 0.0011 | K54: 2_RESIDENTIAL R2 SERVICE CLASSIFICATION | L54: T | P54: 2_RESIDENTIAL R2 SERVICE CLASSIFICATION_OESPR | V54: 49
A55: Algoma Power Inc. | E55: Standard Supply Service - Administrative Charge (if applicable) | G55: $ | H55: 0.25 | K55: 2_RESIDENTIAL R2 SERVICE CLASSIFICATION | L55: T | P55: 2_RESIDENTIAL R2 SERVICE CLASSIFICATION_SSS | V55: 63
A56: Algoma Power Inc. | E56: ONTARIO ELECTRICITY SUPPORT PROGRAM RECIPIENTS | K56: 3_ONTARIO ELECTRICITY SUPPORT PROGRAM RECIPIENTS | V56: 46
A57: Algoma Power Inc. | E57: In addition to the charges specified on page 1 of this tariff of rates and charges, the following credits are to be applied to eligible residential customers. | K57: 3_ONTARIO ELECTRICITY SUPPORT PROGRAM RECIPIENTS | V57: 158
A58: Algoma Power Inc. | E58: APPLICATION | K58: 3_APPLICATION | V58: 11
A59: Algoma Power Inc. | E59: The application of the credits is in accordance with the Distribution System Code (Section 9) and subsection 79.2 of the Ontario Energy Board Act, 1998. | K59: 3_ONTARIO ELECTRICITY SUPPORT PROGRAM RECIPIENTS | V59: 152
A60: Algoma Power Inc. | E60: The application of these credits shall be in accordance with the Licence of the Distributor and any Code or Order of the Ontario Energy Board, and amendments thereto as approved by the Ontario Energy Board, which may be applicable to the administration of this schedule. | K60: 3_ONTARIO ELECTRICITY SUPPORT PROGRAM RECIPIENTS | V60: 270
A61: Algoma Power Inc. | E61: In this class: “Aboriginal person” includes a person who is a First Nations person, a Métis person or an Inuit person; “account-holder” means a consumer who has an account with a distributor that falls within a residential-rate classification as specified in a rate order made by the Ontario Energy Board under section 78 of the Act, and who lives at the service address to which the account relates for at least six months in a year; “electricity-intensive medical device” means an oxygen concentrator, a mechanical ventilator, or such other device as may be specified by the Ontario Energy Board; “household” means the account-holder and any other people living at the accountholder’s service address for at least six months in a year, including people other than the account-holder’s spouse, children or other relatives; “household income” means the combined annual after-tax income of all members of a household aged 16 or over; | K61: 3_ONTARIO ELECTRICITY SUPPORT PROGRAM RECIPIENTS | V61: 933
A62: Algoma Power Inc. | E62: MONTHLY RATES AND CHARGES | K62: 3_MRC_Del | V62: 26
A63: Algoma Power Inc. | E63: Class A | K63: 3_ONTARIO ELECTRICITY SUPPORT PROGRAM RECIPIENTS | V63: 7
A64: Algoma Power Inc. | E64: (a) account-holders with a household income of $28,000 or less living in a household of one or two persons; | K64: 3_ONTARIO ELECTRICITY SUPPORT PROGRAM RECIPIENTS | V64: 107
A65: Algoma Power Inc. | E65: (b) account-holders with a household income of between $28,001 and $39,000 living in a household of three persons; | K65: 3_ONTARIO ELECTRICITY SUPPORT PROGRAM RECIPIENTS | V65: 114
A66: Algoma Power Inc. | E66: (c) account-holders with a household income of between $39,001 and $48,000 living in a household of five persons; | K66: 3_ONTARIO ELECTRICITY SUPPORT PROGRAM RECIPIENTS | V66: 113
A67: Algoma Power Inc. | E67: (d) account-holders with a household income of between $48,001 and $52,000 living in a household of seven or more persons; but does not include account-holders in Class E. | K67: 3_ONTARIO ELECTRICITY SUPPORT PROGRAM RECIPIENTS | V67: 172
A68: Algoma Power Inc. | E68: OESP Credit | G68: $ | H68: (30.00) | K68: 3_ONTARIO ELECTRICITY SUPPORT PROGRAM RECIPIENTS | L68: T | P68: 3_ONTARIO ELECTRICITY SUPPORT PROGRAM RECIPIENTS_OESP CREDIT_CLASS A | V68: 11
A69: Algoma Power Inc. | E69: Class B | K69: 3_ONTARIO ELECTRICITY SUPPORT PROGRAM RECIPIENTS | V69: 7
A70: Algoma Power Inc. | E70: (a) account-holders with a household income of $28,000 or less living in a household of three persons; | K70: 3_ONTARIO ELECTRICITY SUPPORT PROGRAM RECIPIENTS | V70: 102
A71: Algoma Power Inc. | E71: (b) account-holders with a household income of between $28,001 and $39,000 living in a household of four persons; | K71: 3_ONTARIO ELECTRICITY SUPPORT PROGRAM RECIPIENTS | V71: 113
A72: Algoma Power Inc. | E72: (c) account-holders with a household income of between $39,001 and $48,000 living in a household of six persons; | K72: 3_ONTARIO ELECTRICITY SUPPORT PROGRAM RECIPIENTS | V72: 113
A73: Algoma Power Inc. | E73: but does not include account-holders in Class F. | K73: 3_ONTARIO ELECTRICITY SUPPORT PROGRAM RECIPIENTS | V73: 48
A74: Algoma Power Inc. | E74: OESP Credit | G74: $ | H74: (34.00) | K74: 3_ONTARIO ELECTRICITY SUPPORT PROGRAM RECIPIENTS | L74: T | P74: 3_ONTARIO ELECTRICITY SUPPORT PROGRAM RECIPIENTS_OESP CREDIT_CLASS B | V74: 12
A75: Algoma Power Inc. | E75: Class C | K75: 3_ONTARIO ELECTRICITY SUPPORT PROGRAM RECIPIENTS | V75: 7
A76: Algoma Power Inc. | E76: (a) account-holders with a household income of $28,000 or less living in a household of four persons; | K76: 3_ONTARIO ELECTRICITY SUPPORT PROGRAM RECIPIENTS | V76: 101
A77: Algoma Power Inc. | E77: (b) account-holders with a household income of between $28,001 and $39,000 living in a household of five persons; | K77: 3_ONTARIO ELECTRICITY SUPPORT PROGRAM RECIPIENTS | V77: 113
A78: Algoma Power Inc. | E78: (c) account-holders with a household income of between $39,001 and $48,000 living in a household of seven or more persons; | K78: 3_ONTARIO ELECTRICITY SUPPORT PROGRAM RECIPIENTS | V78: 123
A79: Algoma Power Inc. | E79: but does not include account-holders in Class G. | K79: 3_ONTARIO ELECTRICITY SUPPORT PROGRAM RECIPIENTS | V79: 48
A80: Algoma Power Inc. | E80: OESP Credit | G80: $ | H80: (38.00) | K80: 3_ONTARIO ELECTRICITY SUPPORT PROGRAM RECIPIENTS | L80: T | P80: 3_ONTARIO ELECTRICITY SUPPORT PROGRAM RECIPIENTS_OESP CREDIT_CLASS C | V80: 12
A81: Algoma Power Inc. | E81: ONTARIO ELECTRICITY SUPPORT PROGRAM RECIPIENTS | K81: 4_ONTARIO ELECTRICITY SUPPORT PROGRAM RECIPIENTS | V81: 46
A82: Algoma Power Inc. | E82: Class D | K82: 4_ONTARIO ELECTRICITY SUPPORT PROGRAM RECIPIENTS | V82: 8
A83: Algoma Power Inc. | E83: (a) account-holders with a household income of $28,000 or less living in a household of five persons; | K83: 4_ONTARIO ELECTRICITY SUPPORT PROGRAM RECIPIENTS | V83: 101
A84: Algoma Power Inc. | E84: (b) account-holders with a household income of between $28,001 and $39,000 living in a household of six persons; | K84: 4_ONTARIO ELECTRICITY SUPPORT PROGRAM RECIPIENTS | V84: 112
A85: Algoma Power Inc. | E85: but does not include account-holders in Class H. | K85: 4_ONTARIO ELECTRICITY SUPPORT PROGRAM RECIPIENTS | V85: 48
A86: Algoma Power Inc. | E86: OESP Credit | H86: (42.00) | K86: 4_ONTARIO ELECTRICITY SUPPORT PROGRAM RECIPIENTS | L86: T | P86: 4_ONTARIO ELECTRICITY SUPPORT PROGRAM RECIPIENTS_OESP CREDIT_CLASS D | V86: 12
A87: Algoma Power Inc. | E87: Class E | K87: 4_ONTARIO ELECTRICITY SUPPORT PROGRAM RECIPIENTS | V87: 8
A88: Algoma Power Inc. | E88: Class E comprises account-holders with a household income and household size described under Class A | K88: 4_ONTARIO ELECTRICITY SUPPORT PROGRAM RECIPIENTS | V88: 101
A89: Algoma Power Inc. | E89: who also meet any of the following conditions: | K89: 4_ONTARIO ELECTRICITY SUPPORT PROGRAM RECIPIENTS | V89: 46
A90: Algoma Power Inc. | E90: (a) the dwelling to which the account relates is heated primarily by electricity; | K90: 4_ONTARIO ELECTRICITY SUPPORT PROGRAM RECIPIENTS | V90: 82
A91: Algoma Power Inc. | E91: (b) the account-holder or any member of the account-holder’s household is an Aboriginal person; or | K91: 4_ONTARIO ELECTRICITY SUPPORT PROGRAM RECIPIENTS | V91: 99
A92: Algoma Power Inc. | E92: (c) the account-holder or any member of the account-holder’s household regularly uses, for medical purposes, | K92: 4_ONTARIO ELECTRICITY SUPPORT PROGRAM RECIPIENTS | V92: 109
A93: Algoma Power Inc. | E93: an electricity-intensive medical device at the dwelling to which the account relates. | K93: 4_ONTARIO ELECTRICITY SUPPORT PROGRAM RECIPIENTS | V93: 85
A94: Algoma Power Inc. | E94: OESP Credit | H94: (45.00) | K94: 4_ONTARIO ELECTRICITY SUPPORT PROGRAM RECIPIENTS | L94: T | P94: 4_ONTARIO ELECTRICITY SUPPORT PROGRAM RECIPIENTS_OESP CREDIT_CLASS E | V94: 12
A95: Algoma Power Inc. | E95: Class F | K95: 4_ONTARIO ELECTRICITY SUPPORT PROGRAM RECIPIENTS | V95: 8
A96: Algoma Power Inc. | E96: (a) account-holders with a household income of $28,000 or less living in a household of six or more persons; | K96: 4_ONTARIO ELECTRICITY SUPPORT PROGRAM RECIPIENTS | V96: 108
A97: Algoma Power Inc. | E97: (b) account-holders with a household income of between $28,001 and $39,000 living in a household of seven | K97: 4_ONTARIO ELECTRICITY SUPPORT PROGRAM RECIPIENTS | V97: 106
A98: Algoma Power Inc. | E98: or more persons; or | K98: 4_ONTARIO ELECTRICITY SUPPORT PROGRAM RECIPIENTS | V98: 19
A99: Algoma Power Inc. | E99: (c) account-holders with a household income and household size described under Class B who also meet any | K99: 4_ONTARIO ELECTRICITY SUPPORT PROGRAM RECIPIENTS | V99: 105
A100: Algoma Power Inc. | E100: of the following conditions: | K100: 4_ONTARIO ELECTRICITY SUPPORT PROGRAM RECIPIENTS | V100: 28
A101: Algoma Power Inc. | E101: i. the dwelling to which the account relates is heated primarily by electricity; | K101: 4_ONTARIO ELECTRICITY SUPPORT PROGRAM RECIPIENTS | V101: 80
A102: Algoma Power Inc. | E102: ii. the account-holder or any member of the account-holder’s household is an Aboriginal person; or | K102: 4_ONTARIO ELECTRICITY SUPPORT PROGRAM RECIPIENTS | V102: 104
A103: Algoma Power Inc. | E103: iii. the account-holder or any member of the account-holder’s household regularly uses, for medical purposes, | K103: 4_ONTARIO ELECTRICITY SUPPORT PROGRAM RECIPIENTS | V103: 110
A104: Algoma Power Inc. | E104: an electricity-intensive medical device at the dwelling to which the account relates. | K104: 4_ONTARIO ELECTRICITY SUPPORT PROGRAM RECIPIENTS | V104: 85
A105: Algoma Power Inc. | E105: OESP Credit | H105: (50.00) | K105: 4_ONTARIO ELECTRICITY SUPPORT PROGRAM RECIPIENTS | L105: T | P105: 4_ONTARIO ELECTRICITY SUPPORT PROGRAM RECIPIENTS_OESP CREDIT_CLASS F | V105: 12
A106: Algoma Power Inc. | E106: Class G | K106: 4_ONTARIO ELECTRICITY SUPPORT PROGRAM RECIPIENTS | V106: 7
A107: Algoma Power Inc. | E107: Class G comprises account-holders with a household income and household size described under Class C | K107: 4_ONTARIO ELECTRICITY SUPPORT PROGRAM RECIPIENTS | V107: 100
A108: Algoma Power Inc. | E108: who also meet any of the following conditions: | K108: 4_ONTARIO ELECTRICITY SUPPORT PROGRAM RECIPIENTS | V108: 46
A109: Algoma Power Inc. | E109: (a) the dwelling to which the account relates is heated primarily by electricity; | K109: 4_ONTARIO ELECTRICITY SUPPORT PROGRAM RECIPIENTS | V109: 81
A110: Algoma Power Inc. | E110: (b) the account-holder or any member of the account-holder’s household is an Aboriginal person; or | K110: 4_ONTARIO ELECTRICITY SUPPORT PROGRAM RECIPIENTS | V110: 99
A111: Algoma Power Inc. | E111: (c) the account-holder or any member of the account-holder’s household regularly uses, for medical purposes, | K111: 4_ONTARIO ELECTRICITY SUPPORT PROGRAM RECIPIENTS | V111: 109
A112: Algoma Power Inc. | E112: an electricity-intensive medical device at the dwelling to which the account relates. | K112: 4_ONTARIO ELECTRICITY SUPPORT PROGRAM RECIPIENTS | V112: 85
A113: Algoma Power Inc. | E113: OESP Credit | H113: (55.00) | K113: 4_ONTARIO ELECTRICITY SUPPORT PROGRAM RECIPIENTS | L113: T | P113: 4_ONTARIO ELECTRICITY SUPPORT PROGRAM RECIPIENTS_OESP CREDIT_CLASS G | V113: 12
A114: Algoma Power Inc. | E114: Class H | K114: 4_ONTARIO ELECTRICITY SUPPORT PROGRAM RECIPIENTS | V114: 7
A115: Algoma Power Inc. | E115: Class H comprises account-holders with a household income and household size described under Class D | K115: 4_ONTARIO ELECTRICITY SUPPORT PROGRAM RECIPIENTS | V115: 100
A116: Algoma Power Inc. | E116: who also meet any of the following conditions: | K116: 4_ONTARIO ELECTRICITY SUPPORT PROGRAM RECIPIENTS | V116: 46
A117: Algoma Power Inc. | E117: (a) the dwelling to which the account relates is heated primarily by electricity; | K117: 4_ONTARIO ELECTRICITY SUPPORT PROGRAM RECIPIENTS | V117: 82
A118: Algoma Power Inc. | E118: (b) the account-holder or any member of the account-holder’s household is an Aboriginal person; or | K118: 4_ONTARIO ELECTRICITY SUPPORT PROGRAM RECIPIENTS | V118: 99
A119: Algoma Power Inc. | E119: (c) the account-holder or any member of the account-holder’s household regularly uses, for medical purposes, | K119: 4_ONTARIO ELECTRICITY SUPPORT PROGRAM RECIPIENTS | V119: 109
A120: Algoma Power Inc. | E120: an electricity-intensive medical device at the dwelling to which the account relates. | K120: 4_ONTARIO ELECTRICITY SUPPORT PROGRAM RECIPIENTS | V120: 85
A121: Algoma Power Inc. | E121: OESP Credit | H121: (60.00) | K121: 4_ONTARIO ELECTRICITY SUPPORT PROGRAM RECIPIENTS | L121: T | P121: 4_ONTARIO ELECTRICITY SUPPORT PROGRAM RECIPIENTS_OESP CREDIT_CLASS H | V121: 12
A122: Algoma Power Inc. | E122: Class I | K122: 4_ONTARIO ELECTRICITY SUPPORT PROGRAM RECIPIENTS | V122: 8
A123: Algoma Power Inc. | E123: Class I comprises account-holders with a household income and household size described under | K123: 4_ONTARIO ELECTRICITY SUPPORT PROGRAM RECIPIENTS | V123: 93
A124: Algoma Power Inc. | E124: paragraphs (a) or (b) of Class F who also meet any of the following conditions: | K124: 4_ONTARIO ELECTRICITY SUPPORT PROGRAM RECIPIENTS | V124: 79
A125: Algoma Power Inc. | E125: (a) the dwelling to which the account relates is heated primarily by electricity; | K125: 4_ONTARIO ELECTRICITY SUPPORT PROGRAM RECIPIENTS | V125: 82
A126: Algoma Power Inc. | E126: (b) the account-holder or any member of the account-holder’s household is an Aboriginal person; or | K126: 4_ONTARIO ELECTRICITY SUPPORT PROGRAM RECIPIENTS | V126: 99
A127: Algoma Power Inc. | E127: (c) the account-holder or any member of the account-holder’s household regularly uses, for medical purposes, | K127: 4_ONTARIO ELECTRICITY SUPPORT PROGRAM RECIPIENTS | V127: 109
A128: Algoma Power Inc. | E128: an electricity-intensive medical device at the dwelling to which the account relates. | K128: 4_ONTARIO ELECTRICITY SUPPORT PROGRAM RECIPIENTS | V128: 85
A129: Algoma Power Inc. | E129: OESP Credit | H129: (75.00) | K129: 4_ONTARIO ELECTRICITY SUPPORT PROGRAM RECIPIENTS | L129: T | P129: 4_ONTARIO ELECTRICITY SUPPORT PROGRAM RECIPIENTS_OESP CREDIT_CLASS I | V129: 12
A130: Algoma Power Inc. | E130: SEASONAL CUSTOMERS SERVICE CLASSIFICATION | K130: 5_SEASONAL CUSTOMERS SERVICE CLASSIFICATION | V130: 41 | AC130: =FIND(E130, K130) -> 3
A131: Algoma Power Inc. | E131: This classification includes all services supplied to single-family dwelling units for domestic purposes, which are occupied on a seasonal/intermittent basis. A service is defined as Seasonal if occupancy is for a period of less than eight months of the year. Class B consumers are defined in accordance with O. Reg. 429. Further servicing details are available in the distributor’s Conditions of Service. | K131: 5_SEASONAL CUSTOMERS SERVICE CLASSIFICATION | V131: 409
A132: Algoma Power Inc. | E132: APPLICATION | K132: 5_APPLICATION | V132: 11
A133: Algoma Power Inc. | E133: The application of these rates and charges shall be in accordance with the Licence of the Distributor and any Code or Order of the Ontario Energy Board, and amendments thereto as approved by the Ontario Energy Board, which may be applicable to the administration of this schedule. | K133: 5_SEASONAL CUSTOMERS SERVICE CLASSIFICATION | V133: 280
A134: Algoma Power Inc. | E134: No rates and charges for the distribution of electricity and charges to meet the costs of any work or service done or furnished for the purpose of the distribution of electricity shall be made except as permitted by this schedule, unless required by the Distributor’s Licence or a Code or Order of the Ontario Energy Board, and amendments thereto as approved by the Ontario Energy Board, or as specified herein. | K134: 5_SEASONAL CUSTOMERS SERVICE CLASSIFICATION | V134: 411
A135: Algoma Power Inc. | E135: Unless specifically noted, this schedule does not contain any charges for the electricity commodity, be it under the Regulated Price Plan, a contract with a retailer or the wholesale market price, as applicable. In addition, the charges in the MONTHLY RATES AND CHARGES - Regulatory Component of this schedule do not apply to a customer that is an embedded wholesale market participant. | K135: 5_SEASONAL CUSTOMERS SERVICE CLASSIFICATION | V135: 387
A136: Algoma Power Inc. | E136: It should be noted that this schedule does not list any charges, assessments or credits that are required by law to be invoiced by a distributor and that are not subject to Ontario Energy Board approval, such as the Debt Retirement Charge, the Global Adjustment, and the HST. | K136: 5_SEASONAL CUSTOMERS SERVICE CLASSIFICATION | V136: 275
A137: Algoma Power Inc. | E137: MONTHLY RATES AND CHARGES - Delivery Component | K137: 5_MRC_Del | V137: 46
A138: Algoma Power Inc. | E138: Service Charge | G138: $ | H138: 42.18 | K138: 5_SEASONAL CUSTOMERS SERVICE CLASSIFICATION | L138: A | P138: 5_SEASONAL CUSTOMERS SERVICE CLASSIFICATION_MSC | V138: 15
A139: Algoma Power Inc. | E139: Rate Rider for Smart Metering Entity Charge - effective until October 31, 2018 | G139: $ | H139: 0.79 | K139: 5_SEASONAL CUSTOMERS SERVICE CLASSIFICATION | L139: B | P139: 5_SEASONAL CUSTOMERS SERVICE CLASSIFICATION_SME | T139: 2018-10-31 | V139: 78
A140: Algoma Power Inc. | E140: Distribution Volumetric Rate | G140: $/kWh | H140: 0.1402 | K140: 5_SEASONAL CUSTOMERS SERVICE CLASSIFICATION | L140: A | P140: 5_SEASONAL CUSTOMERS SERVICE CLASSIFICATION_DVC | V140: 29
A141: Algoma Power Inc. | E141: Rate Rider for Disposition of Deferral/Variance Accounts (2017) - effective until December 31, 2017 | G141: $/kWh | H141: -0.0037 | K141: 5_SEASONAL CUSTOMERS SERVICE CLASSIFICATION | L141: B | P141: 5_SEASONAL CUSTOMERS SERVICE CLASSIFICATION_DEFVAR_ALL | T141: 2017-12-31 | V141: 99
A142: Algoma Power Inc. | E142: Rate Rider for Disposition of Global Adjustment Account (2017) - effective until December 31, 2017 - Applicable only for Non-RPP Customers | G142: $/kWh | H142: 0.0068 | K142: 5_SEASONAL CUSTOMERS SERVICE CLASSIFICATION | L142: B | P142: 5_SEASONAL CUSTOMERS SERVICE CLASSIFICATION_GA_kwh | T142: 2017-12-31 | V142: 144
A143: Algoma Power Inc. | E143: Rate Rider for Disposition of Capacity Based Recovery Account (2017) - effective until December 31, 2017 - Applicable only for Class B Customers | G143: $/kWh | H143: 0.0002 | K143: 5_SEASONAL CUSTOMERS SERVICE CLASSIFICATION | L143: B | P143: 5_SEASONAL CUSTOMERS SERVICE CLASSIFICATION_VR_RR_10 | T143: 2017-12-31 | V143: 150
A144: Algoma Power Inc. | E144: Rate Rider for Disposition of Account 1574 - effective until June 30, 2019 | G144: $/kWh | H144: 0.0307 | K144: 5_SEASONAL CUSTOMERS SERVICE CLASSIFICATION | L144: A | P144: 5_SEASONAL CUSTOMERS SERVICE CLASSIFICATION_1574 | T144: 2019-06-30 | V144: 74
A145: Algoma Power Inc. | E145: Rate Rider for Disposition of Accounts 1575 & 1576 - effective until December 31, 2019 | G145: $/kWh | H145: -0.0019 | K145: 5_SEASONAL CUSTOMERS SERVICE CLASSIFICATION | L145: A | P145: 5_SEASONAL CUSTOMERS SERVICE CLASSIFICATION_DEFVAR_ALL | T145: 2019-12-31 | V145: 86
A146: Algoma Power Inc. | E146: Retail Transmission Rate - Network Service Rate | G146: $/kWh | H146: 0.0066 | K146: 5_SEASONAL CUSTOMERS SERVICE CLASSIFICATION | L146: C | P146: 5_SEASONAL CUSTOMERS SERVICE CLASSIFICATION_Retail Transmission Rate - Network Service Rate | V146: 47
A147: Algoma Power Inc. | E147: Retail Transmission Rate - Line and Transformation Connection Service Rate | G147: $/kWh | H147: 0.005 | K147: 5_SEASONAL CUSTOMERS SERVICE CLASSIFICATION | L147: C | P147: 5_SEASONAL CUSTOMERS SERVICE CLASSIFICATION_Retail Transmission Rate - Line and Transformation Connection Service Rate | V147: 74
A148: Algoma Power Inc. | E148: MONTHLY RATES AND CHARGES - Regulatory Component | K148: 5_MRC_Reg | V148: 48
A149: Algoma Power Inc. | E149: Wholesale Market Service Rate | G149: $/kWh | H149: 0.0036 | K149: 5_SEASONAL CUSTOMERS SERVICE CLASSIFICATION | L149: T | P149: 5_SEASONAL CUSTOMERS SERVICE CLASSIFICATION_WMSR | V149: 29
A150: Algoma Power Inc. | E150: Rural or Remote Electricity Rate Protection Charge (RRRP) | G150: $/kWh | H150: 0.0013 | K150: 5_SEASONAL CUSTOMERS SERVICE CLASSIFICATION | L150: T | P150: 5_SEASONAL CUSTOMERS SERVICE CLASSIFICATION_RRRP | V150: 57
A151: Algoma Power Inc. | E151: Ontario Electricity Support Program Charge (OESP) | G151: $/kWh | H151: 0.0011 | K151: 5_SEASONAL CUSTOMERS SERVICE CLASSIFICATION | L151: T | P151: 5_SEASONAL CUSTOMERS SERVICE CLASSIFICATION_OESPR | V151: 49
A152: Algoma Power Inc. | E152: Standard Supply Service - Administrative Charge (if applicable) | G152: $ | H152: 0.25 | K152: 5_SEASONAL CUSTOMERS SERVICE CLASSIFICATION | L152: T | P152: 5_SEASONAL CUSTOMERS SERVICE CLASSIFICATION_SSS | V152: 63
A153: Algoma Power Inc. | E153: STREET LIGHTING SERVICE CLASSIFICATION | K153: 6_STREET LIGHTING SERVICE CLASSIFICATION | V153: 38 | AC153: =FIND(E153, K153) -> 3
A154: Algoma Power Inc. | E154: This classification refers to an account for roadway lighting. The consumption for these unmetered accounts will be based on the calculated connection load times the calculated hours of use established in the approved Ontario Energy Board street lighting load shape template. Class B consumers are defined in accordance with O. Reg. 429. Further servicing details are available in the distributor’s Conditions of Service. | K154: 6_STREET LIGHTING SERVICE CLASSIFICATION | V154: 424
A155: Algoma Power Inc. | E155: APPLICATION | K155: 6_APPLICATION | V155: 11
A156: Algoma Power Inc. | E156: The application of these rates and charges shall be in accordance with the Licence of the Distributor and any Code or Order of the Ontario Energy Board, and amendments thereto as approved by the Ontario Energy Board, which may be applicable to the administration of this schedule. | K156: 6_STREET LIGHTING SERVICE CLASSIFICATION | V156: 280
A157: Algoma Power Inc. | E157: No rates and charges for the distribution of electricity and charges to meet the costs of any work or service done or furnished for the purpose of the distribution of electricity shall be made except as permitted by this schedule, unless required by the Distributor’s Licence or a Code or Order of the Ontario Energy Board, and amendments thereto as approved by the Ontario Energy Board, or as specified herein. | K157: 6_STREET LIGHTING SERVICE CLASSIFICATION | V157: 411
A158: Algoma Power Inc. | E158: Unless specifically noted, this schedule does not contain any charges for the electricity commodity, be it under the Regulated Price Plan, a contract with a retailer or the wholesale market price, as applicable. In addition, the charges in the MONTHLY RATES AND CHARGES - Regulatory Component of this schedule do not apply to a customer that is an embedded wholesale market participant. | K158: 6_STREET LIGHTING SERVICE CLASSIFICATION | V158: 387
A159: Algoma Power Inc. | E159: It should be noted that this schedule does not list any charges, assessments or credits that are required by law to be invoiced by a distributor and that are not subject to Ontario Energy Board approval, such as the Debt Retirement Charge, the Global Adjustment, and the HST. | K159: 6_STREET LIGHTING SERVICE CLASSIFICATION | V159: 275
A160: Algoma Power Inc. | E160: MONTHLY RATES AND CHARGES - Delivery Component | K160: 6_MRC_Del | V160: 46
A161: Algoma Power Inc. | E161: Service Charge (per connection) | G161: $ | H161: 1.48 | K161: 6_STREET LIGHTING SERVICE CLASSIFICATION | L161: A | P161: 6_STREET LIGHTING SERVICE CLASSIFICATION_MSC | V161: 31
A162: Algoma Power Inc. | E162: Distribution Volumetric Rate | G162: $/kWh | H162: 0.239 | K162: 6_STREET LIGHTING SERVICE CLASSIFICATION | L162: A | P162: 6_STREET LIGHTING SERVICE CLASSIFICATION_DVC | V162: 31
A163: Algoma Power Inc. | E163: Rate Rider for Disposition of Deferral/Variance Accounts (2017) - effective until December 31, 2017 | G163: $/kWh | H163: 0.0054 | K163: 6_STREET LIGHTING SERVICE CLASSIFICATION | L163: B | P163: 6_STREET LIGHTING SERVICE CLASSIFICATION_DEFVAR_ALL | T163: 2017-12-31 | V163: 99
A164: Algoma Power Inc. | E164: Rate Rider for Disposition of Global Adjustment Account (2017) - effective until December 31, 2017 - Applicable only for Non-RPP Customers | G164: $/kWh | H164: 0.0068 | K164: 6_STREET LIGHTING SERVICE CLASSIFICATION | L164: B | P164: 6_STREET LIGHTING SERVICE CLASSIFICATION_GA_kwh | T164: 2017-12-31 | V164: 144
A165: Algoma Power Inc. | E165: Rate Rider for Disposition of Capacity Based Recovery Account (2017) - effective until December 31, 2017 - Applicable only for Class B Customers | G165: $/kWh | H165: 0.0002 | K165: 6_STREET LIGHTING SERVICE CLASSIFICATION | L165: B | P165: 6_STREET LIGHTING SERVICE CLASSIFICATION_VR_RR_15 | T165: 2017-12-31 | V165: 150
A166: Algoma Power Inc. | E166: Rate Rider for Disposition of Accounts 1575 & 1576 - effective until December 31, 2019 | G166: $/kWh | H166: -0.0019 | K166: 6_STREET LIGHTING SERVICE CLASSIFICATION | L166: A | P166: 6_STREET LIGHTING SERVICE CLASSIFICATION_DEFVAR_ALL | T166: 2019-12-31 | V166: 86
A167: Algoma Power Inc. | E167: Retail Transmission Rate - Network Service Rate | G167: $/kW | H167: 1.8284 | K167: 6_STREET LIGHTING SERVICE CLASSIFICATION | L167: C | P167: 6_STREET LIGHTING SERVICE CLASSIFICATION_Retail Transmission Rate - Network Service Rate | V167: 47
A168: Algoma Power Inc. | E168: Retail Transmission Rate - Line and Transformation Connection Service Rate | G168: $/kW | H168: 1.3613 | K168: 6_STREET LIGHTING SERVICE CLASSIFICATION | L168: C | P168: 6_STREET LIGHTING SERVICE CLASSIFICATION_Retail Transmission Rate - Line and Transformation Connection Service Rate | V168: 74
A169: Algoma Power Inc. | E169: MONTHLY RATES AND CHARGES - Regulatory Component | K169: 6_MRC_Reg | V169: 48
A170: Algoma Power Inc. | E170: Wholesale Market Service Rate | G170: $/kWh | H170: 0.0036 | K170: 6_STREET LIGHTING SERVICE CLASSIFICATION | L170: T | P170: 6_STREET LIGHTING SERVICE CLASSIFICATION_WMSR | V170: 29
A171: Algoma Power Inc. | E171: Rural or Remote Electricity Rate Protection Charge (RRRP) | G171: $/kWh | H171: 0.0013 | K171: 6_STREET LIGHTING SERVICE CLASSIFICATION | L171: T | P171: 6_STREET LIGHTING SERVICE CLASSIFICATION_RRRP | V171: 57
A172: Algoma Power Inc. | E172: Ontario Electricity Support Program Charge (OESP) | G172: $/kWh | H172: 0.0011 | K172: 6_STREET LIGHTING SERVICE CLASSIFICATION | L172: T | P172: 6_STREET LIGHTING SERVICE CLASSIFICATION_OESPR | V172: 49
A173: Algoma Power Inc. | E173: Standard Supply Service - Administrative Charge (if applicable) | G173: $ | H173: 0.25 | K173: 6_STREET LIGHTING SERVICE CLASSIFICATION | L173: T | P173: 6_STREET LIGHTING SERVICE CLASSIFICATION_SSS | V173: 63
A174: Algoma Power Inc. | E174: microFIT SERVICE CLASSIFICATION | K174: 7_microFIT SERVICE CLASSIFICATION | V174: 31 | AC174: =FIND(E174, K174) -> 3
A175: Algoma Power Inc. | E175: This classification applies to an electricity generation facility contracted under the Independent Electricity System Operator’s microFIT program and connected to the distributor’s distribution system. Further servicing details are available in the distributor’s Conditions of Service. | K175: 7_microFIT SERVICE CLASSIFICATION | V175: 286
A176: Algoma Power Inc. | E176: APPLICATION | K176: 7_APPLICATION | V176: 11
A177: Algoma Power Inc. | E177: The application of these rates and charges shall be in accordance with the Licence of the Distributor and any Code or Order of the Ontario Energy Board, and amendments thereto as approved by the Ontario Energy Board, which may be applicable to the administration of this schedule. | K177: 7_microFIT SERVICE CLASSIFICATION | V177: 280
A178: Algoma Power Inc. | E178: No rates and charges for the distribution of electricity and charges to meet the costs of any work or service done or furnished for the purpose of the distribution of electricity shall be made except as permitted by this schedule, unless required by the Distributor’s Licence or a Code or Order of the Ontario Energy Board, and amendments thereto as approved by the Ontario Energy Board, or as specified herein. | K178: 7_microFIT SERVICE CLASSIFICATION | V178: 411
A179: Algoma Power Inc. | E179: Unless specifically noted, this schedule does not contain any charges for the electricity commodity, be it under the Regulated Price Plan, a contract with a retailer or the wholesale market price, as applicable. | K179: 7_microFIT SERVICE CLASSIFICATION | V179: 211
A180: Algoma Power Inc. | E180: It should be noted that this schedule does not list any charges, assessments or credits that are required by law to be invoiced by a distributor and that are not subject to Ontario Energy Board approval, such as the Debt Retirement Charge, the Global Adjustment, and the HST. | K180: 7_microFIT SERVICE CLASSIFICATION | V180: 275
A181: Algoma Power Inc. | E181: MONTHLY RATES AND CHARGES - Delivery Component | K181: 7_MRC_Del | V181: 46
A182: Algoma Power Inc. | E182: Service Charge | G182: $ | H182: 5.4 | K182: 7_microFIT SERVICE CLASSIFICATION | L182: A | P182: 7_microFIT SERVICE CLASSIFICATION_MSC | V182: 15
A183: Algoma Power Inc. | E183: ALLOWANCES | K183: Algoma Power Inc._ALLOWANCES | V183: 10
A184: Algoma Power Inc. | E184: Transformer Allowance for Ownership - per kW of billing demand/month | G184: $/kW | H184: -0.6 | I184: =IF(LEN(H184)>4, "fix", "") ->  | V184: 69
A185: Algoma Power Inc. | E185: Primary Metering Allowance for Transformer Losses - applied to measured demand & energy | G185: % | H185: -1 | L185: T | V185: 89
A186: Algoma Power Inc. | E186: SPECIFIC SERVICE CHARGES | K186: Algoma Power Inc._SSC | V186: 24
A187: Algoma Power Inc. | E187: APPLICATION | K187: 7_APPLICATION | V187: 11
A188: Algoma Power Inc. | E188: The application of these rates and charges shall be in accordance with the Licence of the Distributor and any Code or Order of the Ontario Energy Board, and amendments thereto as approved by the Ontario Energy Board, which may be applicable to the administration of this schedule. | V188: 280
A189: Algoma Power Inc. | E189: No charges to meet the costs of any work or service done or furnished for the purpose of the distribution of electricity shall be made except as permitted by this schedule, unless required by the Distributor’s Licence or a Code or Order of the Ontario Energy Board, and amendments thereto as approved by the Ontario Energy Board, or as specified herein. | V189: 353
A190: Algoma Power Inc. | E190: It should be noted that this schedule does not list any charges, assessments or credits that are required by law to be invoiced by a distributor and that are not subject to Ontario Energy Board approval, such as the Debt Retirement Charge, the Global Adjustment, and the HST. | V190: 275
A191: Algoma Power Inc. | E191: Customer Administration | K191: Algoma Power Inc._CA | V191: 23
A192: Algoma Power Inc. | E192: Arrears certificate (credit reference) | G192: $ | H192: 15 | V192: 39
A193: Algoma Power Inc. | E193: Statement of account | G193: $ | H193: 15 | V193: 22
A194: Algoma Power Inc. | E194: Pulling post dated cheques | G194: $ | H194: 15 | V194: 27
A195: Algoma Power Inc. | E195: Duplicate invoices for previous billing | G195: $ | H195: 15 | V195: 40
A196: Algoma Power Inc. | E196: Request for other billing information | G196: $ | H196: 15 | V196: 38
A197: Algoma Power Inc. | E197: Easement Letter | G197: $ | H197: 15 | V197: 16
A198: Algoma Power Inc. | E198: Income tax letter | G198: $ | H198: 15 | V198: 18
A199: Algoma Power Inc. | E199: Notification charge | G199: $ | H199: 15 | V199: 20
A200: Algoma Power Inc. | E200: Account history | G200: $ | H200: 15 | V200: 16
... 4300 more rows

Sheet lists (hidden)
A1: ALLOWANCES | B1: Embedded Distributor | C1: =COUNTA(B1:B17) -> 4 | I1: A Standby Service Charge will be applied for a month where standby power is not provided. The applicable rate is the approved Distribution Volumetric Rate of the applicable service class and is applied to gross metered demand or contracted amount, whichever is greater. A monthly administration charge of $200, for simple metering arrangements, or $500, for complex metering arrangements, will also be applied. | L1: Loss Factors | N1: Units | O1: Units1 | P1: Units2 | Z1: Account History | AA1: Account set up charge/change of occupancy charge (plus credit agency costs if applicable) | AB1: Total Loss Factor – Embedded Distributor – Hydro One Networks Inc. | AL1: Algoma Power Inc. | AM1: Algoma Power Inc. | AO1: DISTRIBUTED GENERATION [DGEN] | AP1: kW | AT1: Sub-Total: Delivery (Distribution and Retail Transmission)
A2: COMPETITIVE SECTOR MULTI-UNIT RESIDENTIAL SERVICE | B2: General Service 3,000 to 4,999 kW | I2: Distribution Volumetric Rate | L2: Total Loss Factor – Primary Metered Customer | N2: $ | O2: $/kWh | P2: $ | Z2: Account set up charge/change of occupancy charge | AA2: Administrative Billing Charge | AB2: Total Loss Factor – Primary Metered Customer | AL2: Atikokan Hydro Inc. | AM2: Atikokan Hydro Inc. | AO2: EMBEDDED DISTRIBUTOR | AP2: kW | AT2: Wholesale Market Service Rate | AW2: =AU2*AV2 -> 0 | AX2: =AU2 -> 0 | AY2: 0 | AZ2: =AX2*AY2 -> 0 | BB2: =AZ2-AW2 -> 0 | BC2: =BB2/AW2 -> 
A3: COMPETITIVE SECTOR MULTI-UNIT RESIDENTIAL SERVICE CLASSIFICATION | B3: General Service 1,000 to 4,999 kW | I3: Distribution Volumetric Rate - $/kW of contracted amount | L3: Total Loss Factor – Primary Metered Customer < 5,000 kW | N3: $/kWh | O3: $/kW | P3: % | W3: MSC | Z3: Account set up charge/change of occupancy charge (plus credit agency costs if applicable – Residential) | AA3: Bell Canada Pole Rentals | AB3: Total Loss Factor – Primary Metered Customer < 5,000 kW | AL3: Bluewater Power Distribution Corporation | AM3: Bluewater Power Distribution Corporation | AO3: EMBEDDED DISTRIBUTOR | AP3: kW | AT3: Rural or Remote Electricity Rate Protection Charge (RRRP) | AW3: =AU3*AV3 -> 0 | AX3: 0 | AY3: 0 | AZ3: =AX3*AY3 -> 0 | BB3: =AZ3-AW3 -> 0 | BC3: =BB3/AW3 -> 
A4: DISTRIBUTED GENERATION [DGEN] | B4: General Service Equal To Or Greater Than 1,500 kW - Interval Metered | I4: Distribution Wheeling Service Rate | L4: Total Loss Factor – Primary Metered Customer > 5,000 kW | N4: $/kW | O4: $/kVA | W4: SM_Rate_Adder | Z4: Account set up charge/change of occupancy charge (plus credit agency costs if applicable) | AA4: Clearance Pole Attachment charge $/pole/year | AB4: Total Loss Factor – Primary Metered Customer > 5,000 kW | AL4: Brant County Power Inc. | AM4: Brant County Power Inc. | AO4: FARMS - SINGLE PHASE ENERGY-BILLED [F1] | AP4: kWh | AT4: Standard Supply Service – Administration Charge (if applicable) | AW4: =AU4*AV4 -> 0 | AX4: 0 | AY4: 0 | AZ4: =AX4*AY4 -> 0 | BB4: =AZ4-AW4 -> 0 | BC4: =BB4/AW4 -> 
A5: DISTRIBUTED GENERATION [DGEN] SERVICE CLASSIFICATION | I5: Electricity Rate | L5: Total Loss Factor – Secondary Metered Customer | N5: $/kVA | W5: MSC_Rate_Rider_ | Z5: Arrears certificate | AA5: Collection of account charge – no disconnection | AB5: Total Loss Factor – Secondary Metered Customer | AL5: Brantford Power Inc. | AM5: Brantford Power Inc. | AO5: FARMS - THREE PHASE ENERGY-BILLED [F3] | AP5: kWh | AT5: Sub-Total: Regulatory | AW5: =SUM(AW2:AW4) -> 0 | AZ5: =SUM(AZ2:BA4) -> 0 | BB5: =AZ5-AW5 -> 0 | BC5: =BB5/AW5 -> 
A6: EMBEDDED DISTRIBUTOR | I6: Electricity Rate - All Additional kWh | L6: Total Loss Factor – Secondary Metered Customer < 5,000 kW | W6: VC | Z6: Arrears certificate (credit reference) | AA6: Collection of account charge – no disconnection – after regular hours | AB6: Total Loss Factor – Secondary Metered Customer < 5,000 kW | AL6: Burlington Hydro Inc. | AM6: Burlington Hydro Inc. | AO6: GENERAL SERVICE - COMMERCIAL | AP6: kW | AT6: Debt Retirement Charge (DRC) | AW6: =AU6*AV6 -> 0 | AX6: =AU6 -> 0 | AY6: =AV6 -> 0 | AZ6: =AX6*AY6 -> 0 | BB6: =AZ6-AW6 -> 0 | BC6: =BB6/AW6 -> 
A7: EMBEDDED DISTRIBUTOR SERVICE CLASSIFICATION | I7: Electricity Rate - First 250 kWh | AL7: Cambridge and North Dumfries Hydro Inc. | AM7: Cambridge and North Dumfries Hydro Inc. | AO7: GENERAL SERVICE - INSTITUTIONAL | AP7: kW
A8: ENERGY FROM WASTE SERVICE CLASSIFICATION | I8: Electricity Rate -All Additional kWh | L8: Total Loss Factor – Secondary Metered Customer > 5,000 kW | W8: VC_Rate_Rider_ | Z8: Charge to certify cheque | AA8: Collection of account charge – no disconnection - during regular business hours | AB8: Total Loss Factor – Secondary Metered Customer > 5,000 kW | AL8: Canadian Niagara Power Inc. | AM8: Canadian Niagara Power Inc. | AO8: GENERAL SERVICE 1,000 TO 2,999 KW | AP8: kW | AT8: Total Bill on RPP (before taxes) | BB8: =AZ8-AW8 -> 0
A9: FARMS - SINGLE PHASE ENERGY-BILLED [F1] | I9: Electricity Rate First 1,000 kWh | L9: Distribution Loss Factor - Secondary Metered Customer < 5,000 kW | W9: VC_GA_Rate_Rider_kW_ | Z9: Collection of Account Charge – No Disconnection | AA9: Collection of account charge – no disconnection – during regular hours | AL9: Centre Wellington Hydro Ltd. | AM9: Centre Wellington Hydro Ltd. | AO9: GENERAL SERVICE 1,000 TO 4,999 KW | AP9: kW | AT9: HST | AW9: =AV9*AW8 -> 0 | AY9: =AV9 -> 0 | AZ9: =AY9*AZ8 -> 0 | BB9: =AZ9-AW9 -> 0 | BC9: =BB9/AW9 -> 
A10: FARMS - THREE PHASE ENERGY-BILLED [F3] | I10: Electricity Rate First 25,000 kWh | L10: Distribution Loss Factor - Secondary Metered Customer > 5,000 kW | W10: VC_LV_Rate | Z10: Credit Card Convenience Charge | AA10: Collection/Disconnection/Load Limiter/Reconnection – if in Community | AL10: Chapleau Public Utilities Corporation | AM10: Chapleau Public Utilities Corporation | AO10: GENERAL SERVICE 1,000 TO 4,999 KW - INTERVAL METERS | AP10: kW | AT10: Total Bill (including HST) | AW10: =AW9+AW8 -> 0 | AZ10: =AZ9+AZ8 -> 0 | BB10: =AZ10-AW10 -> 0 | BC10: =BB10/AW10 -> 
A11: GENERAL SERVICE - COMMERCIAL | I11: Electricity Rate First 6,000 kWh | L11: Distribution Loss Factor - Primary Metered Customer < 5,000 kW | W11: RTSR_Network | Z11: Credit check (plus credit agency costs) | AA11: Credit Card Convenience Charge | AL11: Collus PowerStream Corporation | AM11: Collus PowerStream Corporation | AO11: GENERAL SERVICE 1,000 TO 4,999 KW (CO-GENERATION) | AP11: kW | AT11: Ontario Clean Energy Benefit (OCEB) | AW11: =-0.1*AW10 -> 0 | AY11: =AV11 -> 0 | AZ11: =-0.1*AZ10 -> 0 | BB11: =AZ11-AW11 -> 0 | BC11: =BB11/AW11 -> 
A12: GENERAL SERVICE - INSTITUTIONAL | I12: Electricity Rate Next 1,500 kWh | L12: Distribution Loss Factor - Primary Metered Customer > 5,000 kW | W12: RTSR_Connection | Z12: Credit reference Letter | AA12: Disconnect/Reconnect at meter – after regular hours | AL12: Cooperative Hydro Embrun Inc. | AM12: Cooperative Hydro Embrun Inc. | AO12: GENERAL SERVICE 1,500 TO 4,999 KW | AP12: kW | AT12: Total Bill on RPP (including OCEB) | AW12: =AW10+AW11 -> 0 | AZ12: =AZ10+AZ11 -> 0 | BB12: =AZ12-AW12 -> 0 | BC12: =BB12/AW12 -> 
A13: GENERAL SERVICE 1,000 TO 2,999 KW | I13: General Service 1,500 to 4,999 kW customer | AL13: E.L.K. Energy Inc. | AM13: E.L.K. Energy Inc. | AO13: GENERAL SERVICE 2,500 TO 4,999 KW | AP13: kW
A14: GENERAL SERVICE 1,000 TO 4,999 KW | I14: General Service 50 to 1,499 kW customer | L14: Total Loss Factor - Embedded Distributor | W14: RTSR_Network_Interval | Z14: Credit reference/credit check (plus credit agency costs – General Service) | AA14: Disconnect/Reconnect at meter – during regular hours | AL14: Enersource Hydro Mississauga Inc. | AM14: Enersource Hydro Mississauga Inc. | AO14: GENERAL SERVICE 3,000 TO 4,999 KW | AP14: kW | AT14: Total Bill on TOU (before taxes) | BB14: =AZ14-AW14 -> 0
A15: GENERAL SERVICE 1,000 TO 4,999 KW - INTERVAL METERS | I15: General Service Large Use customer | L15: Total Loss Factor – Embedded Distributor – Hydro One Networks Inc. | W15: RTSR_Connection_Interval | Z15: Credit Reference/credit check (plus credit agency costs) | AA15: Disconnect/Reconnect at pole – after regular hours | AL15: Entegrus Powerlines Inc. | AM15: Entegrus Powerlines Inc. | AO15: GENERAL SERVICE 3,000 TO 4,999 KW - INTERMEDIATE USE | AP15: kW | AT15: HST | AW15: =AV15*AW14 -> 0 | AY15: =AV15 -> 0 | AZ15: =AY15*AZ14 -> 0 | BB15: =AZ15-AW15 -> 0 | BC15: =BB15/AW15 -> 
A16: GENERAL SERVICE 1,000 TO 4,999 KW (CO-GENERATION) | I16: Green Energy Act Initiatives Funding Adder - effective until the date of the next cost of service-based rate order | W16: RTSR_Network_Interval_GR1000kW | Z16: Dispute Test – Commercial self contained -- MC | AA16: Disconnect/Reconnect at pole – during regular hours | AL16: Entegrus Powerlines Inc. - Dutton Service Area | AM16: Entegrus Powerlines Inc. - Dutton Service Area | AO16: GENERAL SERVICE 3,000 TO 4,999 KW - INTERVAL METERED | AP16: kW | AT16: Total Bill (including HST) | AW16: =AW15+AW14 -> 0 | AZ16: =AZ15+AZ14 -> 0 | BB16: =AZ16-AW16 -> 0 | BC16: =BB16/AW16 -> 
A17: GENERAL SERVICE 1,000 TO 4,999 KW (CO-GENERATION) SERVICE CLASSIFICATION | I17: Green Energy Act Plan Funding Adder | W17: RTSR_Connection_Interval_GR1000kW | Z17: Dispute Test – Commercial TT -- MC | AA17: Disconnect/Reconnect Charge – At Meter – After Hours | AL17: Entegrus Powerlines Inc. - former Chatham-Kent Hydro Service Area | AM17: Entegrus Powerlines Inc. - former Chatham-Kent Hydro Service Area | AO17: GENERAL SERVICE 3,000 TO 4,999 KW - TIME OF USE | AP17: kW | AT17: Ontario Clean Energy Benefit (OCEB) | AW17: =-0.1*AW16 -> 0 | AY17: =AV17 -> 0 | AZ17: =-0.1*AZ16 -> 0 | BB17: =AZ17-AW17 -> 0 | BC17: =BB17/AW17 -> 
A18: GENERAL SERVICE 1,000 to 4,999 kW SERVICE CLASSIFICATION | I18: Green Energy Act Plan Funding Adder - effective April 1, 2013 until March 31, 2014 | W18: RTSR_Line_Connection | Z18: Dispute Test – Residential | AA18: Disconnect/Reconnect Charge – At Meter – During Regular Hours | AL18: Entegrus Powerlines Inc. - Newbury Service Area | AM18: Entegrus Powerlines Inc. - Newbury Service Area | AO18: GENERAL SERVICE 50 TO 1,000 KW | AP18: kW | AT18: Total Bill on TOU (including OCEB) | AW18: =AW16+AW17 -> 0 | AZ18: =AZ16+AZ17 -> 0 | BB18: =AZ18-AW18 -> 0 | BC18: =BB18/AW18 -> 
A19: GENERAL SERVICE 1,500 TO 4,999 KW | I19: Green Energy Act Plan Funding Adder - effective April 1, 2014 until March 31, 2015 | W19: RTSR_Transformer_Connection | Z19: Duplicate Invoices for previous billing | AA19: Disconnect/Reconnect Charge – At Pole – After Hours | AL19: Entegrus Powerlines Inc. - Strathroy, Mount Brydges and Parkhill Service Areas | AM19: Entegrus Powerlines Inc. - Strathroy, Mount Brydges and Parkhill Service Areas | AO19: GENERAL SERVICE 50 TO 1,000 KW - INTERVAL METERS | AP19: kW
A20: GENERAL SERVICE 2,500 TO 4,999 KW | I20: ICM Rate Rider (2014) - in effect until the effective date of the next cost of service rates | W20: WMSR | Z20: Easement Letter | AA20: Disconnect/Reconnect Charge – At Pole – During Regular Hours | AL20: ENWIN Utilities Ltd. | AM20: ENWIN Utilities Ltd. | AO20: GENERAL SERVICE 50 TO 1,000 KW - NON INTERVAL METERS | AP20: kW
A21: GENERAL SERVICE 3,000 TO 4,999 KW | I21: Low Voltage Service Charge | W21: RRRP | Z21: Income Tax Letter | AA21: Disconnect/Reconnect Charges for non payment of account - At Meter After Hours | AL21: Erie Thames Powerlines Corporation | AM21: Erie Thames Powerlines Corporation | AO21: GENERAL SERVICE 50 TO 1,499 KW | AP21: kW
A22: GENERAL SERVICE 3,000 TO 4,999 KW - INTERMEDIATE USE | I22: Low Voltage Service Rate | W22: SPC | Z22: Interval Meter Interrogation | AA22: Disconnect/Reconnect charges for non payment of account – at meter after regular hours | AL22: Espanola Regional Hydro Distribution Corporation | AM22: Espanola Regional Hydro Distribution Corporation | AO22: GENERAL SERVICE 50 TO 1,499 KW - INTERVAL METERED | AP22: kW
A23: GENERAL SERVICE 3,000 TO 4,999 KW - INTERMEDIATE USE SERVICE CLASSIFICATION | I23: Low Voltage Volumetric Rate | W23: DRC | Z23: Interval meter request change | AA23: Disconnect/Reconnect Charges for non payment of account - At Meter During Regular Hours | AL23: Essex Powerlines Corporation | AM23: Essex Powerlines Corporation | AO23: GENERAL SERVICE 50 TO 2,499 KW | AP23: kW
A24: GENERAL SERVICE 3,000 TO 4,999 KW - INTERVAL METERED | I24: LRAM Rate Rider - Effective Until April 30, 2015 | W24: SSS | Z24: Legal letter | AA24: Disconnect/Reconnect charges for non payment of account – at meter during regular hours | AL24: Festival Hydro Inc. | AM24: Festival Hydro Inc. | AO24: GENERAL SERVICE 50 TO 2,999 KW | AP24: kW
A25: GENERAL SERVICE 3,000 TO 4,999 KW - TIME OF USE | I25: Minimum Distribution Charge - per KW of maximum billing demand in the previous 11 months | W25: SFLF | Z25: Legal letter charge | AA25: Disconnect/Reconnect charges for non payment of account – at pole after regular hours | AL25: Fort Frances Power Corporation | AM25: Fort Frances Power Corporation | AO25: GENERAL SERVICE 50 TO 2,999 KW - INTERVAL METERED | AP25: kW
A26: GENERAL SERVICE 3,000 TO 4,999 KW SERVICE CLASSIFICATION | B26: January | I26: Monthly Distribution Wheeling Service Rate - Dedicated LV Line | W26: DLF_Secondary_LT_5000kW | Z26: Meter dispute charge plus Measurement Canada fees (if meter found correct) | AA26: Disconnect/Reconnect charges for non payment of account – at pole during regular hours | AL26: Greater Sudbury Hydro Inc. | AM26: Greater Sudbury Hydro Inc. | AO26: GENERAL SERVICE 50 TO 2,999 KW - TIME OF USE | AP26: kW
A27: GENERAL SERVICE 50 TO 1,000 KW | B27: February | I27: Monthly Distribution Wheeling Service Rate - Hydro One Networks | W27: DLF_Secondary_GT_5000kW | Z27: Notification charge | AA27: Disconnect/Reconnection for >300 volts - after regular hours | AL27: Grimsby Power Inc. | AM27: Grimsby Power Inc. | AO27: GENERAL SERVICE 50 TO 4,999 KW | AP27: kW
A28: GENERAL SERVICE 50 TO 1,000 KW - INTERVAL METERS | B28: March | I28: Monthly Distribution Wheeling Service Rate - Shared LV Line | W28: DLF_Primary_LT_5000kW | Z28: Pulling Post Dated Cheques | AA28: Disconnect/Reconnection for >300 volts - during regular hours | AL28: Guelph Hydro Electric Systems Inc. | AM28: Guelph Hydro Electric Systems Inc. | AO28: GENERAL SERVICE 50 TO 4,999 KW - INTERVAL METERED | AP28: kW
A29: GENERAL SERVICE 50 TO 1,000 KW - NON INTERVAL METERS | B29: April | I29: Monthly Distribution Wheeling Service Rate - Waterloo North Hydro | W29: DLF_Primary_GT_5000kW | Z29: Request for other billing information | AA29: Disposal of Concrete Poles | AL29: Haldimand County Hydro Inc. | AM29: Haldimand County Hydro Inc. | AO29: GENERAL SERVICE 50 TO 4,999 KW - TIME OF USE | AP29: kW
A30: GENERAL SERVICE 50 TO 1,499 KW | B30: May | I30: Rate Rider for Application of Tax Change - effective until April 30, 2015 | W30: TLF_Secondary_LT_5000kW | Z30: Returned cheque (plus bank charges) | AA30: Dispute Test – Commercial TT -- MC | AL30: Halton Hills Hydro Inc. | AM30: Halton Hills Hydro Inc. | AO30: GENERAL SERVICE 50 TO 4,999 KW (COGENERATION) | AP30: kW
A31: GENERAL SERVICE 50 TO 1,499 KW - INTERVAL METERED | B31: June | I31: Rate Rider for Application of Tax Change - effective until December 31, 2014 | W31: TLF_Secondary_GT_5000kW | Z31: Returned cheque charge (plus bank charges) | AA31: Install/Remove load control device – after regular hours | AL31: Hearst Power Distribution Company Limited | AM31: Hearst Power Distribution Company Limited | AO31: GENERAL SERVICE 50 TO 4,999 KW (FORMERLY TIME OF USE) | AP31: kW
A32: GENERAL SERVICE 50 to 1,499 kW SERVICE CLASSIFICATION | B32: July | I32: Rate Rider for Application of Tax Change (2014) - effective until April 30, 2015 | W32: TLF_Primary_LT_5000kW | Z32: Special Billing Service (aggregation) | AA32: Install/Remove load control device – during regular hours | AL32: Horizon Utilities Corporation | AM32: Horizon Utilities Corporation | AO32: GENERAL SERVICE 50 TO 499 KW | AP32: kW
A33: GENERAL SERVICE 50 TO 2,499 KW | B33: August | I33: Rate Rider for Application of Tax Change (per connection) - effective until April 30, 2015 | W33: TLF_Primary_GT_5000kW | Z33: Special Billing Service (sub-metering charge per meter) | AA33: Interval Meter Interrogation | AL33: Hydro 2000 Inc. | AM33: Hydro 2000 Inc. | AO33: GENERAL SERVICE 50 TO 699 KW | AP33: kW
A34: GENERAL SERVICE 50 TO 2,999 KW | B34: September | I34: Rate Rider for CGAAP Accounting Changes (2013) - effective until April 30, 2017 | W34: TLF_EmbeddedDistributor | Z34: Special meter reads | AA34: Interval Meter Load Management Tool Charge $/month | AL34: Hydro Hawkesbury Inc. | AM34: Hydro Hawkesbury Inc. | AO34: GENERAL SERVICE 50 TO 999 KW | AP34: kW
A35: GENERAL SERVICE 50 TO 2,999 KW - INTERVAL METERED | B35: October | I35: Rate Rider for Deferral/Variance Account (2012) - effective unitl April 30, 2016 | Z35: Statement of Account | AA35: Interval meter request change | AL35: Hydro One Brampton Networks Inc. | AM35: Hydro One Brampton Networks Inc. | AO35: GENERAL SERVICE 50 TO 999 KW - INTERVAL METERED | AP35: kW
A36: GENERAL SERVICE 50 TO 2,999 KW - TIME OF USE | B36: November | I36: Rate Rider for Deferral/Variance Account Disposition – effective until April 30, 2015 | Z36: Unprocessed Payment Charge (plus bank charges) | AA36: Late Payment – per annum | AL36: Hydro One Networks Inc. | AM36: Hydro One Networks Inc. | AO36: GENERAL SERVICE 500 TO 4,999 KW | AP36: kW
A37: GENERAL SERVICE 50 TO 2,999 KW SERVICE CLASSIFICATION | B37: December | I37: Rate Rider for Deferral/Variance Account Disposition (2012) - effective until April 30, 2016 | AA37: Late Payment – per month | AL37: Hydro Ottawa Limited | AM37: Hydro Ottawa Limited | AO37: GENERAL SERVICE 700 TO 4,999 KW | AP37: kW
A38: GENERAL SERVICE 50 TO 4,999 KW | I38: Rate Rider for Deferral/Variance Account Disposition (2013) - effective until April 30, 2014 | AA38: Layout fees | AL38: Innisfil Hydro Distribution Systems Limited | AM38: Innisfil Hydro Distribution Systems Limited | AO38: GENERAL SERVICE DEMAND BILLED (50 KW AND ABOVE) [GSD] | AP38: kW
A39: GENERAL SERVICE 50 TO 4,999 KW - INTERVAL METERED | I39: Rate Rider for Deferral/Variance Account Disposition (2014) - effective until April 28, 2016 | AA39: Meter dispute charge plus Measurement Canada fees (if meter found correct) | AL39: Kenora Hydro Electric Corporation Ltd. | AM39: Kenora Hydro Electric Corporation Ltd. | AO39: GENERAL SERVICE ENERGY BILLED (LESS THAN 50 KW) [GSE-METERED] | AP39: kWh
A40: GENERAL SERVICE 50 TO 4,999 KW - TIME OF USE | I40: Rate Rider for Deferral/Variance Account Disposition (2014) - effective until April 30, 2015 | AA40: Meter Interrogation Charge | AL40: Kingston Hydro Corporation | AM40: Kingston Hydro Corporation | AO40: GENERAL SERVICE ENERGY BILLED (LESS THAN TO 50 KW) [GSE-UNMETERED] | AP40: kWh
A41: GENERAL SERVICE 50 TO 4,999 KW (COGENERATION) | I41: Rate Rider for Deferral/Variance Account Disposition (2014) - effective until December 31, 2014 | AA41: Missed Service Appointment | AL41: Kitchener-Wilmot Hydro Inc. | AM41: Kitchener-Wilmot Hydro Inc. | AO41: GENERAL SERVICE EQUAL TO OR GREATER THAN 1,500 KW | AP41: kW
A42: GENERAL SERVICE 50 TO 4,999 KW (FORMERLY TIME OF USE) | I42: Rate Rider for Deferral/Variance Account Disposition (2014) - effective until December 31, 2015 | AA42: Norfolk Pole Rentals – Billed | AL42: Lakefront Utilities Inc. | AM42: Lakefront Utilities Inc. | AO42: GENERAL SERVICE EQUAL TO OR GREATER THAN 1,500 KW - INTERVAL METERED | AP42: kW
A43: GENERAL SERVICE 50 TO 4,999 KW SERVICE CLASSIFICATION | I43: Rate Rider for Deferral/Variance Account Dispositon (2012) - effective until April 30, 2016 | AA43: Optional Interval/TOU Meter charge $/month | AL43: Lakeland Power Distribution Ltd. | AM43: Lakeland Power Distribution Ltd. | AO43: GENERAL SERVICE GREATER THAN 1,000 KW | AP43: kW
A44: GENERAL SERVICE 50 to 4,999 kWSERVICE CLASSIFICATION | I44: Rate Rider for Disposition of Accounting Changes Under CGAAP Account 1576 - effective until April 30, 2016 | AA44: Overtime Locate | AL44: London Hydro Inc. | AM44: London Hydro Inc. | AO44: GENERAL SERVICE GREATER THAN 50 kW - WMP | AP44: kW
A45: GENERAL SERVICE 50 TO 499 KW | I45: Rate Rider for Disposition of Deferral/Variance Accounts (2010) - effective until December 31, 2014 | AA45: Owner Requested Disconnection/Reconnection – after regular hours | AL45: Midland Power Utility Corporation | AM45: Midland Power Utility Corporation | AO45: GENERAL SERVICE INTERMEDIATE 1,000 TO 4,999 KW | AP45: kW
A46: GENERAL SERVICE 50 to 499 kW SERVICE CLASSIFICATION | I46: Rate Rider for Disposition of Deferral/Variance Accounts (2011) - effective until April 30, 2015 | AA46: Owner Requested Disconnection/Reconnection – during regular hours | AL46: Milton Hydro Distribution Inc. | AM46: Milton Hydro Distribution Inc. | AO46: GENERAL SERVICE INTERMEDIATE RATE CLASS 1,000 TO 4,999 KW (FORMERLY GENERAL SERVICE > 50 KW CUSTOMERS) | AP46: kW
A47: GENERAL SERVICE 50 TO 699 KW | I47: Rate Rider for Disposition of Deferral/Variance Accounts (2011) - effective until April 30, 2016 | AA47: Returned cheque (plus bank charges) | AL47: Newmarket - Tay Power Distribution Ltd. | AM47: Newmarket - Tay Power Distribution Ltd. | AO47: GENERAL SERVICE INTERMEDIATE RATE CLASS 1,000 TO 4,999 KW (FORMERLY LARGE USE CUSTOMERS) | AP47: kW
A48: GENERAL SERVICE 50 TO 699 KW SERVICE CLASSIFICATION | I48: Rate Rider for Disposition of Deferral/Variance Accounts (2012) - effective until April 30, 2014 | AA48: Rural system expansion / line connection fee | AL48: Niagara Peninsula Energy Inc. | AM48: Niagara Peninsula Energy Inc. | AO48: GENERAL SERVICE LESS THAN 50 KW | AP48: kWh
A49: GENERAL SERVICE 50 TO 999 KW | I49: Rate Rider for Disposition of Deferral/Variance Accounts (2012) - effective until April 30, 2015 | AA49: Same Day Open Trench | AL49: Niagara-on-the-Lake Hydro Inc. | AM49: Niagara-on-the-Lake Hydro Inc. | AO49: GENERAL SERVICE LESS THAN 50 KW - SINGLE PHASE ENERGY-BILLED [G1] | AP49: kWh
A50: GENERAL SERVICE 50 TO 999 KW - INTERVAL METERED | I50: Rate Rider for Disposition of Deferral/Variance Accounts (2012) - effective until April 30, 2016 | AA50: Scheduled Day Open Trench | AL50: Norfolk Power Distribution Inc. | AM50: Norfolk Power Distribution Inc. | AO50: GENERAL SERVICE LESS THAN 50 KW - THREE PHASE ENERGY-BILLED [G3] | AP50: kWh
A51: GENERAL SERVICE 50 to 999 kW SERVICE CLASSIFICATION | I51: Rate Rider for Disposition of Deferral/Variance Accounts (2012) - effective until August 31, 2014 | AA51: Service call – after regular hours | AL51: North Bay Hydro Distribution Limited | AM51: North Bay Hydro Distribution Limited | AO51: GENERAL SERVICE LESS THAN 50 KW - TRANSMISSION CLASS ENERGY-BILLED [T] | AP51: kWh
A52: GENERAL SERVICE 500 TO 1,499 KW SERVICE CLASSIFICATION | I52: Rate Rider for Disposition of Deferral/Variance Accounts (2012) - effective until December 31, 2015 | AA52: Service call – customer owned equipment | AL52: Northern Ontario Wires Inc. | AM52: Northern Ontario Wires Inc. | AO52: GENERAL SERVICE LESS THAN 50 KW - URBAN ENERGY-BILLED [UG] | AP52: kWh
A53: GENERAL SERVICE 500 TO 4,999 KW | I53: Rate Rider for Disposition of Deferral/Variance Accounts (2012) - effective until December 31, 2016 Applicable only in the former service area of Clinton Power | AA53: Service Call – Customer-owned Equipment – After Regular Hours | AL53: Oakville Hydro Electricity Distribution Inc. | AM53: Oakville Hydro Electricity Distribution Inc. | AO53: GENERAL SERVICE SINGLE PHASE - G1 | AP53: kW
A54: GENERAL SERVICE 500 to 4,999 kW SERVICE CLASSIFICATION | I54: Rate Rider for Disposition of Deferral/Variance Accounts (2012) – effective until December 31, 2016 Applicable only in the former service area of Clinton Power | AA54: Service Call – Customer-owned Equipment – During Regular Hours | AL54: Orangeville Hydro Limited | AM54: Orangeville Hydro Limited | AO54: GENERAL SERVICE THREE PHASE - G3 | AP54: kW
A55: GENERAL SERVICE 700 TO 4,999 KW | I55: Rate Rider for Disposition of Deferral/Variance Accounts (2012) - effective until January 31, 2014 | AA55: Service Charge for onsite interrogation of interval meter due to customer phone line failure - required weekly until line repaired $ 6 | AL55: Orillia Power Distribution Corporation | AM55: Orillia Power Distribution Corporation | AO55: INTERMEDIATE USERS | AP55: kW
A56: GENERAL SERVICE 700 TO 4,999 KW SERVICE CLASSIFICATION | I56: Rate Rider for Disposition of Deferral/Variance Accounts (2012) - effective until June 30, 2014 | AA56: Service Layout - Commercial | AL56: Oshawa PUC Networks Inc. | AM56: Oshawa PUC Networks Inc. | AO56: INTERMEDIATE WITH SELF GENERATION | AP56: kW
A57: GENERAL SERVICE DEMAND BILLED (50 KW AND ABOVE) [GSD] | I57: Rate Rider for Disposition of Deferral/Variance Accounts (2013) - Applicable only to Wholesale Market Participants - effective until April 30, 2015 | AA57: Service Layout - ResidentiaI | AL57: Ottawa River Power Corporation | AM57: Ottawa River Power Corporation | AO57: LARGE USE | AP57: kW
A58: GENERAL SERVICE ENERGY BILLED (LESS THAN 50 KW) [GSE-METERED] | I58: Rate Rider for Disposition of Deferral/Variance Accounts (2013) - effective until April 30, 2014 | AA58: Special Billing Service (sub-metering charge per meter) | AL58: Parry Sound Power Corporation | AM58: Parry Sound Power Corporation | AO58: LARGE USE - 3TS | AP58: kW
A59: GENERAL SERVICE ENERGY BILLED (LESS THAN TO 50 KW) [GSE-UNMETERED] | I59: Rate Rider for Disposition of Deferral/Variance Accounts (2013) - effective until April 30, 2015 | AA59: Special meter reads | AL59: Peterborough Distribution Incorporated | AM59: Peterborough Distribution Incorporated | AO59: LARGE USE - FORD ANNEX | AP59: kW
A60: GENERAL SERVICE EQUAL TO OR GREATER THAN 1,500 KW | I60: Rate Rider for Disposition of Deferral/Variance Accounts (2013) - effective until April 30, 2015 - not applicable to Wholesale Market Participants | AA60: Specific Charge for Access to the Power Poles - $/pole/year | AL60: PowerStream Inc. | AM60: PowerStream Inc. | AO60: LARGE USE - REGULAR | AP60: kW
A61: GENERAL SERVICE EQUAL TO OR GREATER THAN 1,500 KW - INTERVAL METERED | I61: Rate Rider for Disposition of Deferral/Variance Accounts (2013) - effective until April 30, 2017 | AA61: Specific Charge for Bell Canada Access to the Power Poles – per pole/year | AL61: PUC Distribution Inc. | AM61: PUC Distribution Inc. | AO61: LARGE USE > 5000 KW | AP61: kW
A62: GENERAL SERVICE EQUAL TO OR GREATER THAN 1,500 KW SERVICE CLASSIFICATION | I62: Rate Rider for Disposition of Deferral/Variance Accounts (2013) - effective until August 31, 2014 | AA62: Switching for company maintenance – Charge based on Time and Materials | AL62: Renfrew Hydro Inc. | AM62: Renfrew Hydro Inc. | AO62: microFIT | AP62: $
A63: GENERAL SERVICE GREATER THAN 1,000 KW | I63: Rate Rider for Disposition of Deferral/Variance Accounts (2013) - effective until December 31, 2014 | AA63: Temporary Service – Install & remove – overhead – no transformer | AL63: Rideau St. Lawrence Distribution Inc. | AM63: Rideau St. Lawrence Distribution Inc. | AO63: RESIDENTIAL | AP63: kWh
A64: GENERAL SERVICE GREATER THAN 50 kW - WMP | I64: Rate Rider for Disposition of Deferral/Variance Accounts (2013) - effective until May 31, 2014 | AA64: Temporary Service – Install & remove – overhead – with transformer | AL64: Sioux Lookout Hydro Inc. | AM64: Sioux Lookout Hydro Inc. | AO64: RESIDENTIAL - HENSALL | AP64: kWh
A65: GENERAL SERVICE INTERMEDIATE 1,000 TO 4,999 KW | I65: Rate Rider for Disposition of Deferral/Variance Accounts (2014) - effective until December 31, 2015 | AA65: Temporary Service – Install & remove – underground – no transformer | AL65: St. Thomas Energy Inc. | AM65: St. Thomas Energy Inc. | AO65: RESIDENTIAL - HIGH DENSITY [R1] | AP65: kWh
A66: GENERAL SERVICE INTERMEDIATE RATE CLASS 1,000 TO 4,999 KW (FORMERLY GENERAL SERVICE > 50 KW CUSTOMERS) | I66: Rate Rider for Disposition of Deferred PILs Variance Account 1562 - effective until March 31, 2016 | AA66: Temporary service install & remove – overhead – no transformer | AL66: Thunder Bay Hydro Electricity Distribution Inc. | AM66: Thunder Bay Hydro Electricity Distribution Inc. | AO66: RESIDENTIAL - LOW DENSITY [R2] | AP66: kWh
A67: GENERAL SERVICE INTERMEDIATE RATE CLASS 1,000 TO 4,999 KW (FORMERLY LARGE USE CUSTOMERS) | I67: Rate Rider for Disposition of Deferred PILs Variance Account 1562 (2012) - effective until April 30, 2015 | AA67: Temporary Service Install & Remove – Overhead – With Transformer | AL67: Tillsonburg Hydro Inc. | AM67: Tillsonburg Hydro Inc. | AO67: RESIDENTIAL - MEDIUM DENSITY [R1] | AP67: kWh
A68: GENERAL SERVICE LESS THAN 50 KW | I68: Rate Rider for Disposition of Deferred PILs Variance Account 1562 (2012) - effective until April 30, 2016 | AA68: Temporary Service Install & Remove – Underground – No Transformer | AL68: Toronto Hydro-Electric System Limited | AM68: Toronto Hydro-Electric System Limited | AO68: RESIDENTIAL - NORMAL DENSITY [R2] | AP68: kWh
A69: GENERAL SERVICE LESS THAN 50 KW - SINGLE PHASE ENERGY-BILLED [G1] | I69: Rate Rider for Disposition of Deferred PILs Variance Account 1562 (2nd Installment - 2012) - effective until April 30, 2016 | AA69: Temporary service installation and removal – overhead – no transformer | AL69: Veridian Connections Inc. | AM69: Veridian Connections Inc. | AO69: RESIDENTIAL - TIME OF USE | AP69: kWh
A70: GENERAL SERVICE LESS THAN 50 KW - THREE PHASE ENERGY-BILLED [G3] | I70: Rate Rider for Disposition of Deferred PILs Variance Account 1562 (per connection) (2012) - effective until April 30, 2015 | AA70: Temporary service installation and removal – overhead – with transformer | AL70: Wasaga Distribution Inc. | AM70: Wasaga Distribution Inc. | AO70: RESIDENTIAL - URBAN [UR] | AP70: kWh
A71: GENERAL SERVICE LESS THAN 50 KW - TRANSMISSION CLASS ENERGY-BILLED [T] | I71: Rate Rider for Disposition of Deferred PILs Variance Account 1562 (per connection) (2012) - effective until April 30, 2016 | AA71: Temporary service installation and removal – underground – no transformer | AL71: Waterloo North Hydro Inc. | AM71: Waterloo North Hydro Inc. | AO71: RESIDENTIAL REGULAR | AP71: kWh
A72: GENERAL SERVICE LESS THAN 50 KW - URBAN ENERGY-BILLED [UG] | I72: Rate Rider for Disposition of Global Adjustment Sub-Account (2011) - effective until April 30, 2015 Applicable only for Non-RPP Customers | AL72: Welland Hydro-Electric System Corp. | AM72: Welland Hydro-Electric System Corp. | AO72: RESIDENTIAL SUBURBAN | AP72: kWh
A73: GENERAL SERVICE LESS THAN 50 kW SERVICE CLASSIFICATION | I73: Rate Rider for Disposition of Global Adjustment Sub-Account (2011) - effective until April 30, 2016 Applicable only for Non-RPP Customers | AL73: Wellington North Power Inc. | AM73: Wellington North Power Inc. | AO73: RESIDENTIAL SUBURBAN SEASONAL | AP73: kWh
A74: GENERAL SERVICE SINGLE PHASE - G1 | I74: Rate Rider for Disposition of Global Adjustment Sub-Account (2012) - effective until April 30, 2014 Applicable only for Non-RPP Customers | AL74: West Coast Huron Energy Inc. | AM74: West Coast Huron Energy Inc. | AO74: RESIDENTIAL SUBURBAN YEAR ROUND | AP74: kWh
A75: GENERAL SERVICE THREE PHASE - G3 | I75: Rate Rider for Disposition of Global Adjustment Sub-Account (2012) - effective until April 30, 2015 Applicable only for Non-RPP Customers | AL75: Westario Power Inc. | AM75: Westario Power Inc. | AO75: RESIDENTIAL URBAN | AP75: kWh
A76: GENERAL SERVICELESS THAN 50 kWSERVICE CLASSIFICATION | I76: Rate Rider for Disposition of Global Adjustment Sub-Account (2012) - effective until April 30, 2015 Applicatble only for Non-RPP Customers | AL76: Whitby Hydro Electric Corporation | AM76: Whitby Hydro Electric Corporation | AO76: RESIDENTIAL URBAN YEAR-ROUND | AP76: kWh
A77: INTERMEDIATE USER SERVICE CLASSIFICATION | I77: Rate Rider for Disposition of Global Adjustment Sub-Account (2012) - effective until April 30, 2016 Applicable only for Non-RPP Customers | AL77: Woodstock Hydro Services Inc. | AM77: Woodstock Hydro Services Inc. | AO77: SEASONAL RESIDENTIAL | AP77: kWh
A78: INTERMEDIATE USERS | I78: Rate Rider for Disposition of Global Adjustment Sub-Account (2012) - effective until January 31, 2014. Applicable only for Non-RPP Customers | AO78: SEASONAL RESIDENTIAL - HIGH DENSITY [R3] | AP78: kWh
A79: INTERMEDIATE WITH SELF GENERATION | I79: Rate Rider for Disposition of Global Adjustment Sub-Account (2012) - effective until June 30, 2014 Applicable only for Non-RPP Customers | AO79: SEASONAL RESIDENTIAL - NORMAL DENSITY [R4] | AP79: kWh
A80: LARGE USE | I80: Rate Rider for Disposition of Global Adjustment Sub-Account (2012) Applicable only for Non-RPP Customers - effective until August 31, 2014 | AO80: SENTINEL LIGHTING | AP80: kW
A81: LARGE USE - 3TS | I81: Rate Rider for Disposition of Global Adjustment Sub-Account (2012) Applicable only to Non-RPP Customers - effective until August 31, 2014 | AO81: SMALL COMMERCIAL AND USL - PER CONNECTION | AP81: kWh
A82: LARGE USE - 3TS SERVICE CLASSIFICATION | I82: Rate Rider for Disposition of Global Adjustment Sub-Account (2013) - effective until April 30, 2014 Applicable only for Non-RPP Customers | AO82: SMALL COMMERCIAL AND USL - PER METER | AP82: kWh
A83: LARGE USE - FORD ANNEX | I83: Rate Rider for Disposition of Global Adjustment Sub-Account (2013) - effective until April 30, 2015 Applicable only for Non-RPP Customers | AO83: STANDARD A GENERAL SERVICE AIR ACCESS | AP83: kWh
A84: LARGE USE - FORD ANNEX SERVICE CLASSIFICATION | I84: Rate Rider for Disposition of Global Adjustment Sub-Account (2013) - effective until April 30, 2015 Applicable only for Non-RPP Customers and excluding Wholesale Market Participants | AO84: STANDARD A GENERAL SERVICE ROAD/RAIL | AP84: kWh
A85: LARGE USE - REGULAR | I85: Rate Rider for Disposition of Global Adjustment Sub-Account (2013) - effective until April 30, 2017 Applicable only for Non-RPP Customers | AO85: STANDARD A GRID CONNECTED | AP85: kWh
A86: LARGE USE - REGULAR SERVICE CLASSIFICATION | I86: Rate Rider For Disposition of Global Adjustment Sub-Account (2013) - effective until August 31, 2014 Applicable only for Non-RPP Customers | AO86: STANDARD A RESIDENTIAL AIR ACCESS | AP86: kWh
A87: LARGE USE > 5000 KW | I87: Rate Rider for Disposition of Global Adjustment Sub-Account (2013) - effective until December 31, 2014 Applicable only for Non-RPP Customers | AO87: STANDARD A RESIDENTIAL ROAD/RAIL | AP87: kWh
A88: LARGE USE SERVICE CLASSIFICATION | I88: Rate Rider for Disposition of Global Adjustment Sub-Account (2013) - effective until May 31, 2014 Applicable only for Non-RPP Customers | AO88: STANDBY - GENERAL SERVICE 1,000 - 5,000 KW | AP88: kW
A89: LARGE USE WITH DEDICATED ASSETS SERVICE CLASSIFICATION | I89: Rate Rider for Disposition of Global Adjustment Sub-Account (2014) - effective until December 31, 2014. Applicable only for Non-RPP - Class B Customers | AO89: STANDBY - GENERAL SERVICE 50 - 1,000 KW | AP89: kW
A90: LARGE USESERVICE CLASSIFICATION | I90: Rate Rider for Disposition of Global Adjustment Sub-Account (2014) - effective until December 31, 2014. Applicable only for Non-RPP Customers | AO90: STANDBY - LARGE USE | AP90: kW
A91: LOSS FACTORS | I91: Rate Rider for Disposition of Global Adjustment Sub-Account (2014) - effective until December 31, 2014. Applicable only for Non-RPP Customers - Class A Customers | AO91: STANDBY DISTRIBUTION SERVICE | AP91: kW
A92: microFIT | I92: Rate Rider for Disposition of Global Adjustment Sub-Account (2014) - effective until December 31, 2014. Applicable only for Non-RPP Customers - Interval Metered | AO92: STANDBY POWER | AP92: kW
A93: MICROFIT GENERATOR SERVICE CLASSIFICATION | I93: Rate Rider for Disposition of Global Adjustment Sub-Account (2014) - effective until December 31, 2014. Applicable only for Non-RPP Customers - Non Interval Metered | AO93: STANDBY POWER - APPROVED ON AN INTERIM BASIS | AP93: kW
A94: microFIT SERVICE CLASSIFICATION | I94: Rate Rider for Disposition of Global Adjustment Sub-Account (2014) - effective until December 31, 2015. Applicable only for Non-RPP Customers. | AO94: STANDBY POWER GENERAL SERVICE 1,500 TO 4,999 KW | AP94: kW
A95: microFITGENERATOR SERVICE CLASSIFICATION | I95: Rate Rider for Disposition of Post Retirement Actuarial Gain - effective until March 31, 2025 | AO95: STANDBY POWER GENERAL SERVICE 50 TO 1,499 KW | AP95: kW
A96: MONTHLY RATES AND CHARGES–DELIVERY COMPONENT-APPROVED ON AN INTERIM | I96: Rate Rider for Disposition of Residual Hisotrical Smart Meter Costs - effective until April 30, 2015 | AO96: STANDBY POWER GENERAL SERVICE LARGE USE | AP96: kW
A97: NON STANDARD A GENERAL SERVICE SINGLE PHASE SERVICE CLASSIFICATION – G1 | I97: Rate Rider for Disposition of Residual Hisotrical Smart Meter Costs - effective until April 30, 2017 | AO97: STREET LIGHTING | AP97: kW
A98: NON STANDARD A GENERAL SERVICE THREE PHASE SERVICE CLASSIFICATION – G3 | I98: Rate Rider for Disposition of Residual Historical Smart Meter Costs - effective until April 30, 2014 | AO98: SUB TRANSMISSION [ST] | AP98: kW
A99: NON STANDARD A SEASONAL RESIDENTIAL SERVICE CLASSIFICATION – R4 | I99: Rate Rider for Disposition of Residual Historical Smart Meter Costs - effective until April 30, 2016 | AO99: UNMETERED SCATTERED LOAD | AP99: kWh
A100: NON STANDARD A YEAR ROUND RESIDENTIAL SERVICE CLASSIFICATION – R2 | I100: Rate Rider for Disposition of Residual Historical Smart Meter Costs - effective until August 31, 2014 | AO100: URBAN GENERAL SERVICE DEMAND BILLED (50 KW AND ABOVE) [UGD] | AP100: kW
A101: ONTARIO ELECTRICITY SUPPORT PROGRAM RECIPIENTS | I101: Rate Rider for Disposition of Residual Historical Smart Meter Costs - effective until August 31, 2015 | AO101: URBAN GENERAL SERVICE ENERGY BILLED (LESS THAN 50 KW) [UGE] | AP101: kWh
A102: RESIDENTIAL | I102: Rate Rider for Disposition of Residual Historical Smart Meter Costs - effective until December 31, 2014 | AO102: WESTPORT SEWAGE TREATMENT PLANT | AP102: kW
A103: RESIDENTIAL - HENSALL | I103: Rate Rider for Disposition of Residual Historical Smart Meter Costs – effective until December 31, 2014 | AO103: YEAR-ROUND RESIDENTIAL - R2 | AP103: kWh
A104: RESIDENTIAL - HIGH DENSITY [R1] | I104: Rate Rider for Disposition of Residual Historical Smart Meter Costs - effective until December 31, 2015
A105: RESIDENTIAL - LOW DENSITY [R2] | I105: Rate Rider for Disposition of Residual Historical Smart Meter Costs - effective until December 31, 2016
A106: RESIDENTIAL - MEDIUM DENSITY [R1] | I106: Rate Rider for Disposition of Residual Historical Smart Meter Costs - effective until October 31, 2014
A107: RESIDENTIAL - NORMAL DENSITY [R2] | I107: Rate Rider for Disposition of Residual Historical Smart Meter Costs - effective until September 30, 2014
A108: RESIDENTIAL - TIME OF USE | I108: Rate Rider for Disposition of Residual Historical Smart Meter Costs - Non-Interval Metered - effective until April 30, 2014
A109: RESIDENTIAL - URBAN [UR] | I109: Rate Rider for Disposition of Residual Historical Smart Meter Costs 2 - in effect until the effective date of the next cost of service-based rate order
A110: RESIDENTIAL REGULAR | I110: Rate Rider for Disposition of Residual Historical Smart Meter Costs 3 - in effect until the effective date of the next cost of service-based rate order
A111: RESIDENTIAL SERVICE CLASSIFICATION | I111: Rate Rider for Disposition of Residual Incremental Historical Smart Meter Costs - effective until August 31, 2015
A112: RESIDENTIAL SUBURBAN | I112: Rate Rider for Disposition of Stranded Meter costs - effective until April 30, 2015
A113: RESIDENTIAL SUBURBAN SEASONAL | I113: Rate Rider for Disposition of Stranded Meter Costs - effective until April 30, 2016
A114: RESIDENTIAL SUBURBAN YEAR ROUND | I114: Rate Rider for Disposition of Stranded Meter Costs - effective until April 30, 2017
A115: RESIDENTIAL URBAN | I115: Rate Rider for Global Adjustment Sub Account Disposition - effective until April 30, 2016 Applicable only for Non RPP Customers
A116: RESIDENTIAL URBAN YEAR-ROUND | I116: Rate Rider for Global Adjustment Sub-Account Disposition (2014) - effective until April 28, 2016 Applicable only for Non-RPP Customers
A117: RETAIL SERVICE CHARGES (if applicable) | I117: Rate Rider for Global Adjustment Sub-Account Disposition (2014) - effective until April 30, 2015 Applicable only for Non-RPP Customers
A118: SEASONAL RESIDENTIAL | I118: Rate Rider for Global Adjustment Sub-Account Disposition (2014) - effective until December 30, 2015 Applicable only for Non-RPP Customers
A119: SEASONAL RESIDENTIAL - HIGH DENSITY [R3] | I119: Rate Rider for Global Adjustment Sub-Account Disposition (2014) - effective until December 31, 2014 Applicable only for Non-RPP Customers
A120: SEASONAL RESIDENTIAL - NORMAL DENSITY [R4] | I120: Rate Rider for Global Adjustment Sub-Account Disposition (2014) - effective until December 31, 2015 Applicable only for Non-RPP Customers
A121: SEASONAL RESIDENTIAL SERVICE CLASSIFICATION | I121: Rate Rider for Global Adjustment Sub-Account Disposition Applicable only for Non-RPP Customers - effective until April 30, 2015
A122: SENTINEL LIGHTING | I122: Rate Rider for Incremental Capital - Distribution Volumetric - effective until April 30, 2016
A123: SENTINEL LIGHTING SERVICE CLASSIFICATION | I123: Rate Rider for Incremental Capital - Service Charge - effective until April 30, 2016
A124: SMALL COMMERCIAL AND USL - PER CONNECTION | I124: Rate Rider for Incremental Capital (2012) - effective until April 30, 2015
A125: SMALL COMMERCIAL AND USL - PER METER | I125: Rate Rider for Lost Revenue Adjustment Mechanism Variance Account (LRAMVA) Recovery (2012 CDM Activities) - effective until April 30, 2015
A126: SPECIFIC SERVICE CHARGES | I126: Rate Rider for Recover of Residual Historical Smart meter Costs - effective until June 30, 2014
A127: SPECIFIC SERVICE CHARGES | I127: Rate Rider for Recovery of CGAAP/CWIP Differential - in effect until December 31, 2016
A128: STANDARD A GENERAL SERVICE AIR ACCESS | I128: Rate Rider for Recovery of Foregone Revenue - effective until April 30, 2015
A129: STANDARD A GENERAL SERVICE AIR ACCESS SERVICE CLASSIFICATION | I129: Rate Rider for Recovery of Forgone Revenue - effective until April 30, 2015
A130: STANDARD A GENERAL SERVICE ROAD/RAIL | I130: Rate Rider for Recovery of Forgone Revenue - effective until December 31, 2014
A131: STANDARD A GENERAL SERVICE ROAD/RAIL ACCESS SERVICE CLASSIFICATION | I131: Rate Rider for Recovery of Green Energy Act related costs - effective until December 31, 2014
A132: STANDARD A GRID CONNECTED | I132: Rate Rider for Recovery of Incremental Capital (2013) - in effect until the effective date of the next cost of service-based rate order
A133: STANDARD A GRID CONNECTED SERVICE CLASSIFICATION | I133: Rate Rider for Recovery of Incremental Capital (2013) - in effect until the effective date of the next cost of service-based rate order
A134: STANDARD A RESIDENTIAL AIR ACCESS | I134: Rate Rider for Recovery of Incremental Capital (2013) (per connection) - in effect until the effective date of the next cost of service-based rate order
A135: STANDARD A RESIDENTIAL AIR ACCESS SERVICE CLASSIFICATION | I135: Rate Rider for Recovery of Incremental Capital (2013) (per connection)- in effect until the effective date of the next cost of service-based rate order
A136: STANDARD A RESIDENTIAL ROAD/RAIL | I136: Rate Rider for Recovery of Incremental Capital Costs
A137: STANDARD A RESIDENTIAL ROAD/RAIL ACCESS SERVICE CLASSIFICATION | I137: Rate Rider for Recovery of Incremental Capital Costs - effective until April 30, 2015
A138: STANDBY - GENERAL SERVICE 1,000 - 5,000 KW | I138: Rate Rider for Recovery of Incremental Capital Module Costs (2014) - in effect until the effective date of the next cost of service-based rate order
A139: STANDBY - GENERAL SERVICE 50 - 1,000 KW | I139: Rate Rider for Recovery of Incremental Capital Module Costs (2014) - in effect until the effective date of the next cost of service-based rate order
A140: STANDBY - LARGE USE | I140: Rate Rider for Recovery of Lost Revenue Adjustment Mechanism ( LRAM)/Shared Savings Mechanism (SSM) (2012) - effective until August 31, 2014
A141: STANDBY DISTRIBUTION SERVICE | I141: Rate Rider for Recovery of Lost Revenue Adjustment Mechanism (2013) - effective until December 31, 2014
A142: STANDBY DISTRIBUTION SERVICE CLASSIFICATION | I142: Rate Rider for Recovery of Lost Revenue Adjustment Mechanism (LRAM) - effective until April 30, 2016
A143: STANDBY POWER | I143: Rate Rider for Recovery of Lost Revenue Adjustment Mechanism (LRAM) (pre-2011 CDM Activities) - effective until April 30, 2015
A144: STANDBY POWER - APPROVED ON AN INTERIM BASIS | I144: Rate Rider for Recovery of Lost Revenue Adjustment Mechanism (LRAM) (pre-2011 CDM Activities) (2013) - effective until April 30, 2015
A145: STANDBY POWER GENERAL SERVICE 1,500 TO 4,999 KW | I145: Rate Rider for Recovery of Lost Revenue Adjustment Mechanism (LRAM)/Shared Savings
A146: STANDBY POWER GENERAL SERVICE 50 TO 1,499 KW | I146: Rate Rider for Recovery of Lost Revenue Adjustment Mechanism (LRAM)/Shared Savings Mechanism (SSM) - effective until December 31, 2018 and applicable in the service area excluding the former service areas of Clinton Power and West Perth Power
A147: STANDBY POWER GENERAL SERVICE LARGE USE | I147: Rate Rider for Recovery of Lost Revenue Adjustment Mechanism (LRAM)/Shared Savings Mechanism (SSM) - effective until December 31, 2014 and applicable in the service area excluding the former service areas of Clinton Power and West Perth Power
A148: STANDBY POWER SERVICE | I148: Rate Rider for Recovery of Lost Revenue Adjustment Mechanism (LRAM)/Shared Savings Mechanism (SSM) - effective until December 31, 2014 and applicable only in the former service area of Clinton Power
A149: STANDBY POWER SERVICE CLASSIFICATION | I149: Rate Rider for Recovery of Lost Revenue Adjustment Mechanism (LRAM)/Shared Savings Mechanism (SSM) - effective until December 31, 2014 and applicable only in the former service area of West Perth Power
A150: STANDBY POWER SERVICE CLASSIFICATION | I150: Rate Rider for Recovery of Lost Revenue Adjustment Mechanism (LRAM)/Shared Savings Mechanism (SSM) - effective until December 31, 2014 and applicable in the service area excluding the former service area of Clinton Power
A151: STANDBY POWERSERVICE CLASSIFICATION | I151: Rate Rider for Recovery of Lost Revenue Adjustment Mechanism (LRAM)/Shared Savings Mechanism (SSM) - effective until March 31, 2016
A152: STREET LIGHTING | I152: Rate Rider for Recovery of Lost Revenue Adjustment Mechanism (LRAM)/Shared Savings Mechanism (SSM) (2012) - effective until August 31, 2014
A153: STREET LIGHTING SERVICE CLASSIFICATION | I153: Rate Rider for Recovery of Lost Revenue Adjustment Mechanism (LRAM)/Shared Savings Mechanism (SSM) Recovery - effective until April 30, 2015
A154: SUB TRANSMISSION [ST] | I154: Rate Rider for Recovery of Lost Revenue Adjustment Mechanism Variance Account (LRAMVA) (2014) - effective until April 30, 2015
A155: UNMETERED SCATTERED LOAD | I155: Rate Rider for Recovery of Residual Historical Smart Meter Costs - effective July 1, 2012 - April 30, 2016
A156: UNMETERED SCATTERED LOAD SERVICE CLASSIFICATION | I156: Rate Rider for Recovery of Smart Meter Incremental Revenue Requirement - effective until the date of the next cost of service-based rate order
A157: URBAN GENERAL SERVICE DEMAND BILLED (50 KW AND ABOVE) [UGD] | I157: Rate Rider for Recovery of Smart Meter Incremental Revenue Requirement - effective until the effective date of the next cost of service-based rate order, or October 31, 2017, whichever occurs earlier
A158: URBAN GENERAL SERVICE ENERGY BILLED (LESS THAN 50 KW) [UGE] | I158: Rate Rider for Recovery of Smart Meter Incremental Revenue Requirement - in effect until the effective date of the next cost of service-based rate order
A159: WESTPORT SEWAGE TREATMENT PLANT | I159: Rate Rider for Recovery of Smart Meter Incremental Revenue Requirement - Non-Interval Metered - in effect until the effective date of the next cost of service-based rate order
A160: YEAR-ROUND RESIDENTIAL - R2 | I160: Rate Rider for Recovery of Smart Meter Incremental Revenue Requirements - in effect until the effective date of the next cost of service application
I161: Rate Rider for Recovery of Smart Meter Stranded Assets - effective until April 30, 2016
I162: Rate Rider for Recovery of Storm Damage Costs - effective until August 31, 2017
I163: Rate Rider for Recovery of Stranded Assets - effective until April 30, 2016
I164: Rate Rider for Recovery of Stranded Meter Assets - effective July 1, 2012 - April 30, 2016
I165: Rate Rider for Recovery of Stranded Meter Assets – effective until April 30, 2015
I166: Rate Rider for Recovery of Stranded Meter Assets - effective until April 30, 2016
I167: Rate Rider for Recovery of Stranded Meter Assets - effective until April 30, 2017
I168: Rate Rider for Recovery of Stranded Meter Assets - effective until August 31, 2015
I169: Rate Rider for Recovery of Stranded Meter Assets - effective until August 31, 2017
I170: Rate Rider for Recovery of Stranded Meter Assets - effective until December 31, 2014
I171: Rate Rider for Recovery of Stranded Meter Assets - effective until December 31, 2015
I172: Rate Rider for Recovery of Stranded Meter Assets - effective until June 30, 2016
I173: Rate Rider for Recovery of Stranded Meter Assets - effective until March 31, 2016
I174: Rate Rider for Recovery of Stranded Meter Assets - effective until May 31, 2014
I175: Rate Rider for Reversal of Deferral/Variance Account Disposition (2011) - effective until April 30, 2015
I176: Rate Rider for Smart Meter Disposition - effective until April 30, 2016
I177: Rate Rider for Smart Meter Incremental Revenue Requirement - in effect until the effective date of the next cost of service-based rate order
I178: Rate Rider for Smart Metering Entity Charge - effective until October 31, 2018
I179: Rate Rider for Stranded Meter Cost Recovery - effective until April 30, 2017
I180: Rate Rider for Tax Change
I181: Rate Rider for Tax Change - effective until April 30, 2015
I182: Rate Rider for Tax Change (2014) - effective until April 30, 2015
I183: Retail Transmission Rate - Line and Transformation Connection Service Rate
I184: Retail Transmission Rate - Line and Transformation Connection Service Rate - (less than 1,000 kW)
I185: Retail Transmission Rate - Line and Transformation Connection Service Rate - Interval Metered
I186: Retail Transmission Rate - Line and Transformation Connection Service Rate - Interval Metered (1,000 to 4,999 kW)
I187: Retail Transmission Rate - Line and Transformation Connection Service Rate - Interval Metered (less than 1,000 kW)
I188: Retail Transmission Rate - Line and Transformation Connection Service Rate - Interval Metered < 1,000 kW
I189: Retail Transmission Rate - Line and Transformation Connection Service Rate FOR ALL SERVICE AREAS EXCEPT HENSALL
I190: Retail Transmission Rate - Line and Transformation Connection Service Rate - Interval Metered > 1,000 kW
I191: Retail Transmission Rate - Line Connection Service Rate
I192: Retail Transmission Rate - Network Service Rate
I193: Retail Transmission Rate - Network Service Rate - (less than 1,000 kW)
I194: Retail Transmission Rate - Network Service Rate - Interval Metered
I195: Retail Transmission Rate - Network Service Rate - Interval Metered (1,000 to 4,999 kW)
I196: Retail Transmission Rate - Network Service Rate - Interval Metered (less than 1,000 kW)
I197: Retail Transmission Rate - Network Service Rate - Interval Metered > 1,000 kW
I198: Retail Transmission Rate - Transformation Connection Service Rate
I199: Rider for Global Adjustment Sub-Account Disposition (2012) - effective until April 30, 2016 Applicable only for Non-RPP Customers
I200: Rural or Remote Electricity Rate Protection Charge (RRRP)
... 14 more rows

Sheet Sheet2 (hidden)
A1: Algoma Power Inc. | H1: Atikokan Hydro Inc. | N1: =VLOOKUP(H1,A:A,1,0) -> Atikokan Hydro Inc.
A2: Atikokan Hydro Inc. | H2: Bluewater Power Distribution Corporation | N2: =VLOOKUP(H2,A:A,1,0) -> Bluewater Power Distribution Corporation
A3: Bluewater Power Distribution Corporation | H3: Brant County Power Inc. | N3: Brant County Power Inc.
A4: Brant County Power Inc. | H4: Brantford Power Inc. | N4: Brantford Power Inc.
A5: Brantford Power Inc. | H5: Burlington Hydro Inc. | N5: Burlington Hydro Inc.
A6: Burlington Hydro Inc. | H6: Cambridge and North Dumfries Hydro Inc. | N6: Cambridge and North Dumfries Hydro Inc.
A7: Cambridge and North Dumfries Hydro Inc. | H7: Canadian Niagara Power Inc. | N7: Canadian Niagara Power Inc.
A8: Canadian Niagara Power Inc. | H8: Centre Wellington Hydro Ltd. | N8: Centre Wellington Hydro Ltd.
A9: Centre Wellington Hydro Ltd. | H9: Chapleau Public Utilities Corporation | N9: Chapleau Public Utilities Corporation
A10: Chapleau Public Utilities Corporation | H10: Collus PowerStream Corp. | N10: Collus PowerStream Corp.
A11: Collus PowerStream Corp. | H11: Cooperative Hydro Embrun Inc. | N11: Cooperative Hydro Embrun Inc.
A12: Cooperative Hydro Embrun Inc. | H12: E.L.K. Energy Inc. | N12: E.L.K. Energy Inc.
A13: E.L.K. Energy Inc. | H13: Enersource Hydro Mississauga Inc. | N13: Enersource Hydro Mississauga Inc.
A14: Enersource Hydro Mississauga Inc. | H14: Entegrus Powerlines Inc. | N14: Entegrus Powerlines Inc.
A15: Entegrus Powerlines Inc. | H15: EnWin Utilities Ltd. | N15: EnWin Utilities Ltd.
A16: EnWin Utilities Ltd. | H16: Erie Thames Powerlines Corporation | N16: Erie Thames Powerlines Corporation
A17: Erie Thames Powerlines Corporation | H17: Espanola Regional Hydro Distribution Corporation | N17: Espanola Regional Hydro Distribution Corporation
A18: Espanola Regional Hydro Distribution Corporation | H18: Essex Powerlines Corporation | N18: Essex Powerlines Corporation
A19: Essex Powerlines Corporation | H19: Festival Hydro Inc. | N19: Festival Hydro Inc.
A20: Festival Hydro Inc. | H20: Fort Frances Power Corporation | N20: Fort Frances Power Corporation
A21: Fort Frances Power Corporation | H21: Greater Sudbury Hydro Inc. | N21: Greater Sudbury Hydro Inc.
A22: Greater Sudbury Hydro Inc. | H22: Grimsby Power Incorporated | N22: Grimsby Power Incorporated
A23: Grimsby Power Incorporated | H23: Guelph Hydro Electric Systems Inc. | N23: Guelph Hydro Electric Systems Inc.
A24: Guelph Hydro Electric Systems Inc. | H24: Halton Hills Hydro Inc. | N24: Halton Hills Hydro Inc.
A25: Haldimand County Hydro Inc. | H25: Hydro 2000 Inc. | N25: Hydro 2000 Inc.
A26: Halton Hills Hydro Inc. | H26: Hydro Hawkesbury Inc. | N26: Hydro Hawkesbury Inc.
A27: Hearst Power Distribution Company Limited | H27: Hydro One Brampton Networks Inc. | N27: Hydro One Brampton Networks Inc.
A28: Horizon Utilities Corporation | H28: Hydro One Remote Communities Inc. | N28: Hydro One Remote Communities Inc.
A29: Hydro 2000 Inc. | H29: Hydro Ottawa Limited | N29: Hydro Ottawa Limited
A30: Hydro Hawkesbury Inc. | H30: Innpower Corporation | N30: Innpower Corporation
A31: Hydro One Brampton Networks Inc. | H31: Kenora Hydro Electric Corporation Ltd. | N31: Kenora Hydro Electric Corporation Ltd.
A32: Hydro One Networks Inc. | H32: Kingston Hydro Corporation | N32: Kingston Hydro Corporation
A33: Hydro One Remote Communities Inc. | H33: Kitchener-Wilmot Hydro Inc. | N33: Kitchener-Wilmot Hydro Inc.
A34: Hydro Ottawa Limited | H34: Lakefront Utilities Inc. | N34: Lakefront Utilities Inc.
A35: Innpower Corporation | H35: Lakeland Power Distribution Ltd. | N35: Lakeland Power Distribution Ltd.
A36: Kenora Hydro Electric Corporation Ltd. | H36: London Hydro Inc. | N36: London Hydro Inc.
A37: Kingston Hydro Corporation | H37: Midland Power Utility Corporation | N37: Midland Power Utility Corporation
A38: Kitchener-Wilmot Hydro Inc. | H38: Milton Hydro Distribution Inc. | N38: Milton Hydro Distribution Inc.
A39: Lakefront Utilities Inc. | H39: Niagara-on-the-Lake Hydro Inc. | N39: Niagara-on-the-Lake Hydro Inc.
A40: Lakeland Power Distribution Ltd. | H40: Niagara Peninsula Energy Inc. | N40: Niagara Peninsula Energy Inc.
A41: London Hydro Inc. | H41: Northern Ontario Wires Inc. | N41: Northern Ontario Wires Inc.
A42: Midland Power Utility Corporation | H42: Oakville Hydro Electricity Distribution Inc. | N42: Oakville Hydro Electricity Distribution Inc.
A43: Milton Hydro Distribution Inc. | H43: Orangeville Hydro Limited | N43: Orangeville Hydro Limited
A44: Newmarket-Tay Power Distribution Ltd. | H44: Orillia Power Distribution Corporation | N44: Orillia Power Distribution Corporation
A45: Niagara Peninsula Energy Inc. | H45: Peterborough Distribution Incorporated | N45: Peterborough Distribution Incorporated
A46: Niagara-on-the-Lake Hydro Inc. | H46: PowerStream Inc. | N46: PowerStream Inc.
A47: Norfolk Power Distribution Inc. | H47: PUC Distribution Inc. | N47: PUC Distribution Inc.
A48: North Bay Hydro Distribution Limited | H48: Renfrew Hydro Inc. | N48: Renfrew Hydro Inc.
A49: Northern Ontario Wires Inc. | H49: Rideau St. Lawrence Distribution Inc. | N49: Rideau St. Lawrence Distribution Inc.
A50: Oakville Hydro Electricity Distribution Inc. | H50: Sioux Lookout Hydro Inc. | N50: Sioux Lookout Hydro Inc.
A51: Orangeville Hydro Limited | H51: Thunder Bay Hydro Electricity Distribution Inc. | N51: Thunder Bay Hydro Electricity Distribution Inc.
A52: Orillia Power Distribution Corporation | H52: Tillsonburg Hydro Inc. | N52: Tillsonburg Hydro Inc.
A53: Oshawa PUC Networks Inc. | H53: Veridian Connections Inc. | N53: Veridian Connections Inc.
A54: Ottawa River Power Corporation | H54: Wasaga Distribution Inc. | N54: Wasaga Distribution Inc.
A55: Peterborough Distribution Incorporated | H55: Waterloo North Hydro Inc. | N55: Waterloo North Hydro Inc.
A56: PowerStream Inc. | H56: Welland Hydro-Electric System Corp. | N56: Welland Hydro-Electric System Corp.
A57: PUC Distribution Inc. | H57: Wellington North Power Inc. | N57: Wellington North Power Inc.
A58: Renfrew Hydro Inc. | H58: West Coast Huron Energy Inc. | N58: West Coast Huron Energy Inc.
A59: Rideau St. Lawrence Distribution Inc. | H59: Westario Power Inc. | N59: Westario Power Inc.
A60: Sioux Lookout Hydro Inc. | H60: Whitby Hydro Electric Corporation | N60: Whitby Hydro Electric Corporation
A61: St. Thomas Energy Inc.
A62: Thunder Bay Hydro Electricity Distribution Inc.
A63: Tillsonburg Hydro Inc.
A64: Toronto Hydro-Electric System Limited
A65: Veridian Connections Inc.
